Workbook

Sheet Keçi
G1: Coşkun & İnal & İnal | J1: =TODAY() -> 2024-11-12 | P1: Selçuk Üniversitesi Veteriner Fakültesi Rasyon Hazırlama Programları
B2: KEÇİLER İÇİN EN DÜŞÜK MALİYETLİ
B3: Rasyon Hazırlama Programı | C3: MİKTAR | D3: Fiyat,₺ | E3: Yem sınırları | G3: BESİN MADDESİ | H3: İHTİYAÇ | I3: RASYON | J3: SONUÇ | K3: KM'de % | M3: Gerekli Kesif Yem Miktarı | P3: Fİ - Şİ - BC
B4: VERİLECEK YEMLER | C4: =SUM(Rapor!Y5:Y30) -> 2.15 | D4: =(C5*D5+C6*D6+C7*D7+C8*D8+C9*D9+C10*D10+C11*D11+C12*D12+C13*D13+C14*D14+C15*D15+C16*D16+C17*D17+C18*D18+C19*D19+C20*D20+C21*D21+C22*D22+C23*D23+C24*D24+C25*D25+C26*D26+C27*D27+C28*D28+C29*D29+C30*D30) -> 10.5 | E4: En az | F4: En çok | G4: =Rapor!G4 -> KM,kg | H4: 1.855495 | I4: =Rapor!I4 -> 1.93 | J4: =Rapor!J4 -> FAZLA | M4: ve KM'deki Bileşimi
A5: 1 | B5: Buğday Samanı | C5: 1 | D5: 1.5 | E5: 0 | F5: 1 | G5: =Rapor!G5 -> ME,Mcal | H5: 3.5542 | I5: =Rapor!I5 -> 3.70104 | J5: =Rapor!J5 -> FAZLA | K5: =Rapor!K5 -> 1918 kcal/kg | M5: Miktar,kg | N5: =Rapor!O5 -> -0.08371348315
A6: 1 | B6: Fiğ Kuru Otu | C6: 0.8 | D6: 6 | E6: 0 | F6: 1 | G6: =Rapor!G6 -> Ham Protein,g | H6: 199.2275012 | I6: =Rapor!I6 -> 200.9516 | J6: =Rapor!J6 -> TAMAM | K6: =Rapor!K6 -> 10,4 | M6: HP,% | N6: =Rapor!O6 -> 2.314071203
A7: 4 | B7: KOYUN SÜT YEMİ | C7: 0.35 | D7: 12 | E7: 0 | F7: 1 | G7: =Rapor!G7 -> Metabolik Protein | I7: =Rapor!I7 -> 139.622 | K7: =Rapor!K7 -> 7.234300518 | M7: ME,Mcal | N7: =Rapor!O7 -> 1.970874438
C8: 0 | E8: 0 | F8: 0 | G8: =Rapor!G8 -> Rumende Yıkılabilir Protein | I8: =Rapor!I8 -> 96.714 | K8: =Rapor!K8 -> 5.011088083 | M8: Ca,% | N8: =Rapor!O8 -> 9.783739346
C9: 0 | E9: 0 | F9: 0 | G9: =Rapor!G9 -> Rumende Yıkımlanmayan Protein | I9: =Rapor!I9 -> 34.18 | K9: =Rapor!K9 -> 1.770984456 | M9: P,% | N9: =Rapor!O9 -> 0.112442118
C10: 0 | E10: 0 | F10: 0 | G10: =Rapor!G10 -> Ca,g | H10: 6.208225 | I10: =Rapor!I10 -> 13.4976 | J10: =Rapor!J10 -> FAZLA | K10: =Rapor!K10 -> 0,70 | P10: Rasyonu hazırlanan hayvan : | Q10: =IF(KeciVerimYonu="","",CONCATENATE("Keçi, ",KeciVerimYonu)) -> Keçi, Sütçü
C11: 0 | E11: 0 | F11: 0 | G11: =Rapor!G11 -> P,g | H11: 4.178025 | I11: =Rapor!I11 -> 4.2618 | J11: =Rapor!J11 -> FAZLA | K11: =Rapor!K11 -> 0,22 | P11: Tipi : | Q11: =IF(KeciTipi="","",KeciTipi) -> Dişi
C12: 0 | E12: 0 | F12: 0 | G12: =Rapor!G12 -> Ca/P Oranı | H12: 1.485923373 | I12: =Rapor!I12 -> 3.167112488 | J12: =Rapor!J12 -> FAZLA | P12: Durumu : | Q12: =IF(KeciDurum="","",KeciDurum) -> Erken Laktasyon
C13: 0 | E13: 0 | F13: 0 | G13: =Rapor!G13 -> Kaba Yem,% | K13: =Rapor!K13 -> 84.04145078 | P13: =IF(KeciYavruSay="Sağılıyor","","Yavru Sayısı :") -> Yavru Sayısı : | Q13: =IF(KeciYavruSay="","",KeciYavruSay) -> Tek
C14: 0 | E14: 0 | F14: 0 | G14: =Rapor!G14 -> HS,% | K14: =Rapor!K14 -> 32.61067358 | P14: Süt Verim Düzeyi : | Q14: =IF(SutVerimDuzey="","",SutVerimDuzey) -> 
C15: 0 | E15: 0 | F15: 0 | G15: =Rapor!G15 -> NDF,% | K15: =Rapor!K15 -> 59.88911917 | P15: Canlı Ağırlığı : | Q15: =IF(BW="","",CONCATENATE(BW," kg")) -> 55 kg
C16: 0 | E16: 0 | F16: 0 | P16: Canlı Ağırlık Artışı : | Q16: =IF(ADG="","",CONCATENATE(ADG," g")) -> 
C17: 0 | E17: 0 | F17: 0 | P17: Tiftik Verimi : | Q17: =IF(Tiftik="","",CONCATENATE(Tiftik," kg")) -> 
C18: 0 | E18: 0 | F18: 0 | G18: Verim Yönü : | H18: Sütçü
C19: 0 | E19: 0 | F19: 0 | G19: Tipi : | H19: Dişi
C20: 0 | E20: 0 | F20: 0 | G20: Durumu : | H20: Erken Laktasyon
C21: 0 | E21: 0 | F21: 0 | G21: Yavru Sayısı : | H21: Tek | Q21: GÜNLÜK | R21: BESİN
C22: 0 | E22: 0 | F22: 0 | G22: Süt Verim Düzeyi : | P22: VERİLECEK YEMLER | Q22: MİKTAR,kg | R22: MADDELERİ | S22: İHTİYAÇ | T22: RASYON | U22: SONUÇ
C23: 0 | E23: 0 | F23: 0 | G23: Canlı Ağırlık : | H23: 55 | I23: kg | P23: Arpa Samanı | Q23: 1 | R23: =G4 -> KM,kg | S23: 1.32774 | T23: 1.3542948 | U23: TAMAM
C24: 0 | E24: 0 | F24: 0 | G24: Canlı Ağırlık Artışı : | I24: g/gün | P24: Mısır Silajı, Süt Olumu | Q24: 0.678205771 | R24: =G5 -> ME,Mcal | S24: 2.5464 | T24: 2.523482389 | U24: TAMAM
C25: 0 | E25: 0 | F25: 0 | G25: Tiftik Verimi : | I25: kg/yıl | P25: Mısır, Tane | Q25: 0.08974974153 | R25: Ham Protein,g | S25: 118.4425 | T25: 117.3765176 | U25: TAMAM
C26: 0 | E26: 0 | F26: 0 | P26: Ayçiçeği Küspesi, Kabuklu, %28 | Q26: 0.2132635876 | R26: Metabolik Protein | T26: 65.15737174
C27: 0 | E27: 0 | F27: 0 | P27: Mermer Tozu | Q27: 0.002971083927 | R27: Rumende Yıkılabilir Protein | T27: 65.15737174
C28: 0 | E28: 0 | F28: 0 | P28: Tuz | Q28: 0.001 | R28: Rumende Yıkımlanmayan Protein | T28: 52.92923244
C29: 0 | E29: 0 | F29: 0 | P29: Vitamin-Mineral Karması | Q29: 0.001 | R29: Ca,g | S29: 4.3187 | T29: 5.544724447 | U29: FAZLA
C30: 0 | E30: 0 | F30: 0 | R30: P,g | S30: 2.6731 | T30: 3.431959376 | U30: FAZLA
R31: Ca/P Oranı | S31: 1.615614829 | T31: 1.615614825 | U31: TAMAM
R32: Kaba Yem,%
R33: HS,%
R34: NDF,%
S40: Hazırlayan:
S41: Fİnal
Q49: 1.986190184 | R49: kg
P50: Kurum: | S50: Tarih:
P51: S.Ü.VET.FAK.HBBH.ABD | S51: 20.03.2019
CA279: 88 | CB279: 2,26 | CC279: 15,09 | CD279: 2,1 | CE279: 3 | CG279: ,75 | CH279: ,41 | CK279: 79 | CL279: 3,48 | CM279: 1,85 | CN279: 1,22
CA284: 88 | CB284: 286 | CC284: 16 | CD284: 10 | CE284: 0 | CF284: 0 | CG284: 8 | CH284: 48 | CI284: 59 | CJ284: 211 | CK284: 0 | CL284: 0 | CM284: 0 | CN284: 0 | CO284: 0 | CP284: 78 | CQ284: 0 | CR284: 0 | CS284: 6,1 | CT284: 0 | CU284: 0 | CV284: 0 | CW284: 0 | CX284: 0 | CY284: 0 | CZ284: 50 | DA284: 0 | DB284: 1
CA285: 88 | CB285: 286 | CC285: 16 | CD285: 10 | CE285: 0 | CF285: 0 | CG285: 8 | CH285: 48 | CI285: 59 | CJ285: 211 | CK285: 0 | CL285: 0 | CM285: 0 | CN285: 0 | CO285: 0 | CP285: 78 | CQ285: 0 | CR285: 0 | CS285: 6,1 | CT285: 0 | CU285: 0 | CV285: 0 | CW285: 0 | CX285: 0 | CY285: 0 | CZ285: 50 | DA285: 0 | DB285: 1
CA286: 88 | CB286: 2,86 | CC286: 16 | CD286: 10 | CE286: 0 | CF286: 0 | CG286: 8 | CH286: 48 | CI286: 59 | CJ286: 211 | CK286: 0 | CL286: 0 | CM286: 0 | CN286: 0 | CO286: 0 | CP286: 78 | CQ286: 0 | CR286: 0 | CS286: 61 | CT286: 0 | CU286: 0 | CV286: 0 | CW286: 0 | CX286: 0 | CY286: 0 | CZ286: 50 | DA286: 0 | DB286: 1

Sheet Rapor
B1: Keçiler İçin En Düşük Maliyetli | G1: Coşkun & İnal & İnal | T1: Keçinin verim yönü | V1: KEÇİNİN TANIMLANMASI | Z1: 2 | AA1: 3 | AB1: 4 | AC1: 5 | AD1: 6 | AE1: 7 | AF1: 8 | AG1: 9 | AH1: 10 | AI1: 11 | AZ1: Seçilen Yemler | DD1: Seçilen
B2: Rasyon Hazırlama Programı | T2: Sütçü | X2: VERİLECEK YEMLER | Y2: =SUM(Y5:Y30) -> 2.15 | AZ2: Toplu yem seçimi için kullanılır | BA2: HAYVANIN ÖZELLİĞİ | BB2: KM | BC2: ME | BD2: HP(20) | BE2: HP(40) | BF2: HP(60) | BG2: MP | BH2: DIP | BI2: Ca | BJ2: P | BK2: VitA,RE | BL2: VitE,IU | BM2: Na,g | BN2: Cl,g | BO2: K,g | BP2: Mg,g | BQ2: S,g | BR2: Co,mg | BS2: Cu,mg | BT2: I,mg | BU2: Fe,mg | BV2: Mn,mg | BW2: Se,mg | BX2: Zn,mg | BZ2: KURU KABA YEMLER | CA2: KM,% | CB2: ME, Mcal/kg | CC2: HP,% | CD2: MP,% | CE2: DIP,% | CF2: RUP,% | CG2: Ca,% | CH2: P,% | CI2: HS,% | CJ2: NDF,% | CK2: TSBM,% | CL2: SE, Mcal/kg | CM2: NEyp, Mcal/kg | CN2: NEb, Mcal/kg | CO2: NEl, Mcal/kg | CP2: ADF,% | CQ2: eNDF,% | CR2: HY,% | CS2: HK,% | CT2: K,% | CU2: Cl,% | CV2: S,% | CW2: Zn,ppm | CX2: VitA, RE/kg | CY2: VitE,ppm | CZ2: Fiyat,TL | DA2: En az | DB2: En çok | DD2: Yemler
B3: VERİLECEK YEMLER | C3: MİKTAR | D3: Fiyat,₺ | E3: Yemler için | G3: BESİN MAD. | H3: İHTİYAÇLAR | I3: RASYON | J3: SONUÇ | K3: KM'de % | M3: Gerekli Kesif Yem Miktarı | T3: Sütçü Olmayan | V3: =CONCATENATE(KeciVerimYonu,", ",KeciTipi,", ",KeciDurum,", ",KeciYavruSay,", ",SutVerimDuzey) -> Sütçü, Dişi, Erken Laktasyon, Tek, | Y3: Miktar | Z3: KM | AA3: ME | AB3: HP | AC3: MP | AD3: DIP | AE3: RUP | AF3: Ca | AG3: P | AH3: HS | AI3: NDF | BA3: Sütçü, Dişi, Yaşama Payı, , | BB3: =-0.000047*BW^2 + 0.0228*BW + 0.1565 -> 1.268325 | BC3: =-0.000086*BW^2 + 0.0429*BW + 0.3177 -> 2.41705 | BD3: =-0.002915*BW^2 + 1.4839*BW + 11.863 -> 84.659625 | BE3: =-0.003095*BW^2 + 1.4548*BW + 10.226 -> 80.877625 | BF3: =-0.002915*BW^2 + 1.3839*BW + 9.8631 -> 77.159725 | BG3: =-0.002083*BW^2 + 1.0113*BW + 7.6488 -> 56.969225 | BH3: =-0.002204*BW^2 + 1.0792*BW + 7.5893 -> 60.2782 | BI3: =-0.000089*BW^2 + 0.034*BW + 0.6601 -> 2.260875 | BJ3: =-0.000089*BW^2 + 0.034*BW + 0.2601 -> 1.860875 | BY3: 1 | BZ3: Adi Japon Üçgülü (Lespedeza) Kuru Otu | CA3: 92 | CB3: 2 | CC3: 14 | CD3: 9.8 | CE3: 9.6 | CF3: 8.4 | CG3: 1.1 | CH3: 0.22 | CI3: 30 | CK3: 54 | CL3: 2.4 | CM3: 1.2 | CN3: 0.4 | CO3: 1.2 | CR3: 3 | CS3: 7 | CT3: 1 | CV3: 0.19 | CW3: 29 | CX3: 8 | CZ3: 8 | DA3: 0 | DB3: 1 | DD3: Arpa, Tane
C4: =SUM(Y5:Y30) -> 2.15 | D4: =Keçi!D4 -> 10.5 | E4: En az | F4: En çok | G4: KM,kg | H4: =Keçi!H4 -> 1.855495 | I4: =Z32 -> 1.93 | J4: =IF(OR(H4="",H4=0)=TRUE," ",IF(I4>(H4*1.02),"FAZLA",IF(I4<(H4*0.99),"EKSİK","TAMAM"))) -> FAZLA | M4: ve KM'deki Bileşimi | T4: Tiftik Keçisi | AZ4: KİREÇTAŞI | BA4: Sütçü, Dişi, Flaşing, , | BB4: =-0.0000525*BW^2 + 0.0254*BW + 0.1686 -> 1.4067875 | BC4: =-0.000092*BW^2 + 0.0471*BW + 0.3539 -> 2.6661 | BD4: =-0.003213*BW^2 + 1.6345*BW + 12.762 -> 92.940175 | BE4: =-0.003213*BW^2 + 1.5702*BW + 12.298 -> 88.939675 | BF4: =-0.002975*BW^2 + 1.5036*BW + 11.369 -> 85.067625 | BG4: =-0.002438*BW^2 + 1.1363*BW + 7.5417 -> 62.66325 | BH4: =-0.0025*BW^2 + 1.2012*BW + 8.0595 -> 66.563 | BI4: =-0.00007*BW^2 + 0.0352*BW + 0.7155 -> 2.43975 | BJ4: =-0.000047*BW^2 + 0.0319*BW + 0.3893 -> 2.001625 | BY4: 2 | BZ4: Arpa Kuru Otu | CA4: 90 | CB4: 2.1 | CC4: 9 | CD4: 6.3 | CE4: 5.1 | CG4: 0.3 | CH4: 0.28 | CI4: 28 | CJ4: 65 | CK4: 57 | CL4: 2.5 | CM4: 1.3 | CN4: 0.6 | CO4: 1.3 | CP4: 37 | CQ4: 98 | CR4: 2.1 | CS4: 8 | CT4: 1.6 | CV4: 0.19 | CW4: 25 | CX4: 10.6 | CZ4: 5 | DA4: 0 | DB4: 1
A5: =Keçi!A5 -> 1 | B5: =Keçi!B5 -> Buğday Samanı | C5: =Keçi!C5 -> 1 | D5: =Keçi!D5 -> 1.5 | E5: =Keçi!E5 -> 0 | F5: =Keçi!F5 -> 1 | G5: ME,Mcal | H5: =Keçi!H5 -> 3.5542 | I5: =AA32 -> 3.70104 | J5: =IF(OR(H5="",H5=0)=TRUE," ",IF(I5>(H5*1.01),"FAZLA",IF(I5<(H5*0.99),"EKSİK","TAMAM"))) -> FAZLA | K5: =IF(I$5>0,CONCATENATE(TEXT((I5*1000)/I$4,"0")," kcal/kg"),"") -> 1918 kcal/kg | M5: Miktar,kg | O5: =(H23-I4)/0.89 -> -0.08371348315 | V5: Yem Grupları | X5: =Keçi!B5 -> Buğday Samanı | Y5: =IF(X5=0,0,C5) -> 1 | Z5: =IF($X5=0,0,VLOOKUP($B5,$BZ$3:$DB$533,Z$1,FALSE)) -> 91 | AA5: 1.5 | AB5: 3 | AC5: 2.1 | AD5: 0.3 | AE5: 1.8 | AF5: 0.16 | AG5: 0.05 | AH5: 43 | AI5: 81 | AZ5: VİTAMİN-MİNERAL KARMASI | BA5: Sütçü, Dişi, Erken Gebelik, Tek, | BB5: =-0.000053*BW^2 + 0.02515*BW + 0.2246 -> 1.447525 | BC5: =-0.00011*BW^2 + 0.048*BW + 0.4311 -> 2.73835 | BD5: =-0.00452*BW^2+ 2.0286*BW + 23.738 -> 121.638 | BE5: =-0.0047*BW^2 + 1.9804*BW + 21.649 -> 116.3535 | BF5: =-0.004702*BW^2 + 1.9161*BW + 20.185 -> 111.34695 | BG5: =-0.003689*BW^2 + 1.4369*BW + 14.071 -> 81.941275 | BH5: =-0.002617*BW^2+ 1.2048*BW + 10.536 -> 68.883575 | BI5: =-0.0001*BW^2 + 0.0379*BW + 2.7113 -> 4.4933 | BJ5: =-0.000077*BW^2 + 0.0353*BW + 1.1208 -> 2.829375 | BY5: 3 | BZ5: Arpa Samanı | CA5: 90 | CB5: 1.6 | CC5: 4 | CD5: 2.8 | CE5: 0.6 | CF5: 2.8 | CG5: 0.33 | CH5: 0.08 | CI5: 42 | CJ5: 78 | CK5: 4.3 | CL5: 1.9 | CM5: 1 | CN5: 0 | CO5: 0.9 | CP5: 52 | CQ5: 100 | CR5: 1.9 | CS5: 7 | CT5: 2.1 | CU5: 0.67 | CV5: 0.16 | CW5: 7 | CX5: 400 | CZ5: 1.5 | DA5: 0 | DB5: 1
A6: =Keçi!A6 -> 1 | B6: =Keçi!B6 -> Fiğ Kuru Otu | C6: =Keçi!C6 -> 0.8 | D6: =Keçi!D6 -> 6 | E6: =Keçi!E6 -> 0 | F6: =Keçi!F6 -> 1 | G6: Ham Protein,g | H6: =Keçi!H6 -> 199.2275012 | I6: =AB32 -> 200.9516 | J6: =IF(OR(H6="",H6=0)=TRUE," ",IF(I6>(H6*1.01),"FAZLA",IF(I6<(H6*0.99),"EKSİK","TAMAM"))) -> TAMAM | K6: =IF(I6>0,CONCATENATE(TEXT(I6/(I$4*1000)*100,"0,0")),"") -> 10,4 | M6: HP,% | O6: =((H25-I6)/10)/($H23-$I4) -> 2.314071203 | V6: Kuru Kaba Yemler | X6: =Keçi!B6 -> Fiğ Kuru Otu | Y6: 0.8 | Z6: 89 | AA6: 2.1 | AB6: 18 | AC6: 12.6 | AD6: 13.2 | AE6: 2.5 | AF6: 1.25 | AG6: 0.34 | AH6: 30 | AI6: 48 | AZ6: TUZ | BA6: Sütçü, Dişi, Erken Gebelik, İkiz, | BB6: =-0.0000535*BW^2+0.0263*BW + 0.258 -> 1.5426625 | BC6: =-0.000101*BW^2 + 0.0501*BW + 0.4989 -> 2.948875 | BD6: =-0.00702*BW^2 + 2.5536*BW + 20.988 -> 140.2005 | BE6: =-0.006844*BW^2 + 2.4494*BW + 19.958 -> 133.9719 | BF6: =-0.006547*BW^2 + 2.3512*BW + 18.679 -> 128.190325 | BG6: =-0.00488*BW^2 + 1.7345*BW + 13.679 -> 94.3145 | BH6: =-0.002497*BW^2 + 1.2464*BW + 12.571 -> 73.569575 | BI6: =-0.000172*BW^2 + 0.0484*BW + 4.0387 -> 6.1804 | BJ6: =-0.000157*BW^2 + 0.0461*BW + 1.4905 -> 3.551075 | BY6: 4 | BZ6: Ayçiçeği Tohumu Kabukları | CA6: 90 | CB6: 1.4 | CC6: 4 | CD6: 2.8 | CE6: 0.6 | CF6: 2.6 | CG6: 0 | CH6: 0.11 | CI6: 52 | CJ6: 73 | CK6: 40 | CL6: 1.8 | CM6: 0.9 | CN6: 0 | CO6: 0.8 | CP6: 63 | CQ6: 90 | CR6: 2.2 | CS6: 3 | CT6: 0.2 | CV6: 0.19 | CW6: 200 | CZ6: 3 | DA6: 0 | DB6: 1
A7: =Keçi!A7 -> 4 | B7: =Keçi!B7 -> KOYUN SÜT YEMİ | C7: =Keçi!C7 -> 0.35 | D7: =Keçi!D7 -> 12 | E7: =Keçi!E7 -> 0 | F7: =Keçi!F7 -> 1 | G7: Metabolik Protein | I7: =AC32 -> 139.622 | K7: =AC32/Z32/10 -> 7.234300518 | M7: ME,Mcal | O7: =(H24-I5)/($H23-$I4) -> 1.970874438 | T7: Keçinin tipi | V7: Sulu Kaba Yemler | X7: =Keçi!B7 -> KOYUN SÜT YEMİ | Y7: 0.35 | Z7: 88 | AA7: 2.73 | AB7: 14.77 | AC7: 10 | AD7: 0 | AE7: 0 | AF7: 1.02 | AG7: 0.45 | AH7: 7.95 | AI7: 25 | BA7: Sütçü, Dişi, Erken Gebelik, Üçüz, | BB7: =-0.000047*BW^2 + 0.0259*BW + 0.3107 -> 1.593025 | BC7: =-0.000085*BW^2 + 0.0492*BW + 0.5986 -> 3.047475 | BD7: =-0.0044*BW^2 + 2.3107*BW + 36.405 -> 150.1835 | BE7: =-0.003808*BW^2 + 2.1571*BW + 36.238 -> 143.3593 | BF7: =-0.00357*BW^2 + 2.05*BW + 35.143 -> 137.09375 | BG7: =-0.002617*BW^2 + 1.5214*BW + 25.048 -> 100.808575 | BH7: =-0.002022*BW^2 + 1.2036*BW + 15.881 -> 75.96245 | BI7: =-0.000059*BW^2 + 0.0361*BW + 5.7595 -> 7.566525 | BJ7: =-0.000023*BW^2 + 0.0307*BW + 2.5095 -> 4.128425 | BY7: 5 | BZ7: Badem Kabukları | CA7: 89 | CB7: 2.1 | CC7: 5 | CD7: 3.5 | CE7: 1.5 | CF7: 3 | CG7: 0.25 | CH7: 0.1 | CI7: 16 | CJ7: 35 | CK7: 59 | CL7: 2.6 | CM7: 1.3 | CN7: 0.6 | CO7: 1.3 | CP7: 27 | CQ7: 100 | CR7: 3.3 | CS7: 7 | CT7: 2 | CU7: 0.03 | CV7: 0.07 | CW7: 20 | CZ7: 3 | DA7: 0 | DB7: 1
A8: =Keçi!A8 -> 0 | B8: =Keçi!B8 -> 0 | C8: =Keçi!C8 -> 0 | D8: =Keçi!D8 -> 0 | E8: =Keçi!E8 -> 0 | F8: =Keçi!F8 -> 0 | G8: Rumende Yıkılabilir Protein | I8: =AD32 -> 96.714 | K8: =(AD32/Z32/10) -> 5.011088083 | M8: Ca,% | O8: =((H29-I10)/10)/($H23-$I4) -> 9.783739346 | T8: Dişi | V8: Silajlar | X8: =Keçi!B8 -> 0 | Y8: 0 | Z8: 0 | AA8: 0 | AB8: 0 | AC8: 0 | AD8: 0 | AE8: 0 | AF8: 0 | AG8: 0 | AH8: 0 | AI8: 0 | BA8: Sütçü, Dişi, Geç Gebelik, Tek, | BB8: =- 0.000069*BW^2 + 0.0356*BW - 0.0834 -> 1.665875 | BC8: =-0.000131*BW^2 + 0.0579*BW + 0.6287 -> 3.416925 | BD8: =-0.01119*BW^2 + 3.5048*BW + 15.964 -> 174.87825 | BE8: =-0.010892*BW^2 + 3.3708*BW + 14.649 -> 167.0947 | BF8: =-0.01006*BW^2 + 3.1792*BW + 14.982 -> 159.4065 | BG8: =-0.007618*BW^2 + 2.3667*BW + 10.381 -> 117.50505 | BH8: =-0.00357*BW^2 + 1.4738*BW + 15.119 -> 85.37875 | BI8: =-0.000243*BW^2 + 0.0648*BW + 2.0637 -> 4.892625 | BJ8: =-0.000154*BW^2 + 0.0544*BW + 0.6571 -> 3.18325 | BY8: 6 | BZ8: Bezelye Kuru Otu | CA8: 89 | CB8: 2.2 | CC8: 10 | CD8: 7 | CE8: 6 | CG8: 1.2 | CH8: 0.21 | CI8: 32 | CJ8: 62 | CK8: 60 | CL8: 2.6 | CM8: 1.3 | CN8: 0.7 | CO8: 1.3 | CP8: 52 | CQ8: 92 | CR8: 1.8 | CS8: 7 | CT8: 1.2 | CV8: 0.2 | CW8: 20 | CZ8: 10 | DA8: 0 | DB8: 1
A9: =Keçi!A9 -> 0 | B9: =Keçi!B9 -> 0 | C9: =Keçi!C9 -> 0 | D9: =Keçi!D9 -> 0 | E9: =Keçi!E9 -> 0 | F9: =Keçi!F9 -> 0 | G9: Rumende Yıkımlanmayan Protein | I9: =AE32 -> 34.18 | K9: =AE32/Z32/10 -> 1.770984456 | M9: P,% | O9: =((H30-I11)/10)/($H23-$I4) -> 0.112442118 | T9: Erkek | V9: Enerji Kaynakları | X9: =Keçi!B9 -> 0 | Y9: 0 | Z9: 0 | AA9: 0 | AB9: 0 | AC9: 0 | AD9: 0 | AE9: 0 | AF9: 0 | AG9: 0 | AH9: 0 | AI9: 0 | BA9: Sütçü, Dişi, Geç Gebelik, İkiz, | BB9: =- 0.000068*BW^2 + 0.0351*BW + 0.0071 -> 1.7319 | BC9: =-0.000126*BW^2 + 0.0621*BW + 0.78 -> 3.81435 | BD9: =0.0004752*BW^3 - 0.078*BW^2 + 6.4418*BW + 1.4048 -> 198.8152 | BE9: =0.0004481*BW^3 - 0.07365*BW^2+ 6.1172*BW + 1.5238 -> 189.7311875 | BF9: =0.0004034*BW^3 - 0.0665*BW^2 + 5.6703*BW + 3.9048 -> 181.724475 | BG9: =0.000286*BW^3 - 0.05*BW^2 + 4.353*BW - 0.119 -> 135.62925 | BH9: =-0.00333*BW^2 + 1.5571*BW + 19.69 -> 95.25725 | BI9: =0.000162*BW^2 + 0.0198*BW + 4.5768 -> 6.15585 | BJ9: =0.000156*BW^2 + 0.0189*BW + 2.0345 -> 3.5459 | BY9: 7 | BZ9: Bezelye Samanı | CA9: 89 | CB9: 1.8 | CC9: 7 | CD9: 4.9 | CE9: 3.3 | CG9: 0.6 | CH9: 0.15 | CI9: 42 | CJ9: 72 | CK9: 50 | CL9: 2.2 | CM9: 1.1 | CN9: 0.3 | CO9: 1.1 | CP9: 49 | CQ9: 98 | CR9: 1.3 | CS9: 7 | CT9: 1.1 | CV9: 0.15 | CZ9: 3 | DA9: 0 | DB9: 1
A10: =Keçi!A10 -> 0 | B10: =Keçi!B10 -> 0 | C10: =Keçi!C10 -> 0 | D10: =Keçi!D10 -> 0 | E10: =Keçi!E10 -> 0 | F10: =Keçi!F10 -> 0 | G10: Ca,g | H10: =Keçi!H10 -> 6.208225 | I10: =AF32 -> 13.4976 | J10: =IF(OR(H10="",H10=0)=TRUE," ",IF(I10>(H10*1.01),"FAZLA",IF(I10<(H10*0.99),"EKSİK","TAMAM"))) -> FAZLA | K10: =IF(I10>0,CONCATENATE(TEXT(I10/(I$4*1000)*100,"0,00")),"") -> 0,70 | T10: Oğlak | V10: Yan Ürünler | X10: =Keçi!B10 -> 0 | Y10: 0 | Z10: 0 | AA10: 0 | AB10: 0 | AC10: 0 | AD10: 0 | AE10: 0 | AF10: 0 | AG10: 0 | AH10: 0 | AI10: 0 | BA10: Sütçü, Dişi, Geç Gebelik, Üçüz, | BB10: =- 0.000068*BW^2 + 0.0349*BW + 0.045 -> 1.7588 | BC10: =-0.000103*BW^2+ 0.061*BW + 0.98 -> 4.023425 | BD10: =-0.00678*BW^2 + 3.475*BW + 47.786 -> 218.4015 | BE10: =-0.005355*BW^2 + 3.1821*BW + 49.357 -> 208.173625 | BF10: =-0.00476*BW^2 + 3*BW + 48.333 -> 198.934 | BG10: =-0.004282*BW^2 + 2.3071*BW + 32.714 -> 146.65145 | BH10: =-0.002379*BW^2 + 1.5071*BW + 24.524 -> 100.218025 | BI10: =-0.00007*BW^2+ 0.0421*BW + 5.4429 -> 7.54665 | BJ10: =-0.00007*BW^2 + 0.0421*BW + 2.0143 -> 4.11805 | BY10: 8 | BZ10: Beyaz Üçgül (Clover Ladino) Kuru Otu | CA10: 90 | CB10: 2.2 | CC10: 21 | CD10: 14.7 | CE10: 15.9 | CF10: 5.3 | CG10: 1.35 | CH10: 0.32 | CI10: 22 | CJ10: 36 | CK10: 61 | CL10: 2.7 | CM10: 1.4 | CN10: 0.7 | CO10: 1.3 | CP10: 32 | CQ10: 92 | CR10: 2 | CS10: 9 | CT10: 2.4 | CU10: 0.3 | CV10: 0.2 | CW10: 17 | CX10: 16.6 | CZ10: 8 | DA10: 0 | DB10: 1
A11: =Keçi!A11 -> 0 | B11: =Keçi!B11 -> 0 | C11: =Keçi!C11 -> 0 | D11: =Keçi!D11 -> 0 | E11: =Keçi!E11 -> 0 | F11: =Keçi!F11 -> 0 | G11: P,g | H11: =Keçi!H11 -> 4.178025 | I11: =AG32 -> 4.2618 | J11: =IF(OR(H11="",H11=0)=TRUE," ",IF(I11>(H11*1.01),"FAZLA",IF(I11<(H11*0.99),"EKSİK","TAMAM"))) -> FAZLA | K11: =IF(I11>0,CONCATENATE(TEXT(I11/(I$4*1000)*100,"0,00")),"") -> 0,22 | V11: Protein Kaynakları | X11: =Keçi!B11 -> 0 | Y11: 0 | Z11: 0 | AA11: 0 | AB11: 0 | AC11: 0 | AD11: 0 | AE11: 0 | AF11: 0 | AG11: 0 | AH11: 0 | AI11: 0 | BA11: Sütçü, Dişi, Erken Laktasyon, Tek, | BB11: =-0.0000522*BW^2 + 0.0302*BW + 0.3524 -> 1.855495 | BC11: =-0.000104*BW^2 + 0.0581*BW + 0.6733 -> 3.5542 | BD11: =-0.006423*BW^2 + 3.1643*BW + 49.143 -> 203.749925 | BE11: =-0.0063089*BW^2 + 3.0321*BW + 47.024 -> 194.7050775 | BF11: =-0.006665*BW^2 + 2.9714*BW + 43.238 -> 186.503375 | BG11: =-0.0044*BW^2 + 2.125*BW + 33.405 -> 136.97 | BH11: =-0.003213*BW^2 + 1.5179*BW + 15.357 -> 89.122175 | BI11: =-0.000083*BW^2 + 0.0432*BW + 4.0833 -> 6.208225 | BJ11: =-0.000035*BW^2 + 0.0375*BW + 2.2214 -> 4.178025 | BY11: 9 | BZ11: Brom Otu (Bromegrass) Kuru Otu | CA11: 89 | CB11: 2 | CC11: 10 | CD11: 7 | CE11: 6 | CF11: 33 | CG11: 0.4 | CH11: 0.23 | CI11: 35 | CJ11: 66 | CK11: 55 | CL11: 2.4 | CM11: 1.2 | CN11: 0.5 | CO11: 1.2 | CP11: 41 | CQ11: 98 | CR11: 2.3 | CS11: 9 | CT11: 1.9 | CU11: 0.4 | CV11: 0.19 | CW11: 19 | CX11: 6.8 | CZ11: 8 | DA11: 0 | DB11: 1
A12: =Keçi!A12 -> 0 | B12: =Keçi!B12 -> 0 | C12: =Keçi!C12 -> 0 | D12: =Keçi!D12 -> 0 | E12: =Keçi!E12 -> 0 | F12: =Keçi!F12 -> 0 | G12: Ca/P Oranı | H12: =Keçi!H12 -> 1.485923373 | I12: =I10/I11 -> 3.167112488 | J12: =IF(OR(H12="",H12=0)=TRUE," ",IF(I12>(H12*1.01),"FAZLA",IF(I12<(H12*0.99),"EKSİK","TAMAM"))) -> FAZLA | V12: Vitamin-Mineral ve Katkı Maddeleri | X12: =Keçi!B12 -> 0 | Y12: 0 | Z12: 0 | AA12: 0 | AB12: 0 | AC12: 0 | AD12: 0 | AE12: 0 | AF12: 0 | AG12: 0 | AH12: 0 | AI12: 0 | BA12: Sütçü, Dişi, Erken Laktasyon, İkiz, | BB12: =-0.0000736*BW^2 + 0.0392*BW + 0.5208 -> 2.45416 | BC12: =-0.000136*BW^2 + 0.0743*BW + 1.022 -> 4.6971 | BD12: =-0.00982*BW^2 + 4.7968*BW + 89.236 -> 323.3545 | BE12: =-0.009285*BW^2+ 4.5671*BW + 85.743 -> 308.846375 | BF12: =-0.009285*BW^2 + 4.4129*BW + 80.771 -> 295.393375 | BG12: =-0.0066*BW^2 + 3.2246*BW + 59.907 -> 217.295 | BH12: =-0.00339*BW^2 + 1.8582*BW + 25.207 -> 117.15325 | BI12: =-0.0000717*BW^2 + 0.0496*BW + 7.6171 -> 10.1282075 | BJ12: =0.04*BW + 4.3 -> 6.5 | BY12: 10 | BZ12: Buğday Kuru Otu | CA12: 90 | CB12: 2.1 | CC12: 9 | CD12: 6.3 | CE12: 5.1 | CF12: 2.3 | CG12: 0.21 | CH12: 0.22 | CI12: 29 | CJ12: 66 | CK12: 57 | CL12: 2.5 | CM12: 1.3 | CN12: 0.6 | CO12: 1.3 | CP12: 38 | CQ12: 98 | CR12: 2 | CS12: 8 | CT12: 1.4 | CU12: 0.5 | CV12: 0.19 | CW12: 23 | CX12: 17 | CZ12: 6 | DA12: 0 | DB12: 1
A13: =Keçi!A13 -> 0 | B13: =Keçi!B13 -> 0 | C13: =Keçi!C13 -> 0 | D13: =Keçi!D13 -> 0 | E13: =Keçi!E13 -> 0 | F13: =Keçi!F13 -> 0 | G13: Kaba Yem,% | K13: =IF(Y32=0,0,Y32/I4*100) -> 84.04145078 | T13: Yavru sayısı | X13: =Keçi!B13 -> 0 | Y13: 0 | Z13: 0 | AA13: 0 | AB13: 0 | AC13: 0 | AD13: 0 | AE13: 0 | AF13: 0 | AG13: 0 | AH13: 0 | AI13: 0 | BA13: Sütçü, Dişi, Erken Laktasyon, Üçüz, | BB13: =-0.00006048*BW^3 + 0.0127*BW^2 - 0.8158*BW + 18.9 -> 2.38614 | BC13: =-0.000164*BW^2 + 0.0903*BW + 1.3649 -> 5.8353 | BD13: =-0.002416*BW^3 + 0.51959*BW^2 - 31.133*BW + 955.97 -> 413.45275 | BE13: =-0.0021662*BW^3 + 0.4671*BW^2 - 27.783*BW + 870.37 -> 394.880975 | BF13: =-0.0020828*BW^3 + 0.4489*BW^2 - 26.717*BW + 836.11 -> 378.07165 | BG13: =-0.0016*BW^3 + 0.3411*BW^2 - 20.417*BW + 632.89 -> 275.5825 | BH13: =-0.004998*BW^2 + 2.39*BW + 29.2 -> 145.53105 | BI13: =-0.00008294*BW^3 + 0.0184*BW^2 - 1.2517*BW + 39.974 -> 12.9913575 | BJ13: =0.000786*BW^2 - 0.037*BW + 7.6229 -> 7.96555 | BY13: 11 | BZ13: Buğday Samanı | CA13: 91 | CB13: 1.5 | CC13: 3 | CD13: 2.1 | CE13: 0.3 | CF13: 1.8 | CG13: 0.16 | CH13: 0.05 | CI13: 43 | CJ13: 81 | CK13: 42 | CL13: 1.9 | CM13: 0.9 | CN13: 0 | CO13: 0.9 | CP13: 58 | CQ13: 98 | CR13: 1.8 | CS13: 8 | CT13: 1.3 | CU13: 0.32 | CV13: 0.17 | CW13: 6 | CX13: 400 | CZ13: 1.5 | DA13: 0 | DB13: 1
A14: =Keçi!A14 -> 0 | B14: =Keçi!B14 -> 0 | C14: =Keçi!C14 -> 0 | D14: =Keçi!D14 -> 0 | E14: =Keçi!E14 -> 0 | F14: =Keçi!F14 -> 0 | G14: HS,% | K14: =AH32/Z32*100 -> 32.61067358 | T14: Tek | X14: =Keçi!B14 -> 0 | Y14: 0 | Z14: 0 | AA14: 0 | AB14: 0 | AC14: 0 | AD14: 0 | AE14: 0 | AF14: 0 | AG14: 0 | AH14: 0 | AI14: 0 | BA14: Sütçü, Dişi, Erken Laktasyon, Sağılıyor, Düşük | BB14: =0.0000025*BW^3 - 0.000562*BW^2 + 0.07*BW - 0.146 -> 2.4198875 | BC14: =-0.0002069*BW^2 + 0.1081*BW + 1.6614 -> 6.9810275 | BD14: =-0.002*BW^3 + 0.393574*BW^2 - 19.05*BW + 703.69 -> 513.75135 | BE14: =-0.0257*BW^2+ 9.28*BW + 61.343 -> 494.0005 | BF14: =-0.025*BW^2 + 8.95*BW + 55.2 -> 471.825 | BG14: =-0.01785*BW^2 + 6.53*BW + 41.971 -> 347.12475 | BH14: =-0.006426*BW^2 + 2.87*BW + 35.686 -> 174.09735 | BI14: =-0.00007433*BW^3 + 0.0152*BW^2 - 0.94*BW + 34.32 -> 16.23334625 | BJ14: =-0.000067*BW^3 + 0.013597*BW^2 - 0.8333*BW + 25.446 -> 9.5983 | BY14: 12 | BZ14: Buğday Samanı, Amonyakla muamele | CA14: 85 | CB14: 1.8 | CC14: 9 | CD14: 6.3 | CE14: 5.1 | CF14: 2.3 | CG14: 0.15 | CH14: 0.05 | CI14: 40 | CJ14: 76 | CK14: 50 | CL14: 2.2 | CM14: 1.1 | CN14: 0.3 | CO14: 1.1 | CP14: 55 | CQ14: 98 | CR14: 1.5 | CS14: 9 | CT14: 1.3 | CU14: 0.3 | CV14: 0.16 | CW14: 6 | CZ14: 2 | DA14: 0 | DB14: 1
A15: =Keçi!A15 -> 0 | B15: =Keçi!B15 -> 0 | C15: =Keçi!C15 -> 0 | D15: =Keçi!D15 -> 0 | E15: =Keçi!E15 -> 0 | F15: =Keçi!F15 -> 0 | G15: NDF,% | K15: =AI32/Z32*100 -> 59.88911917 | T15: İkiz | X15: =Keçi!B15 -> 0 | Y15: 0 | Z15: =IF($X15=0,0,VLOOKUP($B15,$BZ$3:$DB$533,Z$1,FALSE)) -> 0 | AA15: 0 | AB15: 0 | AC15: 0 | AD15: 0 | AE15: 0 | AF15: 0 | AG15: 0 | AH15: 0 | AI15: 0 | BA15: Sütçü, Dişi, Erken Laktasyon, Sağılıyor, Orta | BB15: =-0.0000785*BW^2 + 0.0427*BW + 0.7217 -> 2.8327375 | BC15: =-0.0002355*BW^2 + 0.1241*BW + 2.0071 -> 8.1202125 | BD15: =-0.01714*BW^2 + 8.64*BW + 203.03 -> 626.3815 | BE15: =-0.015713*BW^2 + 8.16*BW + 196.54 -> 597.808175 | BF15: =-0.016428*BW^2+ 8.01*BW + 180.89 -> 571.7453 | BG15: =-0.01214*BW^2+ 5.89*BW + 134.03 -> 421.2565 | BH15: =-0.006426*BW^2 + 3.17*BW + 47.686 -> 202.59735 | BI15: =-0.000214*BW^2 + 0.075*BW + 16.483 -> 19.96065 | BJ15: =-0.000142*BW^2 + 0.062*BW + 8.6686 -> 11.64905 | BY15: 13 | BZ15: Çavdar Samanı | CA15: 89 | CB15: 1.6 | CC15: 4 | CD15: 2.8 | CE15: 0.6 | CG15: 0.24 | CH15: 0.09 | CI15: 44 | CJ15: 71 | CK15: 44 | CL15: 1.9 | CM15: 1 | CN15: 0 | CO15: 0.9 | CP15: 55 | CQ15: 100 | CR15: 1.5 | CS15: 6 | CT15: 1 | CU15: 0.24 | CV15: 0.11 | CZ15: 3 | DA15: 0 | DB15: 1
A16: =Keçi!A16 -> 0 | B16: =Keçi!B16 -> 0 | C16: =Keçi!C16 -> 0 | D16: =Keçi!D16 -> 0 | E16: =Keçi!E16 -> 0 | F16: =Keçi!F16 -> 0 | T16: Üçüz | X16: =Keçi!B16 -> 0 | Y16: 0 | Z16: 0 | AA16: 0 | AB16: 0 | AC16: 0 | AD16: 0 | AE16: 0 | AF16: 0 | AG16: 0 | AH16: 0 | AI16: 0 | BA16: Sütçü, Dişi, Erken Laktasyon, Sağılıyor, Yüksek | BB16: =-0.0001*BW^2 + 0.05*BW + 0.78 -> 3.2275 | BC16: =-0.00026*BW^2 + 0.1401*BW + 2.3589 -> 9.2779 | BD16: =-0.02214*BW^2 + 10.43*BW + 231.23 -> 737.9065 | BE16: =-0.02*BW^2 + 9.78*BW + 227.4 -> 704.8 | BF16: =-0.017855*BW^2 + 9.19*BW + 222.37 -> 673.808625 | BG16: =-0.01428*BW^2 + 6.92*BW + 158.86 -> 496.263 | BH16: =-0.006426*BW^2 + 3.47*BW + 59.686 -> 231.09735 | BI16: =0.05*BW + 20.9 -> 23.65 | BJ16: =-0.000142*BW^2 + 0.068*BW + 10.449 -> 13.75945 | BY16: 14 | BZ16: Çayır Kelp Kuyruğu (Timothy) Kuru Otu, Çiçek Başı | CA16: 88 | CB16: 2.1 | CC16: 11 | CD16: 7.7 | CE16: 6.9 | CF16: 2.4 | CG16: 0.58 | CH16: 0.26 | CI16: 32 | CJ16: 63 | CK16: 59 | CL16: 2.6 | CM16: 1.3 | CN16: 0.6 | CO16: 1.3 | CP16: 39 | CQ16: 98 | CR16: 2.7 | CS16: 6 | CT16: 1.9 | CU16: 0.51 | CV16: 0.21 | CW16: 30 | CX16: 5.6 | CY16: 38 | CZ16: 11 | DA16: 0 | DB16: 1
A17: =Keçi!A17 -> 0 | B17: =Keçi!B17 -> 0 | C17: =Keçi!C17 -> 0 | D17: =Keçi!D17 -> 0 | E17: =Keçi!E17 -> 0 | F17: =Keçi!F17 -> 0 | T17: Sağılıyor | X17: =Keçi!B17 -> 0 | Y17: 0 | Z17: 0 | AA17: 0 | AB17: 0 | AC17: 0 | AD17: 0 | AE17: 0 | AF17: 0 | AG17: 0 | AH17: 0 | AI17: 0 | BA17: Sütçü, Dişi, Orta Laktasyon, Tek, | BB17: =-0.00006*BW^2 + 0.03*BW + 0.366 -> 1.8345 | BC17: =-0.000111*BW^2 + 0.0569*BW + 0.7205 -> 3.514225 | BD17: =-0.00607*BW^2+ 2.8179*BW + 46.257 -> 182.87975 | BE17: =-0.005833*BW^2+ 2.7036*BW +43.548 -> 174.601175 | BF17: =-0.00583*BW^2 + 2.6107*BW + 41.262 -> 167.21475 | BG17: =-0.003808*BW^2 + 1.8643*BW + 31.952 -> 122.9693 | BH17: =-0.002974*BW^2 + 1.4393*BW + 17.69 -> 87.85515 | BI17: =-0.000059*BW^2 + 0.0382*BW + 4.231 -> 6.153525 | BJ17: =-0.000059*BW^2 + 0.0382*BW + 2.231 -> 4.153525 | BY17: 15 | BZ17: Çayır Kelp Kuyruğu (Timothy) Kuru Otu, Tam Çiçeklenme | CA17: 88 | CB17: 2.1 | CC17: 8 | CD17: 5.6 | CE17: 4.2 | CF17: 2.4 | CG17: 0.43 | CH17: 0.2 | CI17: 34 | CJ17: 65 | CK17: 57 | CL17: 2.5 | CM17: 1.3 | CN17: 0.6 | CO17: 1.3 | CP17: 40 | CQ17: 98 | CR17: 2.6 | CS17: 5 | CT17: 1.8 | CU17: 0.62 | CV17: 0.13 | CW17: 25 | CZ17: 11 | DA17: 0 | DB17: 1
A18: =Keçi!A18 -> 0 | B18: =Keçi!B18 -> 0 | C18: =Keçi!C18 -> 0 | D18: =Keçi!D18 -> 0 | E18: =Keçi!E18 -> 0 | F18: =Keçi!F18 -> 0 | X18: =Keçi!B18 -> 0 | Y18: 0 | Z18: 0 | AA18: 0 | AB18: 0 | AC18: 0 | AD18: 0 | AE18: 0 | AF18: 0 | AG18: 0 | AH18: 0 | AI18: 0 | BA18: Sütçü, Dişi, Orta Laktasyon, İkiz, | BB18: =-0.0000667*BW^2 + 0.036*BW + 0.6276 -> 2.4058325 | BC18: =-0.000131*BW^2 + 0.0697*BW + 1.1664 -> 4.603625 | BD18: =-0.008925*BW^2 + 4.1121*BW + 81.871 -> 281.038375 | BE18: =-0.008213*BW^2+ 3.8964*BW + 78.5 -> 267.957675 | BF18: =-0.00732*BW^2 + 3.6404*BW + 78.279 -> 256.358 | BG18: =-0.00482*BW^2 + 2.6182*BW + 59.093 -> 188.5135 | BH18: =-0.004105*BW^2 + 1.8482*BW + 25.75 -> 114.983375 | BI18: =-0.0001775*BW^2 + 0.0606*BW + 7.2814 -> 10.0774625 | BJ18: =-0.000089*BW^2 + 0.0476*BW + 4.1421 -> 6.490875 | BY18: 16 | BZ18: Çayır Kuru Otu | CA18: 88 | CB18: 2.1 | CC18: 10 | CD18: 7 | CE18: 6 | CF18: 3 | CG18: 0.6 | CH18: 0.21 | CI18: 33 | CJ18: 63 | CK18: 58 | CL18: 2.6 | CM18: 1.3 | CN18: 0.6 | CO18: 1.3 | CP18: 41 | CQ18: 98 | CR18: 3 | CS18: 6 | CT18: 2 | CV18: 0.2 | CW18: 28 | CZ18: 11 | DA18: 0 | DB18: 1
A19: =Keçi!A19 -> 0 | B19: =Keçi!B19 -> 0 | C19: =Keçi!C19 -> 0 | D19: =Keçi!D19 -> 0 | E19: =Keçi!E19 -> 0 | F19: =Keçi!F19 -> 0 | X19: =Keçi!B19 -> 0 | Y19: 0 | Z19: 0 | AA19: 0 | AB19: 0 | AC19: 0 | AD19: 0 | AE19: 0 | AF19: 0 | AG19: 0 | AH19: 0 | AI19: 0 | BA19: Sütçü, Dişi, Orta Laktasyon, Üçüz, | BB19: =-0.0000857*BW^2 + 0.0438*BW + 0.8331 -> 2.9828575 | BC19: =-0.000178*BW^2 + 0.0859*BW + 1.5137 -> 5.69975 | BD19: =-0.012855*BW^2 + 5.54*BW + 113.37 -> 379.183625 | BE19: =-0.012143*BW^2 + 5.27*BW + 109.03 -> 362.147425 | BF19: =-0.011428*BW^2 + 5.02*BW + 104.69 -> 346.2203 | BG19: =-0.00714*BW^2 + 3.52*BW + 83.029 -> 255.0305 | BH19: =-0.004285*BW^2 + 2.12*BW + 38.857 -> 142.494875 | BI19: =-0.000214*BW^2+ 0.075*BW + 10.483 -> 13.96065 | BJ19: =-0.000071*BW^2+ 0.055*BW + 5.9343 -> 8.744525 | BY19: 17 | BZ19: Çayır Kuru Otu (Meadow) | CA19: 90 | CB19: 1.8 | CC19: 7 | CD19: 4.9 | CE19: 3.3 | CF19: 1.6 | CG19: 0.61 | CH19: 0.18 | CI19: 33 | CJ19: 70 | CK19: 50 | CL19: 2.2 | CM19: 1.1 | CN19: 0.3 | CO19: 1.1 | CP19: 44 | CQ19: 98 | CR19: 2.5 | CS19: 9 | CT19: 1.6 | CV19: 0.17 | CW19: 24 | CZ19: 11 | DA19: 0 | DB19: 1
A20: =Keçi!A20 -> 0 | B20: =Keçi!B20 -> 0 | C20: =Keçi!C20 -> 0 | D20: =Keçi!D20 -> 0 | E20: =Keçi!E20 -> 0 | F20: =Keçi!F20 -> 0 | T20: Süt Verimi Düzeyi | X20: =Keçi!B20 -> 0 | Y20: 0 | Z20: 0 | AA20: 0 | AB20: 0 | AC20: 0 | AD20: 0 | AE20: 0 | AF20: 0 | AG20: 0 | AH20: 0 | AI20: 0 | BA20: Sütçü, Dişi, Orta Laktasyon, Sağılıyor, Düşük | BB20: =- 0.000036*BW^3 + 0.007345*BW^2 - 0.4387*BW + 10.679 -> 2.779625 | BC20: =-0.000192*BW^2 + 0.0979*BW + 1.9886 -> 6.7923 | BD20: =-0.0028335*BW^3 + 0.56435*BW^2 - 30.917*BW + 912.94 -> 448.2401875 | BE20: =-0.042267*BW^2 + 10.946*BW - 35.418 -> 438.754325 | BF20: =-0.0271*BW^2 + 8.8*BW + 11.629 -> 413.6515 | BG20: =-0.021427*BW^2 + 6.66*BW + 3.4857 -> 304.969025 | BH20: =-0.003572*BW^2 + 2.27*BW + 55.514 -> 169.5587 | BI20: =-0.000785*BW^2 + 0.189*BW + 9.0371 -> 17.057475 | BJ20: =- 0.0005*BW^2 + 0.145*BW + 3.86 -> 10.3225 | BY20: 18 | BZ20: Çayır Kuru Otu (Prairie) | CA20: 91 | CB20: 1.8 | CC20: 7 | CD20: 4.9 | CE20: 3.3 | CF20: 2.6 | CG20: 0.4 | CH20: 0.15 | CI20: 34 | CJ20: 67 | CK20: 50 | CL20: 2.2 | CM20: 1.1 | CN20: 0.3 | CO20: 1.1 | CP20: 47 | CQ20: 98 | CR20: 2 | CS20: 8 | CT20: 1.1 | CU20: 0.06 | CV20: 0.06 | CW20: 34 | CX20: 4.8 | CZ20: 11 | DA20: 0 | DB20: 1
A21: =Keçi!A21 -> 0 | B21: =Keçi!B21 -> 0 | C21: =Keçi!C21 -> 0 | D21: =Keçi!D21 -> 0 | E21: =Keçi!E21 -> 0 | F21: =Keçi!F21 -> 0 | J21: KEÇİ | T21: Düşük | X21: =Keçi!B21 -> 0 | Y21: 0 | Z21: 0 | AA21: 0 | AB21: 0 | AC21: 0 | AD21: 0 | AE21: 0 | AF21: 0 | AG21: 0 | AH21: 0 | AI21: 0 | BA21: Sütçü, Dişi, Orta Laktasyon, Sağılıyor, Orta | BB21: =- 0.00002735*BW^3 + 0.0056*BW^2 - 0.319*BW + 8.1489 -> 2.99354375 | BC21: =-0.000221*BW^2 + 0.1115*BW + 2.4283 -> 7.892275 | BD21: =-0.04568*BW^2 + 12*BW + 10.543 -> 532.361 | BE21: =-0.04214*BW^2 + 11.23*BW + 18.029 -> 508.2055 | BF21: =-0.0407*BW^2 + 10.81*BW + 14.343 -> 485.7755 | BG21: =-0.030712*BW^2 + 8.05*BW + 7.9429 -> 357.7891 | BH21: =-0.005715*BW^2 + 2.8*BW + 60.343 -> 197.055125 | BI21: =-0.001214*BW^2 + 0.229*BW + 11.363 -> 20.28565 | BJ21: =- 0.000857*BW^2 + 0.184*BW + 4.2514 -> 11.778975 | BY21: 19 | BZ21: Çayır Kuru Otu (Rye Grass) | CA21: 90 | CB21: 2.1 | CC21: 10 | CD21: 7 | CE21: 6 | CF21: 3 | CG21: 0.45 | CH21: 0.3 | CI21: 33 | CJ21: 65 | CK21: 58 | CL21: 2.6 | CM21: 1.3 | CN21: 0.6 | CO21: 1.3 | CP21: 38 | CQ21: 98 | CR21: 3.3 | CS21: 8 | CT21: 2.2 | CV21: 0.18 | CW21: 27 | CX21: 24 | CY21: 211 | CZ21: 11 | DA21: 0 | DB21: 1
A22: =Keçi!A22 -> 0 | B22: =Keçi!B22 -> 0 | C22: =Keçi!C22 -> 0 | D22: =Keçi!D22 -> 0 | E22: =Keçi!E22 -> 0 | F22: =Keçi!F23 -> 0 | G22: BESİN MAD. | H22: İHTİYAÇLAR | J22: Verim Yönü : | L22: Sütçü | T22: Orta | X22: =Keçi!B22 -> 0 | Y22: 0 | Z22: 0 | AA22: 0 | AB22: 0 | AC22: 0 | AD22: 0 | AE22: 0 | AF22: 0 | AG22: 0 | AH22: 0 | AI22: 0 | BA22: Sütçü, Dişi, Orta Laktasyon, Sağılıyor, Yüksek | BB22: =0.000871*BW^2 - 0.0699*BW + 4.2985 -> 3.088775 | BC22: =-0.00025*BW^2 + 0.1255*BW + 2.84 -> 8.98625 | BD22: =0.00789*BW^2 + 5.67*BW + 275.23 -> 610.94725 | BE22: =0.008573*BW^2 + 5.26*BW + 268.09 -> 583.323325 | BF22: =0.0084*BW^2 + 4.98*BW + 259 -> 558.31 | BG22: =0.006433*BW^2 + 3.65*BW + 190.31 -> 410.519825 | BH22: =-0.007142*BW^2 + 3.26*BW + 66.629 -> 224.32445 | BI22: =0.0008575*BW^2 - 0.042*BW + 23.189 -> 23.4729375 | BJ22: =0.000357*BW^2 + 0.025*BW + 11.169 -> 13.623925 | BY22: 20 | BZ22: Çayır Salkım Otu (Bluegrass) Samanı | CA22: 93 | CB22: 1.6 | CC22: 6 | CD22: 4.2 | CE22: 2.4 | CG22: 0.2 | CH22: 0.1 | CI22: 40 | CJ22: 78 | CK22: 45 | CL22: 2 | CM22: 1 | CN22: 0.1 | CO22: 1 | CP22: 50 | CQ22: 90 | CR22: 1.1 | CS22: 6 | CZ22: 2 | DA22: 0 | DB22: 1
A23: =Keçi!A23 -> 0 | B23: =Keçi!B23 -> 0 | C23: =Keçi!C23 -> 0 | D23: =Keçi!D23 -> 0 | E23: =Keçi!E23 -> 0 | F23: =Keçi!F24 -> 0 | G23: Kuru Madde, kg | H23: =VLOOKUP(Keci,KeciReqs,2,FALSE) -> 1.855495 | J23: Tipi : | L23: Dişi | T23: Yüksek | X23: =Keçi!B23 -> 0 | Y23: 0 | Z23: 0 | AA23: 0 | AB23: 0 | AC23: 0 | AD23: 0 | AE23: 0 | AF23: 0 | AG23: 0 | AH23: 0 | AI23: 0 | BA23: Sütçü, Dişi, Geç Laktasyon, Tek, | BB23: =-0.0000535*BW^2 + 0.0276*BW + 0.3207 -> 1.6768625 | BC23: =-0.000098*BW^2 + 0.0521*BW + 0.6405 -> 3.20955 | BD23: =-0.00511*BW^2 + 2.4107*BW + 35.548 -> 152.67875 | BE23: =-0.004167*BW^2+ 2.2179*BW + 36.167 -> 145.546325 | BF23: =-0.00416*BW^2 + 2.1464*BW + 33.595 -> 139.063 | BG23: =-0.00333*BW^2 + 1.6143*BW + 23.762 -> 102.47525 | BH23: =-0.002379*BW^2 + 1.2857*BW + 16.524 -> 80.041025 | BI23: =-0.000119*BW^2 + 0.0436*BW + 3.919 -> 5.957025 | BJ23: =-0.00006*BW^2 + 0.0354*BW + 2.1881 -> 3.9536 | BY23: 21 | BZ23: Çayır Üçgülü (Clover Red) Kuru Otu | CA23: 88 | CB23: 2 | CC23: 15 | CD23: 10.5 | CE23: 10.5 | CF23: 4.2 | CG23: 1.5 | CH23: 0.25 | CI23: 30 | CJ23: 51 | CK23: 55 | CL23: 2.4 | CM23: 1.2 | CN23: 0.5 | CO23: 1.2 | CP23: 39 | CQ23: 92 | CR23: 2.5 | CS23: 8 | CT23: 1.7 | CU23: 0.32 | CV23: 0.17 | CW23: 17 | CX23: 4 | CZ23: 11 | DA23: 0 | DB23: 1
A24: =Keçi!A24 -> 0 | B24: =Keçi!B24 -> 0 | C24: =Keçi!C24 -> 0 | D24: =Keçi!D24 -> 0 | E24: =Keçi!E24 -> 0 | F24: =Keçi!F25 -> 0 | G24: Metabolik Enerji, Mcal | H24: =VLOOKUP(Keci,KeciReqs,3,FALSE) -> 3.5542 | J24: Durumu : | L24: Erken Laktasyon | X24: =Keçi!B24 -> 0 | Y24: 0 | Z24: 0 | AA24: 0 | AB24: 0 | AC24: 0 | AD24: 0 | AE24: 0 | AF24: 0 | AG24: 0 | AH24: 0 | AI24: 0 | BA24: Sütçü, Dişi, Geç Laktasyon, İkiz, | BB24: =-0.0000565*BW^2 + 0.0319*BW + 0.5051 -> 2.0886875 | BC24: =-0.0001063*BW^2 + 0.0607*BW + 0.9766 -> 3.9935425 | BD24: =-0.0066*BW^2 + 3.2504*BW + 61.736 -> 220.543 | BE24: =-0.006785*BW^2 + 3.165*BW + 56.757 -> 210.307375 | BF24: =-0.00589*BW^2 + 2.9546*BW + 56.564 -> 201.24975 | BG24: =-0.005*BW^2 + 2.2529*BW + 39.314 -> 148.0985 | BH24: =-0.002498*BW^2 + 1.4764*BW + 26.157 -> 99.80255 | BI24: =0.0346*BW + 7.7029 -> 9.6059 | BJ24: =0.0329*BW + 4.2143 -> 6.0238 | BY24: 22 | BZ24: Domuz Ayrığı (Orchardgrass) Kuru Otu | CA24: 88 | CB24: 2.1 | CC24: 10 | CD24: 7 | CE24: 6 | CF24: 2.7 | CG24: 0.32 | CH24: 0.3 | CI24: 34 | CJ24: 67 | CK24: 59 | CL24: 2.6 | CM24: 1.3 | CN24: 0.6 | CO24: 1.3 | CP24: 40 | CQ24: 98 | CR24: 3.3 | CS24: 8 | CT24: 2.6 | CU24: 0.41 | CV24: 0.2 | CW24: 26 | CX24: 4.4 | CY24: 191 | CZ24: 11 | DA24: 0 | DB24: 1
A25: =Keçi!A25 -> 0 | B25: =Keçi!B25 -> 0 | C25: =Keçi!C25 -> 0 | D25: =Keçi!D25 -> 0 | E25: =Keçi!E25 -> 0 | F25: =Keçi!F26 -> 0 | G25: Ham Protein, g | H25: =(VLOOKUP(Keci,KeciReqs,4,FALSE)+VLOOKUP(Keci,KeciReqs,5,FALSE))/2 -> 199.2275012 | J25: Yavru Sayısı : | L25: Tek | X25: =Keçi!B25 -> 0 | Y25: 0 | Z25: =IF($X25=0,0,VLOOKUP($B25,$BZ$3:$DB$533,Z$1,FALSE)) -> 0 | AA25: 0 | AB25: 0 | AC25: 0 | AD25: 0 | AE25: 0 | AF25: 0 | AG25: 0 | AH25: 0 | AI25: 0 | BA25: Sütçü, Dişi, Geç Laktasyon, Üçüz, | BB25: =-0.00005*BW^2 + 0.0345*BW + 0.76 -> 2.50625 | BC25: =-0.000114*BW^2 + 0.0686*BW + 1.3629 -> 4.79105 | BD25: =-0.0064*BW^2 + 3.83*BW + 97.486 -> 288.776 | BE25: =-0.005*BW^2 + 3.51*BW + 97.8 -> 275.725 | BF25: =-0.00714*BW^2 + 3.68*BW + 82.829 -> 263.6305 | BG25: =-0.004284*BW^2 + 2.56*BW + 66.457 -> 194.2979 | BH25: =-0.00214*BW^2 + 1.61*BW + 37.629 -> 119.7055 | BI25: =-0.000142*BW^2 + 0.058*BW + 10.549 -> 13.30945 | BJ25: =-0.000142*BW^2+ 0.058*BW + 5.3486 -> 8.10905 | BY25: 23 | BZ25: Fiğ Kuru Otu | CA25: 89 | CB25: 2.1 | CC25: 18 | CD25: 12.6 | CE25: 13.2 | CF25: 2.5 | CG25: 1.25 | CH25: 0.34 | CI25: 30 | CJ25: 48 | CK25: 58 | CL25: 2.6 | CM25: 1.3 | CN25: 0.6 | CO25: 1.3 | CP25: 33 | CQ25: 92 | CR25: 1.8 | CS25: 8 | CT25: 2.4 | CV25: 0.13 | CX25: 92.2 | CZ25: 6 | DA25: 0 | DB25: 1
A26: =Keçi!A26 -> 0 | B26: =Keçi!B26 -> 0 | C26: =Keçi!C26 -> 0 | D26: =Keçi!D26 -> 0 | E26: =Keçi!E26 -> 0 | F26: =Keçi!F22 -> 0 | G26: Metabolik Protein,g | I26: MP | J26: Süt Verimi Düzeyi : | T26: Oğlak seçenekleri | X26: =Keçi!B26 -> 0 | Y26: 0 | Z26: 0 | AA26: 0 | AB26: 0 | AC26: 0 | AD26: 0 | AE26: 0 | AF26: 0 | AG26: 0 | AH26: 0 | AI26: 0 | BA26: Sütçü, Dişi, Geç Laktasyon, Sağılıyor, Düşük | BB26: =-0.0000715*BW^2 + 0.0414*BW + 0.8503 -> 2.9110125 | BC26: =-0.00015*BW^2+ 0.0811*BW + 1.562 -> 5.56875 | BD26: =-0.00925*BW^2 + 4.89*BW + 114.86 -> 355.82875 | BE26: =-0.00857*BW^2 + 4.62*BW + 111.51 -> 339.68575 | BF26: =-0.00857*BW^2 + 4.46*BW + 105.71 -> 325.08575 | BG26: =-0.00714*BW^2+ 3.4*BW + 73.829 -> 239.2305 | BH26: =-0.002855*BW^2 + 1.9*BW + 43.171 -> 139.034625 | BI26: =-0.000214*BW^2 + 0.075*BW+ 13.483 -> 16.96065 | BJ26: =-0.000071*BW^2 + 0.053*BW + 7.5143 -> 10.214525 | BY26: 24 | BZ26: Kamışsı Yumak Kuru Otu, Olgun | CA26: 88 | CB26: 1.9 | CC26: 11 | CD26: 7.7 | CE26: 6.9 | CF26: 3.3 | CG26: 0.45 | CH26: 0.26 | CI26: 30 | CJ26: 73 | CK26: 52 | CL26: 2.3 | CM26: 1.1 | CN26: 0.4 | CO26: 1.1 | CP26: 42 | CQ26: 98 | CR26: 5 | CS26: 6 | CT26: 1.7 | CV26: 0.14 | CW26: 22 | CZ26: 10 | DA26: 0 | DB26: 1
A27: =Keçi!A27 -> 0 | B27: =Keçi!B27 -> 0 | C27: =Keçi!C27 -> 0 | D27: =Keçi!D27 -> 0 | E27: =Keçi!E27 -> 0 | F27: =Keçi!F27 -> 0 | G27: Rumende Yıkılabilir Protein,g | I27: DIP | J27: Canlı Ağırlık : | L27: 55 | M27: kg | T27: Dişi | X27: =Keçi!B27 -> 0 | Y27: 0 | Z27: 0 | AA27: 0 | AB27: 0 | AC27: 0 | AD27: 0 | AE27: 0 | AF27: 0 | AG27: 0 | AH27: 0 | AI27: 0 | BA27: Sütçü, Dişi, Geç Laktasyon, Sağılıyor, Orta | BB27: =-0.0001*BW^2+ 0.049*BW + 0.94 -> 3.3325 | BC27: =-0.000178*BW^2 + 0.0919*BW + 1.562 -> 6.07805 | BD27: =-0.01425*BW^2 + 6.16*BW + 129.06 -> 424.75375 | BE27: =-0.01357*BW^2 + 5.87*BW + 123.51 -> 405.31075 | BF27: =-0.01071*BW^2 + 5.29*BW + 129.54 -> 388.09225 | BG27: =-0.007855*BW^2 + 3.89*BW + 95.371 -> 285.559625 | BH27: =-0.00357*BW^2 + 2.17*BW + 50.514 -> 159.06475 | BI27: =-0.000142*BW^2 + 0.068*BW + 17.349 -> 20.65945 | BJ27: =-0.000071*BW^2 + 0.057*BW + 9.4343 -> 12.354525 | BY27: 25 | BZ27: Kamışsı Yumak Samanı | CA27: 94 | CB27: 1.6 | CC27: 4 | CD27: 2.8 | CE27: 0.6 | CG27: 0 | CH27: 0.06 | CI27: 41 | CK27: 43 | CL27: 1.9 | CM27: 1 | CN27: 0 | CO27: 0.9 | CR27: 1.1 | CS27: 6 | CZ27: 3 | DA27: 0 | DB27: 1
A28: =Keçi!A28 -> 0 | B28: =Keçi!B28 -> 0 | C28: =Keçi!C28 -> 0 | D28: =Keçi!D28 -> 0 | E28: =Keçi!E28 -> 0 | F28: =Keçi!F28 -> 0 | G28: Rumende Yıkımlanmayan Protein,g | I28: RUP | J28: Canlı Ağırlık Artışı : | M28: g/gün | T28: Erkek | X28: =Keçi!B28 -> 0 | Y28: 0 | Z28: 0 | AA28: 0 | AB28: 0 | AC28: 0 | AD28: 0 | AE28: 0 | AF28: 0 | AG28: 0 | AH28: 0 | AI28: 0 | BA28: Sütçü, Dişi, Geç Laktasyon, Sağılıyor, Yüksek | BB28: =- 0.00009*BW^2 + 0.0515*BW + 1.1966 -> 3.75685 | BC28: =-0.0002*BW^2 + 0.1018*BW + 2.164 -> 7.158 | BD28: =- 0.0171*BW^2 + 7.18*BW + 149.23 -> 492.4025 | BE28: =-0.052856*BW^2 + 12.48*BW - 70.629 -> 455.8816 | BF28: =-0.05*BW^2 + 11.86*BW - 64.8 -> 436.25 | BG28: =-0.035*BW^2+ 8.47*BW - 38.6 -> 321.375 | BH28: =-0.005712*BW^2 + 2.64*BW + 50.543 -> 178.4642 | BI28: =-0.0015*BW^2 + 0.283*BW + 12.8 -> 23.8275 | BJ28: =-0.001428*BW^2 + 0.27*BW + 3.3857 -> 13.916 | BY28: 26 | BZ28: Kır Ayrığı (Wheatgrass) Kuru Otu | CA28: 92 | CB28: 2 | CC28: 10 | CD28: 7 | CE28: 6 | CF28: 3.3 | CG28: 0.33 | CH28: 0.2 | CI28: 33 | CJ28: 65 | CK28: 54 | CL28: 2.4 | CM28: 1.2 | CN28: 0.4 | CO28: 1.2 | CP28: 36 | CQ28: 98 | CR28: 2.4 | CS28: 7 | CT28: 2 | CW28: 32 | CZ28: 11 | DA28: 0 | DB28: 1
A29: =Keçi!A29 -> 0 | B29: =Keçi!B29 -> 0 | C29: =Keçi!C29 -> 0 | D29: =Keçi!D29 -> 0 | E29: =Keçi!E29 -> 0 | F29: =Keçi!F29 -> 0 | G29: Ca, g | H29: =VLOOKUP(Keci,KeciReqs,9,FALSE) -> 6.208225 | J29: Tiftik Verimi : | M29: kg/yıl | T29: Kastre Erkek | X29: =Keçi!B29 -> 0 | Y29: 0 | Z29: 0 | AA29: 0 | AB29: 0 | AC29: 0 | AD29: 0 | AE29: 0 | AF29: 0 | AG29: 0 | AH29: 0 | AI29: 0 | BA29: Sütçü, Erkek, Yaşama Payı, , | BB29: =-0.0000219*BW^2 + 0.0216*BW + 0.338 -> 1.4597525 | BC29: =-0.000043*BW^2+ 0.0418*BW + 0.612 -> 2.780925 | BD29: =-0.001372*BW^2 + 1.3623*BW + 21.4 -> 92.1762 | BE29: =-0.001257*BW^2 + 1.2874*BW + 21 -> 88.004575 | BF29: =-0.001257*BW^2 + 1.2474*BW + 19 -> 83.804575 | BG29: =-0.000913*BW^2 + 0.9109*BW + 14.8 -> 62.137675 | BH29: =-0.001256*BW^2 + 1.0714*BW + 14.6 -> 69.7276 | BI29: =-0.000023*BW^2 + 0.0286*BW + 1.02 -> 2.523425 | BJ29: =-0.000023*BW^2 + 0.0278*BW + 0.66 -> 2.119425 | BY29: 27 | BZ29: Korunga Kuru Otu | CA29: 88 | CB29: 2.2 | CC29: 14 | CD29: 9.8 | CE29: 9.6 | CF29: 8.4 | CI29: 24 | CK29: 61 | CL29: 2.7 | CM29: 1.4 | CN29: 0.7 | CO29: 1.4 | CR29: 3.1 | CS29: 9 | CZ29: 11 | DA29: 0 | DB29: 1
A30: =Keçi!A30 -> 0 | B30: =Keçi!B30 -> 0 | C30: =Keçi!C30 -> 0 | D30: =Keçi!D30 -> 0 | E30: =Keçi!E30 -> 0 | F30: =Keçi!F30 -> 0 | G30: P, g | H30: =VLOOKUP(Keci,KeciReqs,10,FALSE) -> 4.178025 | X30: =Keçi!B30 -> 0 | Y30: 0 | Z30: 0 | AA30: 0 | AB30: 0 | AC30: 0 | AD30: 0 | AE30: 0 | AF30: 0 | AG30: 0 | AH30: 0 | AI30: 0 | BA30: Sütçü, Erkek, Flaşing, , | BB30: =-0.000025*BW^2 + 0.0241*BW + 0.352 -> 1.601875 | BC30: =-0.000047*BW^2 + 0.0458*BW + 0.68 -> 3.056825 | BD30: =-0.001715*BW^2 + 1.5389*BW + 21.6 -> 101.051625 | BE30: =-0.0016*BW^2 + 1.456*BW + 21.4 -> 96.64 | BF30: =-0.0016*BW^2 + 1.408*BW + 19.8 -> 92.4 | BG30: =-0.001142*BW^2 + 1.0366*BW + 14.2 -> 67.75845 | BH30: =-0.001256*BW^2 + 1.1594*BW + 16.2 -> 76.1676 | BI30: =-0.0000345*BW^2 + 0.0329*BW + 1.04 -> 2.7451375 | BJ30: =-0.000045*BW^2 + 0.0347*BW + 0.5 -> 2.272375 | BY30: 28 | BZ30: Köpekdişi (Bermudagrass) Kuru Otu | CA30: 89 | CB30: 2 | CC30: 10 | CD30: 7 | CE30: 6 | CF30: 2 | CG30: 0.47 | CH30: 0.21 | CI30: 30 | CJ30: 73 | CK30: 56 | CL30: 2.5 | CM30: 1.2 | CN30: 0.5 | CO30: 1.2 | CP30: 36 | CQ30: 98 | CR30: 2.1 | CS30: 6 | CT30: 1.5 | CV30: 0.22 | CW30: 16 | CX30: 21 | CZ30: 11 | DA30: 0 | DB30: 1 | DD30: Mısır, Tane
G31: VitA,RE | H31: =VLOOKUP(Keci,KeciReqs,11,FALSE) -> 0 | BA31: Sütçü, Oğlak, Dişi, , | BB31: =IF(BW<15,(0.0000027*ADG^2+0.0007*ADG+0.3119),IF(BW<20,(0.000007*ADG^2-0.0008*ADG+0.54),IF(BW<25,(0.000003*ADG^2-0.00085*ADG+0.7263),IF(BW<30,(0.000008*ADG^2-0.0006*ADG+0.8347),IF(BW<35,(0.00000053*ADG^2+0.00003*ADG+0.9506),IF(BW<40,(0.0000062*ADG^2-0.0005*ADG+1.0683),(0.000006*ADG^2-0.0006*ADG+1.1792) )))))) -> 1.1792 | BC31: =(-0.000229*BW^2+0.0553*BW+0.1949) +ADG*0.0055148 -> 2.543675 | BD31: =IF(BW<15,(0.000022*ADG^2+0.4267*ADG+25.748),IF(BW<20,(-0.000019*ADG^2+0.4341*ADG+35.043),IF(BW<25,(-0.0000032*ADG^2+0.4336*ADG+43.016),IF(BW<30,(0.0000044*ADG^2+0.4301*ADG+51.099),IF(BW<35,(0.0000049*ADG^2+0.4291*ADG+58.725),IF(BW<40,(0.0000116*ADG^2+0.4269*ADG+66.119),(0.0000042*ADG^2+0.4305*ADG+72.67) )))))) -> 72.67 | BE31: =IF(BW<15,(0.0000193*ADG^2+0.4059*ADG+24.957),IF(BW<20,(0.0000414*ADG^2+0.4048*ADG+33.338),IF(BW<25,(-0.0000004*ADG^2+0.4119*ADG+41.237),IF(BW<30,(0.00000185*ADG^2+0.4117*ADG+48.878),IF(BW<35,(-0.00001128*ADG^2+0.4144*ADG+55.826),IF(BW<40,(-0.00001125*ADG^2+0.4144*ADG+62.826),(-0.00001085*ADG^2+0.4148*ADG+69.326) )))))) -> 69.326 | BF31: =IF(BW<15,(-0.000062*ADG^2+0.4085*ADG+22.914),IF(BW<20,(0.000045*ADG^2+0.3856*ADG+32.128),IF(BW<25,(-0.000029*ADG^2+0.4028*ADG+38.994),IF(BW<30,(-0.0000008*ADG^2+0.3933*ADG+46.66),IF(BW<35,(-0.00001*ADG^2+0.3988*ADG+53.08),IF(BW<40,(0.000002*ADG^2+0.3939*ADG+59.979),(0.00001*ADG^2+0.393*ADG+66.14) )))))) -> 66.14 | BG31: =IF(BW<15,(-0.00002*ADG^2+0.2933*ADG+17.252),IF(BW<20,(-0.00002*ADG^2+0.2933*ADG+23.252),IF(BW<25,(0.000002*ADG^2+0.2917*ADG+28.878),IF(BW<30,(0.000007*ADG^2+0.2884*ADG+34.321),IF(BW<35,(-0.000005*ADG^2+0.2909*ADG+39.275),IF(BW<40,(-0.00001*ADG^2+0.2944*ADG+43.826),(0.000008*ADG^2+0.2874*ADG+48.95) )))))) -> 48.95 | BH31: =IF(BW<15,(0.0000023*ADG^2+0.1408*ADG+17.791),IF(BW<20,(-0.0000021*ADG^2+0.1392*ADG+24.209),IF(BW<25,(0.0000025*ADG^2+0.1384*ADG+30.222),IF(BW<30,(0.0000314*ADG^2+0.1289*ADG+35.883),IF(BW<35,(-0.0000273*ADG^2+0.1454*ADG+40.737),IF(BW<40,(-0.0000273*ADG^2+0.1454*ADG+45.737),(0.0000063*ADG^2+0.1348*ADG+50.915) )))))) -> 50.915 | BI31: =IF(BW<15,(0.000006*ADG^2+0.0251*ADG+0.9295),IF(BW<20,(0.000017*ADG^2+0.0219*ADG+1.2719),IF(BW<25,(0.000001*ADG^2+0.0245*ADG+1.487),IF(BW<30,(-0.000005*ADG^2+0.0259*ADG+1.6202),IF(BW<35,(-0.0000018*ADG^2+0.0254*ADG+1.8099),IF(BW<40,(-0.0000089*ADG^2+0.0277*ADG+1.9607),(0.0000033*ADG^2+0.0249*ADG+2.1767) )))))) -> 2.1767 | BJ31: =IF(BW<15,(-0.0000017*ADG^2+0.0114*ADG+0.5043),IF(BW<20,(0.0000123*ADG^2+0.0074*ADG+0.8591),IF(BW<25,(0.00000395*ADG^2+0.0087*ADG+1.0777),IF(BW<30,(-0.00000555*ADG^2+0.0109*ADG+1.2103),IF(BW<35,(-0.0000017*ADG^2+0.0101*ADG+1.4065),IF(BW<40,(-0.00000905*ADG^2+0.0123*ADG+1.5628),(0.00000495*ADG^2+0.0092*ADG+1.7665) )))))) -> 1.7665 | BY31: 29 | BZ31: Köpekdişi (Bermudagrass) Kuru Otu | CA31: 89 | CB31: 1.9 | CC31: 10 | CD31: 7 | CE31: 6 | CF31: 1.8 | CG31: 0.46 | CH31: 0.2 | CI31: 30 | CJ31: 78 | CK31: 53 | CL31: 2.3 | CM31: 1.2 | CN31: 0.4 | CO31: 1.2 | CP31: 39 | CQ31: 98 | CR31: 1.9 | CS31: 8 | CT31: 1.5 | CV31: 0.25 | CW31: 33 | CX31: 11.6 | CZ31: 11 | DA31: 0 | DB31: 1
G32: VitE,IU | H32: =VLOOKUP(Keci,KeciReqs,12,FALSE) -> 0 | T32: Keçinin durumu | X32: TOPLAM | Y32: =SUM(Y35:Y60) -> 1.622 | Z32: =SUM(Z35:Z60) -> 1.93 | AA32: 3.70104 | AB32: 200.9516 | AC32: 139.622 | AD32: 96.714 | AE32: 34.18 | AF32: 13.4976 | AG32: 4.2618 | AH32: 0.629386 | AI32: 1.15586 | BA32: Sütçü, Oğlak, Kastre Erkek, , | BB32: =IF(BW<15,(0.0000027*ADG^2+0.0007*ADG+0.3119),IF(BW<20,(0.000007*ADG^2-0.0008*ADG+0.54),IF(BW<25,(0.000003*ADG^2-0.00085*ADG+0.7263),IF(BW<30,(0.000008*ADG^2-0.0006*ADG+0.8347),IF(BW<35,(0.00000053*ADG^2+0.00003*ADG+0.9506),IF(BW<40,(0.0000062*ADG^2-0.0005*ADG+1.0683),(0.000006*ADG^2-0.0006*ADG+1.1792) )))))) -> 1.1792 | BC32: =(-0.000229*BW^2+0.0553*BW+0.1949) +ADG*0.0055148 -> 2.543675 | BD32: =IF(BW<15,(0.000022*ADG^2+0.4267*ADG+25.748),IF(BW<20,(-0.000019*ADG^2+0.4341*ADG+35.043),IF(BW<25,(-0.0000032*ADG^2+0.4336*ADG+43.016),IF(BW<30,(0.0000044*ADG^2+0.4301*ADG+51.099),IF(BW<35,(0.0000049*ADG^2+0.4291*ADG+58.725),IF(BW<40,(0.0000116*ADG^2+0.4269*ADG+66.119),(0.0000042*ADG^2+0.4305*ADG+72.67) )))))) -> 72.67 | BE32: =IF(BW<15,(0.0000193*ADG^2+0.4059*ADG+24.957),IF(BW<20,(0.0000414*ADG^2+0.4048*ADG+33.338),IF(BW<25,(-0.0000004*ADG^2+0.4119*ADG+41.237),IF(BW<30,(0.00000185*ADG^2+0.4117*ADG+48.878),IF(BW<35,(-0.00001128*ADG^2+0.4144*ADG+55.826),IF(BW<40,(-0.00001125*ADG^2+0.4144*ADG+62.826),(-0.00001085*ADG^2+0.4148*ADG+69.326) )))))) -> 69.326 | BF32: =IF(BW<15,(-0.000062*ADG^2+0.4085*ADG+22.914),IF(BW<20,(0.000045*ADG^2+0.3856*ADG+32.128),IF(BW<25,(-0.000029*ADG^2+0.4028*ADG+38.994),IF(BW<30,(-0.0000008*ADG^2+0.3933*ADG+46.66),IF(BW<35,(-0.00001*ADG^2+0.3988*ADG+53.08),IF(BW<40,(0.000002*ADG^2+0.3939*ADG+59.979),(0.00001*ADG^2+0.393*ADG+66.14) )))))) -> 66.14 | BG32: =IF(BW<15,(-0.00002*ADG^2+0.2933*ADG+17.252),IF(BW<20,(-0.00002*ADG^2+0.2933*ADG+23.252),IF(BW<25,(0.000002*ADG^2+0.2917*ADG+28.878),IF(BW<30,(0.000007*ADG^2+0.2884*ADG+34.321),IF(BW<35,(-0.000005*ADG^2+0.2909*ADG+39.275),IF(BW<40,(-0.00001*ADG^2+0.2944*ADG+43.826),(0.000008*ADG^2+0.2874*ADG+48.95) )))))) -> 48.95 | BH32: =IF(BW<15,(0.0000023*ADG^2+0.1408*ADG+17.791),IF(BW<20,(-0.0000021*ADG^2+0.1392*ADG+24.209),IF(BW<25,(0.0000025*ADG^2+0.1384*ADG+30.222),IF(BW<30,(0.0000314*ADG^2+0.1289*ADG+35.883),IF(BW<35,(-0.0000273*ADG^2+0.1454*ADG+40.737),IF(BW<40,(-0.0000273*ADG^2+0.1454*ADG+45.737),(0.0000063*ADG^2+0.1348*ADG+50.915) )))))) -> 50.915 | BI32: =IF(BW<15,(0.000006*ADG^2+0.0251*ADG+0.9295),IF(BW<20,(0.000017*ADG^2+0.0219*ADG+1.2719),IF(BW<25,(0.000001*ADG^2+0.0245*ADG+1.487),IF(BW<30,(-0.000005*ADG^2+0.0259*ADG+1.6202),IF(BW<35,(-0.0000018*ADG^2+0.0254*ADG+1.8099),IF(BW<40,(-0.0000089*ADG^2+0.0277*ADG+1.9607),(0.0000033*ADG^2+0.0249*ADG+2.1767) )))))) -> 2.1767 | BJ32: =IF(BW<15,(-0.0000017*ADG^2+0.0114*ADG+0.5043),IF(BW<20,(0.0000123*ADG^2+0.0074*ADG+0.8591),IF(BW<25,(0.00000395*ADG^2+0.0087*ADG+1.0777),IF(BW<30,(-0.00000555*ADG^2+0.0109*ADG+1.2103),IF(BW<35,(-0.0000017*ADG^2+0.0101*ADG+1.4065),IF(BW<40,(-0.00000905*ADG^2+0.0123*ADG+1.5628),(0.00000495*ADG^2+0.0092*ADG+1.7665) )))))) -> 1.7665 | BY32: 30 | BZ32: Köpekdişi (Bermudagrass), Kurutulmuş | CA32: 90 | CB32: 2.2 | CC32: 16 | CD32: 11.2 | CE32: 11.4 | CF32: 6.4 | CG32: 0.4 | CH32: 0.25 | CI32: 26 | CJ32: 40 | CK32: 62 | CL32: 2.7 | CM32: 1.4 | CN32: 0.7 | CO32: 1.4 | CP32: 29 | CQ32: 10 | CR32: 3.8 | CS32: 7 | CT32: 1.8 | CV32: 0.23 | CW32: 18 | CZ32: 11 | DA32: 0 | DB32: 1
G33: Na,g | H33: =VLOOKUP(Keci,KeciReqs,13,FALSE) -> 0 | T33: Yaşama Payı | X33: HESAPLAMALAR | Y33: KabaY | Z33: KM | AA33: ME | AB33: HP | AC33: MP | AD33: DIP | AE33: RUP | AF33: Ca | AG33: P | AH33: HS | AI33: NDF | BA33: Sütçü, Oğlak, Erkek, , | BB33: =IF(BW<15,(0.0000034*ADG^2+0.0007*ADG+0.3297),IF(BW<20,(0.0000037*ADG^2+0.0003*ADG+0.4899),IF(BW<25,(0.00001*ADG^2-0.00188*ADG+0.7394),IF(BW<30,(0.000005*ADG^2-0.0009*ADG+0.8673),IF(BW<35,(0.0000031*ADG^2-0.001*ADG+1.1168),IF(BW<40,(-0.00000097*ADG^2+0.0002*ADG+1.2165),(-0.00000014*ADG^2+0.0003*ADG+1.3228) )))))) -> 1.3228 | BC33: =(-0.00028*BW^2+0.0647*BW+0.2264) +ADG*0.00551852 -> 2.9379 | BD33: =IF(BW<15,(0.0000216*ADG^2+0.4267*ADG+25.748),IF(BW<20,(-0.0000193*ADG^2+0.4341*ADG+35.043),IF(BW<25,(-0.00000335*ADG^2+0.4336*ADG+43.016),IF(BW<30,(0.0000043*ADG^2+0.4301*ADG+51.099),IF(BW<35,(0.00000485*ADG^2+0.4291*ADG+58.725),IF(BW<40,(0.0000115*ADG^2+0.4269*ADG+66.119),(0.00000465*ADG^2+0.4305*ADG+72.67) )))))) -> 72.67 | BE33: =IF(BW<15,(0.0000193*ADG^2+0.4059*ADG+24.957),IF(BW<20,(0.0000414*ADG^2+0.4048*ADG+33.338),IF(BW<25,(-0.0000004*ADG^2+0.4119*ADG+41.237),IF(BW<30,(0.00000185*ADG^2+0.4117*ADG+48.878),IF(BW<35,(-0.00001128*ADG^2+0.4144*ADG+55.826),IF(BW<40,(-0.00001125*ADG^2+0.4144*ADG+62.826),(-0.00001085*ADG^2+0.4148*ADG+69.326) )))))) -> 69.326 | BF33: =IF(BW<15,(-0.000062*ADG^2+0.4085*ADG+22.914),IF(BW<20,(0.000045*ADG^2+0.3856*ADG+32.128),IF(BW<25,(-0.000029*ADG^2+0.4028*ADG+38.994),IF(BW<30,(-0.0000008*ADG^2+0.3933*ADG+46.66),IF(BW<35,(-0.00001*ADG^2+0.3988*ADG+53.08),IF(BW<40,(0.000002*ADG^2+0.3939*ADG+59.979),(0.00001*ADG^2+0.393*ADG+66.14) )))))) -> 66.14 | BG33: =IF(BW<15,(-0.00002*ADG^2+0.2933*ADG+17.252),IF(BW<20,(-0.00002*ADG^2+0.2933*ADG+23.252),IF(BW<25,(0.000002*ADG^2+0.2917*ADG+28.878),IF(BW<30,(0.000007*ADG^2+0.2884*ADG+34.321),IF(BW<35,(-0.000005*ADG^2+0.2909*ADG+39.275),IF(BW<40,(-0.00001*ADG^2+0.2944*ADG+43.826),(0.000008*ADG^2+0.2874*ADG+48.95) )))))) -> 48.95 | BH33: =IF(BW<15,(-0.00006*ADG^2+0.1493*ADG+20.705),IF(BW<20,(-0.000002*ADG^2+0.1392*ADG+28.209),IF(BW<25,(0.0000027*ADG^2+0.1384*ADG+35.222),IF(BW<30,(0.0000316*ADG^2+0.1289*ADG+41.883),IF(BW<35,(0.0000228*ADG^2+0.1307*ADG+47.848),IF(BW<40,(0.0000228*ADG^2+0.1307*ADG+53.848),(-0.0000212*ADG^2+0.1431*ADG+59.131) )))))) -> 59.131 | BI33: =IF(BW<15,(0.0000002*ADG^2+0.0261*ADG+0.9791),IF(BW<20,(0.000011*ADG^2+0.0238*ADG+1.2005),IF(BW<25,(0.0000125*ADG^2+0.0222*ADG+1.5205),IF(BW<30,(0.0000055*ADG^2+0.0235*ADG+1.6873),IF(BW<35,(0.0000049*ADG^2+0.0229*ADG+2.0622),IF(BW<40,(-0.0000016*ADG^2+0.0248*ADG+2.2078),(-0.00000085*ADG^2+0.0251*ADG+2.325) )))))) -> 2.325 | BJ33: =IF(BW<15,(0.0000092*ADG^2+0.0093*ADG+0.5838),IF(BW<20,(0.0000024*ADG^2+0.01*ADG+0.8171),IF(BW<25,(0.0000125*ADG^2+0.0069*ADG+1.1189),IF(BW<30,(0.0000054*ADG^2+0.0082*ADG+1.3217),IF(BW<35,(0.00000485*ADG^2+0.0076*ADG+1.6466),IF(BW<40,(-0.00000375*ADG^2+0.0103*ADG+1.742),(-0.000001*ADG^2+0.0097*ADG+1.9271) )))))) -> 1.9271 | BY33: 31 | BZ33: Kudzu Kuru Otu | CA33: 90 | CB33: 2 | CC33: 16 | CD33: 11.2 | CE33: 11.4 | CG33: 3 | CH33: 0.23 | CI33: 33 | CK33: 54 | CL33: 2.4 | CM33: 1.2 | CN33: 0.4 | CO33: 1.2 | CR33: 2.6 | CS33: 7 | CZ33: 11 | DA33: 0 | DB33: 1
G34: Cl,g | H34: =VLOOKUP(Keci,KeciReqs,14,FALSE) -> 0 | T34: Flaşing | BA34: Sütçü Olmayan, Dişi, Yaşama Payı, , | BB34: =-0.0000388*BW^2 + 0.019*BW + 0.1404 -> 1.06803 | BC34: =-0.000069*BW^2+ 0.0359*BW + 0.2776 -> 2.043375 | BD34: =-0.002678*BW^2 + 1.353*BW + 10.47 -> 76.78405 | BE34: =-0.002203*BW^2 + 1.2506*BW + 11.161 -> 73.279925 | BF34: =-0.002435*BW^2 + 1.2363*BW + 9.5417 -> 70.172325 | BG34: =-0.0022*BW^2 + 0.9506*BW + 6.1607 -> 51.7887 | BH34: =-0.001367*BW^2 + 0.8589*BW + 7.494 -> 50.598325 | BI34: =-0.0000889*BW^2+ 0.0304*BW + 0.6065 -> 2.0095775 | BJ34: =-0.000095*BW^2 + 0.0305*BW + 0.2119 -> 1.602025 | BY34: 32 | BZ34: Mısır Bitkisi, Peletlenmiş | CA34: 91 | CB34: 2.3 | CC34: 9 | CD34: 6.3 | CE34: 5.1 | CF34: 4.1 | CG34: 0.5 | CH34: 0.24 | CI34: 21 | CJ34: 40 | CK34: 63 | CL34: 2.8 | CM34: 1.4 | CN34: 0.7 | CO34: 1.4 | CP34: 24 | CQ34: 6 | CR34: 2.4 | CS34: 6 | CT34: 0.9 | CV34: 0.14 | CZ34: 20 | DA34: 0 | DB34: 1
G35: K,g | H35: =VLOOKUP(Keci,KeciReqs,15,FALSE) -> 0 | T35: Erken Gebelik | X35: =X5 -> Buğday Samanı | Y35: =IF(X5=0,0,IF(OR(A5=1,A5=2)=TRUE,Z35,0)) -> 0.91 | Z35: =IF($X5=0,0,IF(ISERROR(Y5*Z5/100)=TRUE,0,Y5*Z5/100)) -> 0.91 | AA35: =IF($X5=0,0,IF(ISERROR(Z35*AA5)=TRUE,0,Z35*AA5)) -> 1.365 | AB35: =IF($X5=0,0,IF(ISERROR(Z35*AB5*10)=TRUE,0,Z35*AB5*10)) -> 27.3 | AC35: =IF($X5=0,0,IF(ISERROR(Z35*AC5*10)=TRUE,0,Z35*AC5*10)) -> 19.11 | AD35: =IF($X5=0,0,IF(ISERROR(Z35*AD5*10)=TRUE,0,Z35*AD5*10)) -> 2.73 | AE35: =IF($X5=0,0,IF(ISERROR(Z35*AE5*10)=TRUE,0,Z35*AE5*10)) -> 16.38 | AF35: =IF($X5=0,0,IF(ISERROR(Z35*AF5*10)=TRUE,0,Z35*AF5*10)) -> 1.456 | AG35: =IF($X5=0,0,IF(ISERROR(Z35*AG5*10)=TRUE,0,Z35*AG5*10)) -> 0.455 | AH35: =IF($X5=0,0,IF(ISERROR(Z35*AH5/100)=TRUE,0,Z35*AH5/100)) -> 0.3913 | AI35: =IF($X5=0,0,IF(ISERROR(Z35*AI5/100)=TRUE,0,Z35*AI5/100)) -> 0.7371 | BA35: Sütçü Olmayan, Dişi, Flaşing, , | BB35: =-0.0000385*BW^2 + 0.0205*BW + 0.1615 -> 1.1725375 | BC35: =-0.0000796*BW^2 + 0.04*BW + 0.2888 -> 2.24801 | BD35: =-0.002975*BW^2+ 1.4845*BW + 11.917 -> 84.565125 | BE35: =-0.002975*BW^2 + 1.4321*BW + 10.798 -> 80.564125 | BF35: =-0.00291*BW^2 + 1.3839*BW + 9.8631 -> 77.17485 | BG35: =-0.001785*BW^2 + 0.9774*BW + 8.3333 -> 56.690675 | BH35: =-0.002022*BW^2+ 0.9988*BW + 7.25 -> 56.06745 | BI35: =-0.000018*BW^2 + 0.0252*BW + 0.7911 -> 2.12265 | BJ35: =-0.000048*BW^2 + 0.0267*BW + 0.3774 -> 1.7007 | BY35: 33 | BZ35: Mısır Kuru Otu | CA35: 80 | CB35: 2.4 | CC35: 9 | CD35: 6.3 | CE35: 5.1 | CF35: 4.1 | CG35: 0.5 | CH35: 0.25 | CI35: 25 | CJ35: 48 | CK35: 67 | CL35: 3 | CM35: 1.5 | CN35: 0.9 | CO35: 1.5 | CP35: 29 | CQ35: 100 | CR35: 2.4 | CS35: 7 | CT35: 0.9 | CU35: 0.2 | CV35: 0.14 | CX35: 526.4 | CZ35: 2 | DA35: 0 | DB35: 1
G36: Mg,g | H36: =VLOOKUP(Keci,KeciReqs,16,FALSE) -> 0 | T36: Geç Gebelik | X36: =X6 -> Fiğ Kuru Otu | Y36: =IF(X6=0,0,IF(OR(A6=1,A6=2)=TRUE,Z36,0)) -> 0.712 | Z36: 0.712 | AA36: 1.4952 | AB36: 128.16 | AC36: =IF($X6=0,0,IF(ISERROR(Z36*AC6*10)=TRUE,0,Z36*AC6*10)) -> 89.712 | AD36: =IF($X6=0,0,IF(ISERROR(Z36*AD6*10)=TRUE,0,Z36*AD6*10)) -> 93.984 | AE36: =IF($X6=0,0,IF(ISERROR(Z36*AE6*10)=TRUE,0,Z36*AE6*10)) -> 17.8 | AF36: 8.9 | AG36: 2.4208 | AH36: 0.2136 | AI36: =IF($X6=0,0,IF(ISERROR(Z36*AI6/100)=TRUE,0,Z36*AI6/100)) -> 0.34176 | BA36: Sütçü Olmayan, Dişi, Erken Gebelik, Tek, | BB36: =-0.0000456*BW^2 + 0.0215*BW + 0.2019 -> 1.24646 | BC36: =-0.000092*BW^2+ 0.0418*BW + 0.3696 -> 2.3903 | BD36: =-0.005*BW^2 + 1.9697*BW + 21.083 -> 114.2915 | BE36: =-0.00464*BW^2 + 1.8679*BW + 20.25 -> 108.9485 | BF36: =-0.00422*BW^2 + 1.7613*BW + 19.756 -> 103.862 | BG36: =-0.00339*BW^2 + 1.322*BW + 14.208 -> 76.66325 | BH36: =-0.002022*BW^2 + 1.0155*BW + 9.8333 -> 59.56925 | BI36: =-0.0000895*BW^2+ 0.0321*BW + 2.7149 -> 4.2096625 | BJ36: =-0.000041*BW^2 + 0.0273*BW + 1.1827 -> 2.560175 | BY36: 34 | BZ36: Mısır Sapları | CA36: 80 | CB36: 2.1 | CC36: 5 | CD36: 3.5 | CE36: 1.5 | CF36: 1.5 | CG36: 0.35 | CH36: 0.19 | CI36: 35 | CJ36: 70 | CK36: 59 | CL36: 2.6 | CM36: 1.3 | CN36: 0.6 | CO36: 1.3 | CP36: 44 | CQ36: 100 | CR36: 1.3 | CS36: 7 | CT36: 1.1 | CU36: 0.3 | CV36: 0.14 | CW36: 22 | CZ36: 2 | DA36: 0 | DB36: 1
G37: S,g | H37: =VLOOKUP(Keci,KeciReqs,17,FALSE) -> 0 | T37: Erken Laktasyon | X37: KOYUN SÜT YEMİ | Y37: 0 | Z37: 0.308 | AA37: 0.84084 | AB37: 45.4916 | AC37: 30.8 | AD37: 0 | AE37: 0 | AF37: 3.1416 | AG37: 1.386 | AH37: 0.024486 | AI37: =IF($X7=0,0,IF(ISERROR(Z37*AI7/100)=TRUE,0,Z37*AI7/100)) -> 0.077 | BA37: Sütçü Olmayan, Dişi, Erken Gebelik, İkiz, | BB37: =-0.0000446*BW^2 + 0.0226*BW + 0.2327 -> 1.340785 | BC37: =-0.000086*BW^2 + 0.0432*BW + 0.4518 -> 2.56765 | BD37: =-0.004345*BW^2 + 2.1054*BW + 29.256 -> 131.909375 | BE37: =-0.004343*BW^2 + 2.0244*BW + 27.708 -> 125.912425 | BF37: =-0.003925*BW^2+ 1.9226*BW + 26.452 -> 120.321875 | BG37: =-0.00333*BW^2 + 1.4571*BW + 18.69 -> 88.75725 | BH37: =-0.002022*BW^2+ 1.0631*BW + 11.714 -> 64.06795 | BI37: =-0.0000536*BW^2+ 0.0315*BW + 4.2708 -> 5.84116 | BJ37: =-0.0000716*BW^2 + 0.0305*BW + 1.8274 -> 3.28831 | BY37: 35 | BZ37: Nohut Samanı | CA37: 90.4 | CB37: 1.45 | CC37: 5.4 | CE37: 2.55 | CF37: 2.85 | CG37: 0.94 | CH37: 0.26 | CI37: 41 | CJ37: 65.6 | CK37: 42 | CP37: 46.9 | CQ37: 98 | CR37: 1 | CS37: 7.4 | CW37: 37 | CZ37: 3 | DA37: 0 | DB37: 1
G38: Co,mg | H38: =VLOOKUP(Keci,KeciReqs,18,FALSE) -> 0 | T38: Orta Laktasyon | X38: 0 | Y38: 0 | Z38: 0 | AA38: 0 | AB38: 0 | AC38: 0 | AD38: 0 | AE38: 0 | AF38: 0 | AG38: 0 | AH38: 0 | AI38: 0 | BA38: Sütçü Olmayan, Dişi, Erken Gebelik, Üçüz, | BB38: =-0.000036*BW^2 + 0.0219*BW + 0.3 -> 1.3956 | BC38: =-0.0000755*BW^2 + 0.0429*BW + 0.5376 -> 2.6687125 | BD38: =-0.003928*BW^2 + 2.1536*BW + 35.5 -> 142.0658 | BE38: =-0.00333*BW^2 + 2*BW + 35.619 -> 135.54575 | BF38: =-0.00297*BW^2 + 1.8964*BW + 34.262 -> 129.57975 | BG38: =-0.00238*BW^2 + 1.4143*BW + 24.952 -> 95.539 | BH38: =-0.001427*BW^2 + 1.0143*BW + 15.143 -> 66.612825 | BI38: =-0.0000945*BW^2 + 0.0364*BW + 5.5952 -> 7.3113375 | BJ38: =-0.0000595*BW^2 + 0.0311*BW + 2.3452 -> 3.8757125 | BY38: 36 | BZ38: Pamuk Çırçır Artığı | CA38: 91 | CB38: 1.5 | CC38: 10 | CD38: 7 | CE38: 6 | CG38: 1.7 | CH38: 0.25 | CI38: 34 | CJ38: 70 | CK38: 42 | CL38: 1.9 | CM38: 0.9 | CN38: 0 | CO38: 0.9 | CP38: 51 | CQ38: 100 | CR38: 2 | CS38: 14 | CT38: 1.9 | CV38: 0.14 | CW38: 25 | CZ38: 8 | DA38: 0 | DB38: 1
G39: Cu,mg | H39: =VLOOKUP(Keci,KeciReqs,19,FALSE) -> 0 | T39: Geç Laktasyon | X39: 0 | Y39: 0 | Z39: 0 | AA39: 0 | AB39: 0 | AC39: 0 | AD39: 0 | AE39: 0 | AF39: 0 | AG39: 0 | AH39: 0 | AI39: 0 | BA39: Sütçü Olmayan, Dişi, Geç Gebelik, Tek, | BB39: =- 0.000005*BW^2 + 0.0206*BW + 0.2297 -> 1.347575 | BC39: =-0.0001205*BW^2 + 0.0514*BW + 0.574 -> 3.0364875 | BD39: =-0.008987*BW^2 + 3.0875*BW + 24.22 -> 166.846825 | BE39: =-0.00851*BW^2 + 2.9494*BW + 22.875 -> 159.34925 | BF39: =-0.008685*BW^2 + 2.8845*BW + 20.202 -> 152.577375 | BG39: =-0.006368*BW^2 + 2.1161*BW + 15.101 -> 112.2233 | BH39: =-0.00339*BW^2 + 1.322*BW + 13.208 -> 75.66325 | BI39: =-0.000131*BW^2 + 0.0461*BW + 2.456 -> 4.595225 | BJ39: =-0.0001367*BW^2 + 0.0471*BW + 0.7589 -> 2.9358825 | BY39: 37 | BZ39: Parlak Yalancı Darı (Bahiagrass) Kuru Otu | CA39: 90 | CB39: 1.8 | CC39: 8 | CD39: 5.6 | CE39: 4.2 | CF39: 3 | CG39: 0.48 | CH39: 0.2 | CI39: 32 | CJ39: 72 | CK39: 51 | CL39: 2.2 | CM39: 1.1 | CN39: 0.3 | CO39: 1.1 | CP39: 41 | CQ39: 98 | CR39: 1.9 | CS39: 8 | CT39: 1.4 | CV39: 0.21 | CX39: 36.6 | CZ39: 9 | DA39: 0 | DB39: 1
G40: I,mg | H40: =VLOOKUP(Keci,KeciReqs,20,FALSE) -> 0 | X40: 0 | Y40: 0 | Z40: 0 | AA40: 0 | AB40: 0 | AC40: 0 | AD40: 0 | AE40: 0 | AF40: 0 | AG40: 0 | AH40: 0 | AI40: 0 | BA40: Sütçü Olmayan, Dişi, Geç Gebelik, İkiz, | BB40: =- 0.0000155*BW^2 + 0.0218*BW + 0.2661 -> 1.4182125 | BC40: =-0.000113*BW^2 + 0.0551*BW + 0.7402 -> 3.428875 | BD40: =0.000478*BW^2 + 2.5595*BW + 52.286 -> 194.50445 | BE40: =0.000597*BW^2 + 2.4202*BW + 50.774 -> 185.690925 | BF40: =0.00048*BW^2 + 2.331*BW + 47.857 -> 177.514 | BG40: =-0.00036*BW^2 + 1.7131*BW + 35.512 -> 128.6435 | BH40: =-0.002677*BW^2 + 1.3673*BW + 18.435 -> 85.538575 | BI40: =0.0002032*BW^2 + 0.0146*BW + 4.5512 -> 5.96888 | BJ40: =0.000204*BW^2 + 0.0146*BW + 1.9512 -> 3.3713 | BY40: 38 | BZ40: Pirinç Kabukları | CA40: 92 | CB40: 0.5 | CC40: 3 | CD40: 2.1 | CE40: 0.3 | CF40: 1.4 | CG40: 0.14 | CH40: 0.07 | CI40: 44 | CJ40: 81 | CK40: 13 | CL40: 0.6 | CM40: 0.8 | CN40: 0 | CO40: 0.2 | CP40: 70 | CQ40: 90 | CR40: 0.9 | CS40: 20 | CT40: 0.5 | CU40: 0.08 | CV40: 0.08 | CW40: 24 | CZ40: 5 | DA40: 0 | DB40: 1
G41: Fe,mg | H41: =VLOOKUP(Keci,KeciReqs,21,FALSE) -> 0 | X41: 0 | Y41: 0 | Z41: 0 | AA41: 0 | AB41: 0 | AC41: 0 | AD41: 0 | AE41: 0 | AF41: 0 | AG41: 0 | AH41: 0 | AI41: 0 | BA41: Sütçü Olmayan, Dişi, Geç Gebelik, Üçüz, | BB41: =- 0.0000595*BW^2 + 0.028*BW + 0.1224 -> 1.4824125 | BC41: =-0.0000945*BW^2 + 0.0548*BW + 0.9169 -> 3.6450375 | BD41: =-0.005951*BW^2 + 3.2714*BW + 50.381 -> 212.306225 | BE41: =-0.00535*BW^2 + 3.0821*BW + 49.357 -> 202.68875 | BF41: =-0.00452*BW^2+ 2.8786*BW + 48.952 -> 193.602 | BG41: =-0.003807*BW^2 + 2.1714*BW + 34.81 -> 142.720825 | BH41: =-0.00238*BW^2 + 1.3786*BW + 22.095 -> 90.7185 | BI41: =-0.0000715*BW^2 + 0.0393*BW + 5.4 -> 7.3452125 | BJ41: =-0.000094*BW^2 + 0.0421*BW + 1.881 -> 3.91215 | BY41: 39 | BZ41: Pirinç Samanı | CA41: 91 | CB41: 1.4 | CC41: 4 | CD41: 2.8 | CE41: 0.6 | CG41: 0.25 | CH41: 0.08 | CI41: 40 | CJ41: 72 | CK41: 40 | CL41: 1.8 | CM41: 0.9 | CN41: 0 | CO41: 0.8 | CP41: 55 | CQ41: 100 | CR41: 1.4 | CS41: 12 | CT41: 1.1 | CV41: 0.11 | CZ41: 3.5 | DA41: 0 | DB41: 1
G42: Mn,mg | H42: =VLOOKUP(Keci,KeciReqs,22,FALSE) -> 0 | T42: Tiftik keçisinin durumu | X42: 0 | Y42: 0 | Z42: 0 | AA42: 0 | AB42: 0 | AC42: 0 | AD42: 0 | AE42: 0 | AF42: 0 | AG42: 0 | AH42: 0 | AI42: 0 | BA42: Sütçü Olmayan, Dişi, Erken Laktasyon, Tek, | BB42: =-0.000055*BW^2 + 0.025*BW + 0.2517 -> 1.460325 | BC42: =-0.000108*BW^2 + 0.0479*BW + 0.4813 -> 2.7891 | BD42: =-0.006488*BW^2 + 2.6768*BW + 35.435 -> 163.0328 | BE42: =-0.006365*BW^2 + 2.5732*BW + 33.458 -> 155.729875 | BF42: =-0.00601*BW^2 + 2.4387*BW + 33.089 -> 149.03725 | BG42: =-0.0047*BW^2+ 1.828*BW + 23.53 -> 109.8525 | BH42: =-0.0025*BW^2+ 1.1655*BW + 13.024 -> 69.564 | BI42: =-0.000077*BW^2 + 0.0353*BW + 3.9208 -> 5.629375 | BJ42: =-0.0000763*BW^2 + 0.0336*BW + 2.0125 -> 3.6296925 | BY42: 40 | BZ42: Pirinç Samanı, Amonyakla muamele | CA42: 87 | CB42: 1.6 | CC42: 9 | CD42: 6.3 | CE42: 5.1 | CG42: 0.25 | CH42: 0.08 | CI42: 39 | CJ42: 68 | CK42: 45 | CL42: 2 | CM42: 1 | CN42: 0.1 | CO42: 1 | CP42: 53 | CQ42: 100 | CR42: 1.3 | CS42: 12 | CT42: 1.1 | CV42: 0.11 | CZ42: 4 | DA42: 0 | DB42: 1
G43: Se,mg | H43: =VLOOKUP(Keci,KeciReqs,23,FALSE) -> 0 | T43: Yaşama Payı | X43: 0 | Y43: 0 | Z43: 0 | AA43: 0 | AB43: 0 | AC43: 0 | AD43: 0 | AE43: 0 | AF43: 0 | AG43: 0 | AH43: 0 | AI43: 0 | BA43: Sütçü Olmayan, Dişi, Erken Laktasyon, İkiz, | BB43: =-0.000056*BW^2 + 0.0266*BW + 0.347 -> 1.6406 | BC43: =-0.0001075*BW^2 + 0.0511*BW + 0.6514 -> 3.1367125 | BD43: =0.00143*BW^2 + 2.2071*BW + 82 -> 207.71625 | BE43: =-0.007615*BW^2 + 3.1714*BW + 53.048 -> 204.439625 | BF43: =-0.007615*BW^2 + 3.0714*BW + 49.762 -> 195.653625 | BG43: =-0.005593*BW^2 + 2.2607*BW + 36.452 -> 143.871675 | BH43: =-0.002618*BW^2 + 1.2643*BW + 16.476 -> 78.09305 | BI43: =-0.0001425*BW^2 + 0.045*BW + 7 -> 9.0439375 | BJ43: =-0.000083*BW^2 + 0.0368*BW + 3.669 -> 5.441925 | BY43: 41 | BZ43: Sarı Çiçekli Gazal Boynuzu (Birdsfoot) Kuru Otu | CA43: 89 | CB43: 2.1 | CC43: 16 | CD43: 11.2 | CE43: 11.4 | CF43: 3.5 | CG43: 1.73 | CH43: 0.24 | CI43: 31 | CJ43: 50 | CK43: 57 | CL43: 2.5 | CM43: 1.3 | CN43: 0.6 | CO43: 1.3 | CP43: 38 | CQ43: 92 | CR43: 2.2 | CS43: 8 | CT43: 1.8 | CV43: 0.25 | CW43: 28 | CZ43: 8 | DA43: 0 | DB43: 1
G44: Zn,mg | H44: =VLOOKUP(Keci,KeciReqs,24,FALSE) -> 0 | T44: Flaşing | X44: 0 | Y44: 0 | Z44: 0 | AA44: 0 | AB44: 0 | AC44: 0 | AD44: 0 | AE44: 0 | AF44: 0 | AG44: 0 | AH44: 0 | AI44: 0 | BA44: Sütçü Olmayan, Dişi, Erken Laktasyon, Üçüz, | BB44: =-0.000058*BW^2 + 0.0278*BW + 0.3683 -> 1.72185 | BC44: =-0.000123*BW^2 + 0.0547*BW + 0.6567 -> 3.293125 | BD44: =-0.01476*BW^2 + 4.5714*BW + 40.762 -> 247.54 | BE44: =-0.014522*BW^2 + 4.4286*BW + 36.667 -> 236.31095 | BF44: =-0.01333*BW^2 + 4.1571*BW + 37.619 -> 225.93625 | BG44: =-0.009523*BW^2 + 3.0286*BW +28.524 -> 166.289925 | BH44: =-0.00357*BW^2 + 1.4286*BW + 14.429 -> 82.20275 | BI44: =-0.000297*BW^2 + 0.0682*BW + 9.4119 -> 12.264475 | BJ44: =-0.0002375*BW^2 + 0.06*BW + 4.481 -> 7.0625625 | BY44: 42 | BZ44: Sığır Gübresi, Kurutulmuş | CA44: 92 | CB44: 1.4 | CC44: 17 | CD44: 11.9 | CE44: 12.3 | CG44: 1.35 | CH44: 1 | CI44: 34 | CJ44: 55 | CK44: 38 | CL44: 1.7 | CM44: 0.9 | CN44: 0 | CO44: 0.8 | CP44: 37 | CQ44: 0 | CR44: 2.6 | CS44: 14 | CT44: 0.6 | CV44: 1.78 | CW44: 240 | CZ44: 100 | DA44: 0 | DB44: 1
T45: Erken Gebelik | X45: 0 | Y45: 0 | Z45: 0 | AA45: 0 | AB45: 0 | AC45: 0 | AD45: 0 | AE45: 0 | AF45: 0 | AG45: 0 | AH45: 0 | AI45: 0 | BA45: Sütçü Olmayan, Dişi, Orta Laktasyon, Tek, | BB45: =-0.000063*BW^2 + 0.0265*BW + 0.22 -> 1.486925 | BC45: =-0.000115*BW^2 + 0.0499*BW + 0.437 -> 2.833625 | BD45: =-0.006547*BW^2 + 2.5774*BW + 25.738 -> 147.690325 | BE45: =-0.00648*BW^2+ 2.49*BW + 23.821 -> 141.169 | BF45: =-0.005695*BW^2 + 2.2627*BW + 28.558 -> 135.779125 | BG45: =-0.004522*BW^2+ 1.75*BW + 16.81 -> 99.38095 | BH45: =-0.002797*BW^2 + 1.2423*BW + 10.732 -> 70.597575 | BI45: =-0.0000883*BW^2 + 0.0368*BW + 3.903 -> 5.6598925 | BJ45: =-0.0000465*BW^2 + 0.0314*BW + 2.0655 -> 3.6518375 | BY45: 43 | BZ45: Sorgum Sapları | CA45: 87 | CB45: 2 | CC45: 5 | CD45: 3.5 | CE45: 1.5 | CG45: 0.49 | CH45: 0.12 | CI45: 33 | CJ45: 65 | CK45: 55 | CL45: 2.4 | CM45: 1.2 | CN45: 0.5 | CO45: 1.2 | CP45: 41 | CQ45: 100 | CR45: 1.9 | CS45: 10 | CT45: 1.2 | CZ45: 5 | DA45: 0 | DB45: 1
T46: Geç Gebelik | X46: 0 | Y46: 0 | Z46: 0 | AA46: 0 | AB46: 0 | AC46: 0 | AD46: 0 | AE46: 0 | AF46: 0 | AG46: 0 | AH46: 0 | AI46: 0 | BA46: Sütçü Olmayan, Dişi, Orta Laktasyon, İkiz, | BB46: =-0.000067*BW^2+ 0.0296*BW + 0.3387 -> 1.764025 | BC46: =-0.000132*BW^2 + 0.0569*BW + 0.6486 -> 3.3788 | BD46: =-0.008272*BW^2+ 3.2208*BW + 44.351 -> 196.4722 | BE46: =-0.007497*BW^2 + 3.0321*BW + 43.107 -> 187.194075 | BF46: =-0.00732*BW^2 + 2.9161*BW + 41.232 -> 179.4745 | BG46: =-0.005593*BW^2 + 2.1726*BW + 29.369 -> 131.943175 | BH46: =-0.003392*BW^2 + 1.422*BW + 16.208 -> 84.1572 | BI46: =-0.0000836*BW^2 + 0.0392*BW + 7.2667 -> 9.16981 | BJ46: =-0.0000833*BW^2+ 0.0392*BW + 3.6667 -> 5.5707175 | BY46: 44 | BZ46: Soya Kabukları | CA46: 90 | CB46: 2.8 | CC46: 13 | CD46: 9.1 | CE46: 8.7 | CF46: 3.6 | CG46: 0.55 | CH46: 0.17 | CI46: 38 | CJ46: 62 | CK46: 77 | CL46: 3.4 | CM46: 1.8 | CN46: 1.1 | CO46: 1.7 | CP46: 46 | CQ46: 28 | CR46: 2.6 | CS46: 5 | CT46: 1.4 | CU46: 0.02 | CV46: 0.12 | CW46: 38 | CZ46: 6 | DA46: 0 | DB46: 1
T47: Erken Laktasyon | X47: 0 | Y47: 0 | Z47: 0 | AA47: 0 | AB47: 0 | AC47: 0 | AD47: 0 | AE47: 0 | AF47: 0 | AG47: 0 | AH47: 0 | AI47: 0 | BA47: Sütçü Olmayan, Dişi, Orta Laktasyon, Üçüz, | BB47: =-0.000069*BW^2 + 0.0317*BW + 0.436 -> 1.970775 | BC47: =-0.0001355*BW^2+ 0.0608*BW + 0.8357 -> 3.7698125 | BD47: =-0.008808*BW^2 + 3.6071*BW + 60.238 -> 231.9843 | BE47: =-0.007736*BW^2 + 3.3679*BW + 59.31 -> 221.1431 | BF47: =-0.00773*BW^2 + 3.2679*BW + 55.31 -> 211.66125 | BG47: =-0.005356*BW^2 + 2.3536*BW + 42.357 -> 155.6031 | BH47: =-0.003453*BW^2+ 1.525*BW + 20.452 -> 93.881675 | BI47: =-0.000059*BW^2 + 0.0382*BW + 10.631 -> 12.553525 | BJ47: =-0.0001425*BW^2 + 0.0493*BW + 5.1429 -> 7.4233375 | BY47: 45 | BZ47: Soya Kuru Otu | CA47: 89 | CB47: 1.9 | CC47: 15 | CD47: 10.5 | CE47: 10.5 | CG47: 1.29 | CH47: 0.3 | CI47: 35 | CJ47: 55 | CK47: 52 | CL47: 2.3 | CM47: 1.1 | CN47: 0.4 | CO47: 1.1 | CP47: 40 | CQ47: 92 | CR47: 2.2 | CS47: 8 | CT47: 1.1 | CU47: 0.15 | CV47: 0.24 | CW47: 24 | CX47: 9 | CY47: 30 | CZ47: 6 | DA47: 0 | DB47: 1
T48: Geç Laktasyon | X48: 0 | Y48: 0 | Z48: 0 | AA48: 0 | AB48: 0 | AC48: 0 | AD48: 0 | AE48: 0 | AF48: 0 | AG48: 0 | AH48: 0 | AI48: 0 | BA48: Sütçü Olmayan, Dişi, Geç Laktasyon, Tek, | BB48: =-0.00005*BW^2+ 0.0232*BW + 0.2315 -> 1.35625 | BC48: =-0.0000984*BW^2 + 0.045*BW + 0.4226 -> 2.59994 | BD48: =-0.004939*BW^2 + 2.0827*BW + 23.613 -> 123.221025 | BE48: =-0.00464*BW^2 + 1.9679*BW + 23.25 -> 117.4485 | BF48: =-0.00446*BW^2+ 1.8994*BW + 21.256 -> 112.2315 | BG48: =-0.00363*BW^2+ 1.4363*BW + 15.018 -> 83.03375 | BH48: =-0.002499*BW^2 + 1.1298*BW + 10.488 -> 65.067525 | BI48: =-0.0000708*BW^2 + 0.0333*BW + 3.8702 -> 5.48753 | BJ48: =-0.0000238*BW^2+ 0.0267*BW + 2.0929 -> 3.489405 | BY48: 46 | BZ48: Soya Samanı | CA48: 88 | CB48: 1.5 | CC48: 5 | CD48: 3.5 | CE48: 1.5 | CG48: 1.59 | CH48: 0.06 | CI48: 44 | CJ48: 70 | CK48: 42 | CL48: 1.9 | CM48: 0.9 | CN48: 0 | CO48: 0.9 | CP48: 54 | CQ48: 100 | CR48: 1.4 | CS48: 6 | CT48: 0.6 | CV48: 0.26 | CZ48: 2 | DA48: 0 | DB48: 1
X49: 0 | Y49: 0 | Z49: 0 | AA49: 0 | AB49: 0 | AC49: 0 | AD49: 0 | AE49: 0 | AF49: 0 | AG49: 0 | AH49: 0 | AI49: 0 | BA49: Sütçü Olmayan, Dişi, Geç Laktasyon, İkiz, | BB49: =-0.00006*BW^2+ 0.0269*BW + 0.28 -> 1.578 | BC49: =-0.0001188*BW^2 + 0.0516*BW + 0.5403 -> 3.01893 | BD49: =-0.006308*BW^2 + 2.594*BW + 33.726 -> 157.3143 | BE49: =-0.006189*BW^2+ 2.4905*BW + 32.25 -> 150.505775 | BF49: =-0.00583*BW^2 + 2.375*BW + 30.833 -> 143.82225 | BG49: =-0.004523*BW^2 + 1.781*BW + 21.857 -> 106.129925 | BH49: =-0.002797*BW^2 + 1.2685*BW + 14.042 -> 75.348575 | BI49: =-0.0000838*BW^2 + 0.0373*BW + 7.1214 -> 8.919405 | BJ49: =-0.0000704*BW^2 + 0.0352*BW + 3.6155 -> 5.33854 | BY49: 47 | BZ49: Sudan Otu, Kuru | CA49: 88 | CB49: 2.1 | CC49: 9 | CD49: 6.3 | CE49: 5.1 | CF49: 2.7 | CG49: 0.5 | CH49: 0.22 | CI49: 36 | CJ49: 67 | CK49: 57 | CL49: 2.5 | CM49: 1.3 | CN49: 0.6 | CO49: 1.3 | CP49: 43 | CQ49: 98 | CR49: 1.8 | CS49: 10 | CT49: 2.2 | CU49: 0.8 | CV49: 0.12 | CW49: 26 | CX49: 11.8 | CZ49: 10 | DA49: 0 | DB49: 1
T50: Moher, g/gün | X50: 0 | Y50: 0 | Z50: 0 | AA50: 0 | AB50: 0 | AC50: 0 | AD50: 0 | AE50: 0 | AF50: 0 | AG50: 0 | AH50: 0 | AI50: 0 | BA50: Sütçü Olmayan, Dişi, Geç Laktasyon, Üçüz, | BB50: =-0.000059*BW^2 + 0.0284*BW + 0.381 -> 1.764525 | BC50: =-0.0001125*BW^2+ 0.0543*BW + 0.726 -> 3.3721875 | BD50: =-0.006903*BW^2+ 2.9357*BW + 45.476 -> 186.057925 | BE50: =-0.006903*BW^2 + 2.8357*BW + 42.476 -> 177.557925 | BF50: =-0.00595*BW^2 + 2.6429*BW + 42.381 -> 169.74175 | BG50: =-0.00476*BW^2+ 1.9786*BW + 30.762 -> 125.186 | BH50: =-0.002975*BW^2 + 1.3679*BW + 17.833 -> 84.068125 | BI50: =-0.00006*BW^2 + 0.0361*BW + 10.46 -> 12.264 | BJ50: =-0.0001188*BW^2 + 0.0436*BW + 5.119 -> 7.15763 | BY50: 48 | BZ50: Şeker Kamışı Posası | CA50: 91 | CB50: 1.3 | CC50: 1 | CD50: 0.7 | CE50: 2.1 | CG50: 0.9 | CH50: 0.29 | CI50: 49 | CJ50: 86 | CK50: 36 | CL50: 1.6 | CM50: 0.9 | CN50: 0 | CO50: 0.7 | CP50: 59 | CQ50: 100 | CR50: 0.7 | CS50: 3 | CT50: 0.5 | CV50: 0.1 | CZ50: 5 | DA50: 0 | DB50: 1
T51: =Tiftik/365*1000 -> 0 | X51: 0 | Y51: 0 | Z51: 0 | AA51: 0 | AB51: 0 | AC51: 0 | AD51: 0 | AE51: 0 | AF51: 0 | AG51: 0 | AH51: 0 | AI51: 0 | BA51: Sütçü Olmayan, Erkek, Yaşama Payı, , | BB51: =-0.00002*BW^2 + 0.01861*BW + 0.26 -> 1.22305 | BC51: =-0.0000362*BW^2 + 0.0352*BW + 0.514 -> 2.340495 | BD51: =-0.0016*BW^2 + 1.296*BW + 16.4 -> 82.84 | BE51: =-0.0013715*BW^2+ 1.2023*BW + 17.4 -> 79.3777125 | BF51: =-0.00114*BW^2 + 1.1166*BW + 18.2 -> 76.1645 | BG51: =-0.0008*BW^2 + 0.82*BW + 13 -> 55.68 | BH51: =-0.000914*BW^2+ 0.8709*BW + 13.8 -> 58.93465 | BI51: =-0.000045*BW^2 + 0.0291*BW + 0.76 -> 2.224375 | BJ51: =0.02*BW + 0.7 -> 1.8 | BY51: 49 | BZ51: Taş Yoncası (Clover Sweet) Kuru Otu | CA51: 91 | CB51: 1.9 | CC51: 16 | CD51: 11.2 | CE51: 11.4 | CF51: 4.8 | CG51: 1.27 | CH51: 0.25 | CI51: 30 | CJ51: 50 | CK51: 53 | CL51: 2.3 | CM51: 1.2 | CN51: 0.4 | CO51: 1.2 | CP51: 38 | CQ51: 92 | CR51: 2.4 | CS51: 9 | CT51: 1.8 | CU51: 0.37 | CV51: 0.46 | CX51: 19.8 | CZ51: 20 | DA51: 0 | DB51: 1
X52: 0 | Y52: 0 | Z52: 0 | AA52: 0 | AB52: 0 | AC52: 0 | AD52: 0 | AE52: 0 | AF52: 0 | AG52: 0 | AH52: 0 | AI52: 0 | BA52: Sütçü Olmayan, Erkek, Flaşing, , | BB52: =-0.0000204*BW^2+ 0.0201*BW + 0.306 -> 1.34979 | BC52: =-0.0000406*BW^2 + 0.0389*BW + 0.56 -> 2.576685 | BD52: =-0.001485*BW^2 + 1.3731*BW + 20.2 -> 91.228375 | BE52: =-0.001484*BW^2 + 1.3251*BW + 18.6 -> 86.9914 | BF52: =-0.00126*BW^2 + 1.2314*BW + 19.6 -> 83.5155 | BG52: =-0.0009147*BW^2 + 0.9109*BW + 13.8 -> 61.1325325 | BH52: =-0.000914*BW^2+ 0.9509*BW + 14.8 -> 64.33465 | BI52: =-0.0000345*BW^2+ 0.0297*BW + 0.82 -> 2.3491375 | BJ52: =-0.0000344*BW^2 + 0.0289*BW + 0.44 -> 1.92544 | BY52: 50 | BZ52: Tritikale Kuru Otu | CA52: 90 | CB52: 2 | CC52: 10 | CD52: 7 | CE52: 6 | CG52: 0.3 | CH52: 0.26 | CI52: 34 | CJ52: 69 | CK52: 56 | CL52: 2.5 | CM52: 1.2 | CN52: 0.5 | CO52: 1.2 | CP52: 41 | CQ52: 98 | CT52: 2.3 | CW52: 25 | CZ52: 5.5 | DA52: 0 | DB52: 1
X53: 0 | Y53: 0 | Z53: 0 | AA53: 0 | AB53: 0 | AC53: 0 | AD53: 0 | AE53: 0 | AF53: 0 | AG53: 0 | AH53: 0 | AI53: 0 | BA53: Sütçü Olmayan, Oğlak, Dişi, , | BB53: =IF(BW<15,(0.0000064*ADG^2-0.0003*ADG+0.3287),IF(BW<20,(-0.0000044*ADG^2+0.0016*ADG+0.46),IF(BW<25,(0.00000054*ADG^2+0.00044*ADG+0.6024),IF(BW<30,(0.0000055*ADG^2-0.00024*ADG+0.7048),IF(BW<35,(0.0000045*ADG^2+0.0002*ADG+0.8046),IF(BW<40,(0.000004*ADG^2+0.0003*ADG+0.9009),(0.0000044*ADG^2+0.0001*ADG+0.9927) )))))) -> 0.9927 | BC53: =(0.0055*ADG) + (-0.00018*BW^2 + 0.0461*BW + 0.1709) -> 2.1619 | BD53: =(0.6*ADG) + (-0.0071*BW^2 + 1.9214*BW + 7.5714) -> 91.7709 | BE53: =(0.57361*ADG) + (-0.00765*BW^2 + 1.85814*BW + 7.1474) -> 86.20385 | BF53: =(0.55*ADG) + (-0.00825*BW^2 + 1.8358*BW + 5.8784) -> 81.89115 | BG53: =IF(BW<15,(0.4059*ADG+17.04),IF(BW<20,(0.4034*ADG+23.478),IF(BW<25,(0.40495*ADG+28.902),IF(BW<30,(0.40452*ADG+34.121),IF(BW<35,(0.40558*ADG+39.04),IF(BW<40,(0.40355*ADG+44.195),(0.0000101*ADG^2+0.4012*ADG+48.929) )))))) -> 48.929 | BH53: =IF(BW<15,(-0.000002*ADG^2+0.1392*ADG+15.209),IF(BW<20,(0.0000464*ADG^2+0.1264*ADG+20.919),IF(BW<25,(0.0000026*ADG^2+0.1384*ADG+25.222),IF(BW<30,(0.0000026*ADG^2+0.1384*ADG+30.222),IF(BW<35,(0.0000227*ADG^2+0.1307*ADG+34.848),IF(BW<40,(0.0000064*ADG^2+0.1348*ADG+38.915),(-0.000014*ADG^2+0.1406*ADG+42.847) )))))) -> 42.847 | BI53: =IF(BW<15,(0.0000052*ADG^2+ 0.0248*ADG+0.9501),IF(BW<20,(-0.0000031*ADG^2+ 0.0257*ADG+1.1666),IF(BW<25,(-0.0000056*ADG^2+ 0.0264*ADG+1.321),IF(BW<30,(-0.0000072*ADG^2+ 0.0271*ADG+1.4403),IF(BW<35,(-0.00000975*ADG^2+ 0.0281*ADG+1.6158),IF(BW<40,(-0.0000096*ADG^2+ 0.0291*ADG+1.7214),(-0.00000875*ADG^2+0.0287*ADG+1.8663) )))))) -> 1.8663 | BJ53: =IF(BW<15,(0.000014*ADG^2+ 0.0078*ADG+0.5967),IF(BW<20,(-0.0000013*ADG^2+ 0.0103*ADG+0.7623),IF(BW<25,(-0.0000061*ADG^2+ 0.0115*ADG+0.8996),IF(BW<30,(-0.0000077*ADG^2+ 0.0122*ADG+1.0189),IF(BW<35,(-0.0000093*ADG^2+ 0.013*ADG+1.1972),IF(BW<40,(-0.000011*ADG^2+ 0.0143*ADG+1.307),(-0.0000102*ADG^2+0.0139*ADG+1.4519) )))))) -> 1.4519 | BY53: 51 | BZ53: Üzüm Posası, sapsız | CA53: 91 | CB53: 1.1 | CC53: 12 | CD53: 8.4 | CE53: 7.8 | CF53: 5.4 | CG53: 0.5 | CH53: 0.08 | CI53: 32 | CJ53: 53 | CK53: 30 | CL53: 1.3 | CM53: 0.8 | CN53: 0 | CO53: 0.6 | CP53: 48 | CQ53: 34 | CR53: 7.5 | CS53: 9 | CT53: 0.5 | CU53: 0.01 | CW53: 24 | CZ53: 2.5 | DA53: 0 | DB53: 1
X54: 0 | Y54: 0 | Z54: 0 | AA54: 0 | AB54: 0 | AC54: 0 | AD54: 0 | AE54: 0 | AF54: 0 | AG54: 0 | AH54: 0 | AI54: 0 | BA54: Sütçü Olmayan, Oğlak, Kastre Erkek, , | BB54: =IF(BW<15,(0.0000064*ADG^2-0.0003*ADG+0.3287),IF(BW<20,(-0.0000044*ADG^2+0.0016*ADG+0.46),IF(BW<25,(0.00000054*ADG^2+0.00044*ADG+0.6024),IF(BW<30,(0.0000055*ADG^2-0.00024*ADG+0.7048),IF(BW<35,(0.0000045*ADG^2+0.0002*ADG+0.8046),IF(BW<40,(0.000004*ADG^2+0.0003*ADG+0.9009),(0.0000044*ADG^2+0.0001*ADG+0.9927) )))))) -> 0.9927 | BC54: =(0.0055*ADG) + (-0.00018*BW^2 + 0.0461*BW + 0.1709) -> 2.1619 | BD54: =(0.6*ADG) + (-0.0071*BW^2 + 1.9214*BW + 7.5714) -> 91.7709 | BE54: =(0.57361*ADG) + (-0.00765*BW^2 + 1.85814*BW + 7.1474) -> 86.20385 | BF54: =(0.55*ADG) + (-0.00825*BW^2 + 1.8358*BW + 5.8784) -> 81.89115 | BG54: =IF(BW<15,(0.4059*ADG+17.04),IF(BW<20,(0.4034*ADG+23.478),IF(BW<25,(0.40495*ADG+28.902),IF(BW<30,(0.40452*ADG+34.121),IF(BW<35,(0.40558*ADG+39.04),IF(BW<40,(0.40355*ADG+44.195),(0.0000101*ADG^2+0.4012*ADG+48.929) )))))) -> 48.929 | BH54: =IF(BW<15,(-0.000002*ADG^2+0.1392*ADG+15.209),IF(BW<20,(0.0000464*ADG^2+0.1264*ADG+20.919),IF(BW<25,(0.0000026*ADG^2+0.1384*ADG+25.222),IF(BW<30,(0.0000026*ADG^2+0.1384*ADG+30.222),IF(BW<35,(0.0000227*ADG^2+0.1307*ADG+34.848),IF(BW<40,(0.0000064*ADG^2+0.1348*ADG+38.915),(-0.000014*ADG^2+0.1406*ADG+42.847) )))))) -> 42.847 | BI54: =IF(BW<15,(0.0000052*ADG^2+ 0.0248*ADG+0.9501),IF(BW<20,(-0.0000031*ADG^2+ 0.0257*ADG+1.1666),IF(BW<25,(-0.0000056*ADG^2+ 0.0264*ADG+1.321),IF(BW<30,(-0.0000072*ADG^2+ 0.0271*ADG+1.4403),IF(BW<35,(-0.00000975*ADG^2+ 0.0281*ADG+1.6158),IF(BW<40,(-0.0000096*ADG^2+ 0.0291*ADG+1.7214),(-0.00000875*ADG^2+0.0287*ADG+1.8663) )))))) -> 1.8663 | BJ54: =IF(BW<15,(0.000014*ADG^2+ 0.0078*ADG+0.5967),IF(BW<20,(-0.0000013*ADG^2+ 0.0103*ADG+0.7623),IF(BW<25,(-0.0000061*ADG^2+ 0.0115*ADG+0.8996),IF(BW<30,(-0.0000077*ADG^2+ 0.0122*ADG+1.0189),IF(BW<35,(-0.0000093*ADG^2+ 0.013*ADG+1.1972),IF(BW<40,(-0.000011*ADG^2+ 0.0143*ADG+1.307),(-0.0000102*ADG^2+0.0139*ADG+1.4519) )))))) -> 1.4519 | BY54: 52 | BZ54: Yem Kanyaşı (Canary grass) Kuru Otu | CA54: 91 | CB54: 1.9 | CC54: 9 | CD54: 6.3 | CE54: 5.1 | CF54: 2.3 | CG54: 0.38 | CH54: 0.25 | CI54: 32 | CJ54: 67 | CK54: 53 | CL54: 2.3 | CM54: 1.2 | CN54: 0.4 | CO54: 1.2 | CP54: 34 | CQ54: 98 | CR54: 2.7 | CS54: 8 | CT54: 2.7 | CV54: 0.14 | CW54: 18 | CX54: 5.2 | CZ54: 6 | DA54: 0 | DB54: 1
X55: 0 | Y55: 0 | Z55: 0 | AA55: 0 | AB55: 0 | AC55: 0 | AD55: 0 | AE55: 0 | AF55: 0 | AG55: 0 | AH55: 0 | AI55: 0 | BA55: Sütçü Olmayan, Oğlak, Erkek, , | BB55: =IF(BW<15,(0.000007*ADG^2-0.0005*ADG+0.382),IF(BW<20,(0.00001*ADG^2-0.0014*ADG+0.5138),IF(BW<25,(0.000005*ADG^2-0.00075*ADG+0.68),IF(BW<30,(-0.000002*ADG^2+0.0009*ADG+0.8169),IF(BW<35,(-0.000002*ADG^2+0.0009*ADG+0.9122),IF(BW<40,(-0.0000065*ADG^2+0.0025*ADG+1.01),(0.0000025*ADG^2+0.0006*ADG+1.13) )))))) -> 1.13 | BC55: =(0.0055*ADG) + (-0.00023*BW^2 + 0.0546*BW + 0.191) -> 2.49825 | BD55: =(0.6*ADG) + (-0.0071*BW^2 + 1.9214*BW + 7.5714) -> 91.7709 | BE55: =(0.57361*ADG) + (-0.00765*BW^2 + 1.85814*BW + 7.1474) -> 86.20385 | BF55: =(0.55*ADG) + (-0.00825*BW^2 + 1.8358*BW + 5.8784) -> 81.89115 | BG55: =IF(BW<15,(0.4059*ADG+17.04),IF(BW<20,(0.4034*ADG+23.478),IF(BW<25,(0.40495*ADG+28.902),IF(BW<30,(0.40452*ADG+34.121),IF(BW<35,(0.40558*ADG+39.04),IF(BW<40,(0.40355*ADG+44.195),(0.0000101*ADG^2+0.4012*ADG+48.929) )))))) -> 48.929 | BH55: =IF(BW<15,(0.0000464*ADG^2+0.1264*ADG+17.919),IF(BW<20,(0.0000024*ADG^2+0.1408*ADG+23.791),IF(BW<25,(-0.0000013*ADG^2+0.1364*ADG+29.885),IF(BW<30,(0.0000026*ADG^2+0.1384*ADG+35.222),IF(BW<35,(0.0000035*ADG^2+0.1382*ADG+40.224),IF(BW<40,(0.0000035*ADG^2+0.1382*ADG+45.224),(-0.0000278*ADG^2+0.1454*ADG+49.737) )))))) -> 49.737 | BI55: =IF(BW<15,(0.0256*ADG+1.0107),IF(BW<20,(0.02579*ADG+1.1121),IF(BW<25,(0.02472*ADG+1.4807),IF(BW<30,(0.02465*ADG+1.6557),IF(BW<35,(-0.0000018*ADG^2+0.0254*ADG+1.8099),IF(BW<40,(-0.0000049*ADG^2+0.0271*ADG+1.9345),(0.0000009*ADG^2+0.0254*ADG+2.1673) )))))) -> 2.1673 | BJ55: =IF(BW<15,(0.0000082*ADG^2+ 0.0088*ADG+0.6462),IF(BW<20,(0.0000123*ADG^2+ 0.0074*ADG+0.8591),IF(BW<25,(0.000005*ADG^2+ 0.0083*ADG+1.086),IF(BW<30,(-0.0000015*ADG^2+ 0.0098*ADG+1.2185),IF(BW<35,(-0.00000385*ADG^2+ 0.0109*ADG+1.3441),IF(BW<40,(-0.0000099*ADG^2+ 0.0127*ADG+1.5179),(0.0000031*ADG^2+0.0098*ADG+1.7097) )))))) -> 1.7097 | BY55: 53 | BZ55: Yer Fıstığı Kabukları | CA55: 91 | CB55: 0.8 | CC55: 7 | CD55: 4.9 | CE55: 3.3 | CG55: 0.2 | CH55: 0.07 | CI55: 63 | CJ55: 74 | CK55: 22 | CL55: 1 | CM55: 0.8 | CN55: 0 | CO55: 0.4 | CP55: 65 | CQ55: 98 | CR55: 1.5 | CS55: 5 | CT55: 0.9 | CZ55: 3 | DA55: 0 | DB55: 1
X56: 0 | Y56: 0 | Z56: 0 | AA56: 0 | AB56: 0 | AC56: 0 | AD56: 0 | AE56: 0 | AF56: 0 | AG56: 0 | AH56: 0 | AI56: 0 | BA56: Tiftik Keçisi, Dişi, Yaşama Payı, , | BB56: =(Moher*0.02) + (-0.00007*BW^2 + 0.025*BW + 0.1165) -> 1.27975 | BC56: =IF(BW<40,(0.0002*Moher^2 + 0.033*Moher + 1.47), IF(BW<50,(0.038*Moher + 1.79), IF(BW<60, (-0.0002*Moher^2 +0.043*Moher + 2.09), (0.038*Moher + 2.43) ))) -> 2.09 | BD56: =IF(BW<40,(0.02*Moher^2 + 2.1*Moher + 65), IF(BW<50,(2.4*Moher + 80), IF(BW<60, (-0.02*Moher^2 +3.1*Moher + 89), (0.02*Moher^2 +1.9*Moher + 111) ))) -> 89 | BE56: =IF(BW<40,(0.02*Moher^2 + 1.9*Moher + 63), IF(BW<50,(2.4*Moher + 75), IF(BW<60, (-0.02*Moher^2 + 2.9*Moher + 86), (-0.02*Moher^2 + 2.9*Moher + 99) ))) -> 86 | BF56: =(Moher*2.2) + (-0.00249*BW^2 + 1.555*BW + 14.65) -> 92.64275 | BG56: =(Moher*1.6) + (-0.005*BW^2 + 1.45*BW + 4) -> 68.625 | BH56: =(Moher) + (0.8*BW + 12) -> 56 | BI56: =IF(BW<40,(0.02*Moher + 1.7), IF(BW<50,(-0.002*Moher^2 + 0.07*Moher + 1.7), IF(BW<60, (-0.002*Moher^2 +0.09*Moher + 1.7), (0.02*Moher + 2.5) ))) -> 1.7 | BJ56: =IF(BW<40,(-0.002*Moher^2 + 0.07*Moher + 1), IF(BW<50,(0.002*Moher^2 - 0.01*Moher + 1.6), IF(BW<60, (0.002*Moher^2 - 0.03*Moher + 2.1), (-0.002*Moher^2 + 0.09*Moher + 1.5) ))) -> 2.1 | BY56: 54 | BZ56: Yonca Kuru Otu, Çiçek Başı | CA56: 90 | CB56: 2.1 | CC56: 19 | CD56: 13.3 | CE56: 14.1 | CF56: 3.5 | CG56: 1.41 | CH56: 0.26 | CI56: 28 | CJ56: 45 | CK56: 59 | CL56: 2.6 | CM56: 1.3 | CN56: 0.6 | CO56: 1.3 | CP56: 35 | CQ56: 92 | CR56: 2.5 | CS56: 8 | CT56: 2.5 | CU56: 0.38 | CV56: 0.28 | CW56: 22 | CX56: 28 | CY56: 26 | CZ56: 8.5 | DA56: 0 | DB56: 1
X57: 0 | Y57: 0 | Z57: 0 | AA57: 0 | AB57: 0 | AC57: 0 | AD57: 0 | AE57: 0 | AF57: 0 | AG57: 0 | AH57: 0 | AI57: 0 | BA57: Tiftik Keçisi, Dişi, Flaşing, , | BB57: =(Moher*0.019) + (-0.000035*BW^2+0.025*BW + 0.18) -> 1.449125 | BC57: =IF(BW<40,(-0.0002*Moher^2 +0.045*Moher + 1.58), IF(BW<50,(0.042*Moher + 1.97), IF(BW<60, (-0.0002*Moher^2 +0.047*Moher + 2.3), (-0.0002*Moher^2 +0.047*Moher + 2.64) ))) -> 2.3 | BD57: =IF(BW<40,(0.02*Moher^2 + 2.3*Moher + 72), IF(BW<50,(0.02*Moher^2 +2.3*Moher + 89), IF(BW<60, (-0.02*Moher^2 +3.3*Moher + 99), (0*Moher^2 +3.3*Moher + 114) ))) -> 99 | BE57: =(Moher*2.6) + (-0.0025*BW^2 + 1.755*BW + 16.65) -> 105.6125 | BF57: =(Moher*2.4) + (-0.00249*BW^2 + 1.695*BW + 16.35) -> 102.04275 | BG57: =(Moher*1.8) + (-0.005*BW^2 + 1.55*BW + 5) -> 75.125 | BH57: =(Moher) + (-0.005*BW^2+1.35*BW + 4) -> 63.125 | BI57: =IF(BW<40,(0.002*Moher^2 - 0.01*Moher + 1.9), IF(BW<50,(0.002*Moher^2 - 0.01*Moher + 2.2), IF(BW<60, (-0.002*Moher^2 + 0.09*Moher + 1.9), (0.002*Moher^2 - 0.03*Moher + 3) ))) -> 1.9 | BJ57: =IF(BW<40,(0.02*Moher + 1.4), IF(BW<50,(0.002*Moher^2 - 0.01*Moher + 1.8), IF(BW<60, (0.002*Moher^2 - 0.03*Moher + 2.3), (-0.002*Moher^2 + 0.09*Moher + 1.7) ))) -> 2.3 | BY57: 55 | BZ57: Yonca Kuru Otu, Çiçek ortası | CA57: 89 | CB57: 2.1 | CC57: 17 | CD57: 11.9 | CE57: 12.3 | CF57: 3.9 | CG57: 1.4 | CH57: 0.24 | CI57: 30 | CJ57: 47 | CK57: 58 | CL57: 2.6 | CM57: 1.3 | CN57: 0.6 | CO57: 1.3 | CP57: 36 | CQ57: 92 | CR57: 2.3 | CS57: 9 | CT57: 2 | CU57: 0.38 | CV57: 0.27 | CW57: 24 | CZ57: 8.5 | DA57: 0 | DB57: 1
A58: =IF(B5=0,0,IF(C5<=0,0,A5)) -> 1 | B58: =IF(B5=0,0,IF(C5<=0,0,B5)) -> Buğday Samanı | C58: =IF(B5=0,0,IF(C5<=0,0,C5)) -> 1 | T58: Süt verimi, Erken Laktasyon | X58: 0 | Y58: 0 | Z58: 0 | AA58: 0 | AB58: 0 | AC58: 0 | AD58: 0 | AE58: 0 | AF58: 0 | AG58: 0 | AH58: 0 | AI58: 0 | BA58: Tiftik Keçisi, Dişi, Erken Gebelik, Tek, | BB58: =(Moher*0.02) + (-0.000075*BW^2 + 0.0271*BW + 0.1965) -> 1.460125 | BC58: =IF(BW<40,(0.038*Moher + 1.7), IF(BW<50,(-0.0002*Moher^2 +0.041*Moher + 2.08), IF(BW<60, (0.0002*Moher^2 +0.031*Moher + 2.5), (0.038*Moher + 2.79) ))) -> 2.5 | BD58: =IF(BW<40,(0.02*Moher^2 +2.1*Moher + 87), IF(BW<50,(0.02*Moher^2 +2.1*Moher + 106), IF(BW<60, (2.4*Moher + 123), (-0.02*Moher^2 +3.1*Moher + 134) ))) -> 123 | BE58: =IF(BW<40,(0.02*Moher^2 + 1.9*Moher + 84), IF(BW<50,(0.02*Moher^2 + 1.9*Moher + 102), IF(BW<60, (-0.02*Moher^2 + 2.9*Moher + 113), (-0.02*Moher^2 + 2.9*Moher + 129) ))) -> 113 | BF58: =(Moher*2.2) + (-0.005*BW^2 + 2.05*BW + 22) -> 119.625 | BG58: =(Moher*1.6) + (-0.005*BW^2 + 1.65*BW + 13) -> 88.625 | BH58: =IF(BW<40,(Moher + 42), IF(BW<50,(-0.02*Moher^2 + 1.3*Moher + 51), IF(BW<60, (0.02*Moher^2 + 0.3*Moher + 66), (Moher + 69) ))) -> 66 | BI58: =IF(BW<40,(-0.002*Moher^2 +0.07*Moher + 3.6), IF(BW<50,(-0.002*Moher^2 +0.07*Moher + 3.9), IF(BW<60, (-0.002*Moher^2 +0.09*Moher + 3.9), (0.002*Moher^2 -0.03*Moher + 5) ))) -> 3.9 | BJ58: =IF(BW<40,(0.02*Moher + 2.2), IF(BW<50,(0.02*Moher + 2.5), IF(BW<60, (0.002*Moher^2 - 0.03*Moher + 3.1), (-0.002*Moher^2 + 0.09*Moher + 2.5) ))) -> 3.1 | BY58: 56 | BZ58: Yonca Kuru Otu, Olgun | CA58: 88 | CB58: 1.8 | CC58: 13 | CD58: 9.1 | CE58: 8.7 | CF58: 3.9 | CG58: 1.18 | CH58: 0.19 | CI58: 38 | CJ58: 59 | CK58: 50 | CL58: 2.2 | CM58: 1.1 | CN58: 0.3 | CO58: 1.1 | CP58: 45 | CQ58: 92 | CR58: 1.3 | CS58: 8 | CT58: 1.5 | CU58: 0.35 | CV58: 0.21 | CW58: 23 | CX58: 2.4 | CZ58: 8.5 | DA58: 0 | DB58: 1
A59: 1 | B59: Fiğ Kuru Otu | C59: 0.8 | T59: Düşük verimli = 4 - 6 lt | X59: 0 | Y59: 0 | Z59: 0 | AA59: 0 | AB59: 0 | AC59: 0 | AD59: 0 | AE59: 0 | AF59: 0 | AG59: 0 | AH59: 0 | AI59: 0 | BA59: Tiftik Keçisi, Dişi, Erken Gebelik, İkiz, | BB59: =(Moher*0.02) + (-0.000075*BW^2 + 0.028*BW + 0.2365) -> 1.549625 | BC59: =IF(BW<40,(-0.0002*Moher^2 + 0.041*Moher + 1.82), IF(BW<50,(0.0002*Moher^2 +0.033*Moher + 2.26), IF(BW<60, (0.0002*Moher^2 +0.031*Moher + 2.67), (0.038*Moher + 2.98) ))) -> 2.67 | BD59: =IF(BW<40,(-0.02*Moher^2 + 2.9*Moher + 94), IF(BW<50,(2.4*Moher + 117), IF(BW<60, (0.02*Moher^2 +1.9*Moher + 139), (2.4*Moher + 155) ))) -> 139 | BE59: =IF(BW<40,(0.02*Moher^2 + 1.9*Moher + 94), IF(BW<50,(0.02*Moher^2 + 1.9*Moher + 113), IF(BW<60, (-0.02*Moher^2 + 2.9*Moher + 126), (0.02*Moher^2 + 1.7*Moher + 152) ))) -> 126 | BF59: =(Moher*2.2) + (-0.00496*BW^2 + 2.21*BW + 26.3) -> 132.846 | BG59: =(Moher*1.6) + (-0.005*BW^2 + 1.75*BW + 17) -> 98.125 | BH59: =IF(BW<40,(Moher + 45), IF(BW<50,(0.02*Moher^2 + 0.5*Moher + 58), IF(BW<60, (0.02*Moher^2 + 0.3*Moher + 70), (-0.02*Moher^2 + 1.5*Moher + 71) ))) -> 70 | BI59: =IF(BW<40,(0.02*Moher + 5.1), IF(BW<50,(0.02*Moher + 5.8), IF(BW<60, (0.002*Moher^2 - 0.03*Moher + 6.4), (0.002*Moher^2 -0.03*Moher + 6.7) ))) -> 6.4 | BJ59: =(Moher*0.02) + (0.03*BW + 2) -> 3.65 | BY59: 57 | BZ59: Yonca Kuru Otu, Tam Çiçeklenmiş | CA59: 88 | CB59: 2 | CC59: 16 | CD59: 11.2 | CE59: 11.4 | CF59: 4 | CG59: 1.2 | CH59: 0.23 | CI59: 34 | CJ59: 52 | CK59: 54 | CL59: 2.4 | CM59: 1.2 | CN59: 0.4 | CO59: 1.2 | CP59: 40 | CQ59: 92 | CR59: 2 | CS59: 8 | CT59: 1.7 | CU59: 0.37 | CV59: 0.25 | CW59: 23 | CX59: 13 | CZ59: 8.5 | DA59: 0 | DB59: 1
A60: 4 | B60: KOYUN SÜT YEMİ | C60: 0.35 | T60: Orta verimli = 6 - 8 lt | X60: 0 | Y60: 0 | Z60: 0 | AA60: 0 | AB60: 0 | AC60: 0 | AD60: 0 | AE60: 0 | AF60: 0 | AG60: 0 | AH60: 0 | AI60: 0 | BA60: Tiftik Keçisi, Dişi, Geç Gebelik, Tek, | BB60: =IF(BW<50,(0.016*Moher + (0.02*BW + 0.3)), ( 0.02*Moher + (0.022*BW + 0.59)) ) -> 1.8 | BC60: =IF(BW<40,(0.038*Moher + 2.17), IF(BW<50,(-0.0002*Moher^2 +0.041*Moher + 2.63), IF(BW<60, (0.038*Moher + 3.06), (0.0002*Moher^2 +0.031*Moher + 3.52) ))) -> 3.06 | BD60: =IF(BW<40,(-0.02*Moher^2 + 2.9*Moher + 114), IF(BW<50,(-0.02*Moher^2 + 2.9*Moher + 138), IF(BW<60, (0.02*Moher^2 + 1.9*Moher + 165), (2.4*Moher + 183) ))) -> 165 | BE60: =IF(BW<40,(0.02*Moher^2 + 1.9*Moher + 113), IF(BW<50,(0.02*Moher^2 + 1.9*Moher + 136), IF(BW<60, (0.02*Moher^2 + 1.7*Moher + 159), (2.4*Moher + 173) ))) -> 159 | BF60: =IF(BW<40,(0.02*Moher^2 + 1.9*Moher + 107), IF(BW<50,(0.02*Moher^2 + 1.9*Moher + 129), IF(BW<60, (2.2*Moher + 148), (2.2*Moher + 167) ))) -> 148 | BG60: =(Moher*1.6) + (-0.005*BW^2 + 1.91*BW + 26.3) -> 116.225 | BH60: =IF(BW<40,(-0.02*Moher^2 + 1.3*Moher + 53), IF(BW<50,(0.02*Moher^2 + 0.5*Moher + 68), IF(BW<60, (-0.02*Moher^2 + 1.5*Moher + 73), (-0.02*Moher^2 + 1.5*Moher + 83) ))) -> 73 | BI60: =IF(BW<40,(-0.002*Moher^2 + 0.07*Moher + 3.5), IF(BW<50,(-0.002*Moher^2 + 0.07*Moher + 3.7), IF(BW<60, (0.002*Moher^2 - 0.03*Moher + 5.2), (0.002*Moher^2 - 0.03*Moher + 5.5) ))) -> 5.2 | BJ60: =IF(BW<40,(0.02*Moher + 2.1), IF(BW<50,(0.02*Moher + 2.4), IF(BW<60, (-0.002*Moher^2 + 0.09*Moher + 2.7), (-0.002*Moher^2 + 0.09*Moher + 3) ))) -> 2.7 | BY60: 58 | BZ60: Yonca Küpleri | CA60: 91 | CB60: 2.1 | CC60: 18 | CD60: 12.6 | CE60: 13.2 | CF60: 5.4 | CG60: 1.3 | CH60: 0.23 | CI60: 29 | CJ60: 46 | CK60: 57 | CL60: 2.5 | CM60: 1.3 | CN60: 0.6 | CO60: 1.3 | CP60: 36 | CQ60: 40 | CR60: 2 | CS60: 11 | CT60: 1.9 | CU60: 0.37 | CV60: 0.33 | CW60: 20 | CZ60: 10 | DA60: 0 | DB60: 1
A61: 0 | B61: 0 | C61: 0 | T61: Yüksek verimli = 8 - 10 lt | BA61: Tiftik Keçisi, Dişi, Geç Gebelik, İkiz, | BB61: =(Moher*0.016) + (-0.000027*BW^2 + 0.022*BW + 0.3935) -> 1.521825 | BC61: =IF(BW<40,(-0.0002*Moher^2 + 0.041*Moher + 2.45), IF(BW<50,(-0.0002*Moher^2 +0.041*Moher + 2.95), IF(BW<60, (0.038*Moher + 3.43), (0.0002*Moher^2 +0.031*Moher + 3.95) ))) -> 3.43 | BD61: =IF(BW<40,(2.4*Moher + 140), IF(BW<50,(-0.02*Moher^2 + 2.9*Moher + 164), IF(BW<60, (-0.02*Moher^2 + 3.1*Moher + 187), (-0.02*Moher^2 + 3.1*Moher + 212) ))) -> 187 | BE61: =(Moher*2.4) + (-0.005*BW^2 + 2.91*BW + 49.3) -> 194.225 | BF61: =IF(BW<40,(-0.02*Moher^2 + 2.7*Moher + 125), IF(BW<50,(2.2*Moher + 152), IF(BW<60, (-0.02*Moher^2 + 2.9*Moher + 170), (-0.02*Moher^2 + 2.9*Moher + 193) ))) -> 170 | BG61: =(Moher*1.6) + (-0.005*BW^2 + 2.19*BW + 32.7) -> 138.025 | BH61: =IF(BW<40,(-0.02*Moher^2 + 1.3*Moher + 60), IF(BW<50,(0.02*Moher^2 + 0.5*Moher + 76), IF(BW<60, (Moher + 85), (0.02*Moher^2 + 0.3*Moher + 102) ))) -> 85 | BI61: =IF(BW<40,(0.04*Moher + 5.3), IF(BW<50,(0.002*Moher^2 - 0.01*Moher + 5.8), IF(BW<60, (0.02*Moher + 6), (0.02*Moher + 6.3) ))) -> 6 | BJ61: =IF(BW<40,(0.02*Moher + 2.9), IF(BW<50,(0.002*Moher^2 - 0.01*Moher + 3.2), IF(BW<60, (0.02*Moher + 3.4), (0.02*Moher + 3.7) ))) -> 3.4 | BY61: 59 | BZ61: Yonca Sapları | CA61: 89 | CB61: 1.7 | CC61: 11 | CD61: 7.7 | CE61: 6.9 | CF61: 4.8 | CG61: 0.9 | CH61: 0.18 | CI61: 44 | CJ61: 68 | CK61: 47 | CL61: 2.1 | CM61: 1 | CN61: 0.2 | CO61: 1 | CP61: 51 | CQ61: 100 | CR61: 1.3 | CS61: 6 | CT61: 2.5 | CZ61: 8 | DA61: 0 | DB61: 1
A62: 0 | B62: 0 | C62: 0 | BA62: Tiftik Keçisi, Dişi, Erken Laktasyon, Tek, | BB62: =IF(BW<40,(0.016*Moher + 0.86), IF(BW<50,(0.014*Moher + 1.05), IF(BW<60, (0.02*Moher + 1.47), (0.02*Moher + 1.63) ))) -> 1.47 | BC62: =(Moher*0.038) + (-0.0002*BW^2 + 0.0515*BW + 0.6735) -> 2.901 | BD62: =IF(BW<40,(-0.02*Moher^2 + 2.9*Moher + 103), IF(BW<50,(0.02*Moher^2 + 2.1*Moher + 128), IF(BW<60, (-0.02*Moher^2 + 3.1*Moher + 143), (2.4*Moher + 168) ))) -> 143 | BE62: =IF(BW<40,(-0.02*Moher^2 + 2.7*Moher + 99), IF(BW<50,(-0.02*Moher^2 +2.7*Moher + 120), IF(BW<60, (0.02*Moher^2 + 1.7*Moher + 146), (-0.02*Moher^2 +2.9*Moher + 156) ))) -> 146 | BF62: =(Moher*2.2) + (-0.0075*BW^2 + 2.585*BW + 25.05) -> 144.5375 | BG62: =(Moher*1.6) + (-0.005*BW^2 + 1.85*BW + 20) -> 106.625 | BH62: =IF(BW<40,(-0.02*Moher^2 + 1.3*Moher + 50), IF(BW<50,(-0.02*Moher^2 + 1.3*Moher + 60), IF(BW<60, (0.02*Moher^2 + 0.3*Moher + 75), (0.02*Moher^2 + 0.3*Moher + 83) ))) -> 75 | BI62: =IF(BW<40,(0.02*Moher + 3.3), IF(BW<50,(0.02*Moher + 3.5), IF(BW<60, (0.002*Moher^2 - 0.03*Moher + 4.5), (0.002*Moher^2 - 0.03*Moher + 4.7) ))) -> 4.5 | BJ62: =IF(BW<40,(0.02*Moher + 2.1), IF(BW<50,(0.02*Moher + 2.6), IF(BW<60, (0.02*Moher + 3), (0.02*Moher + 3.2) ))) -> 3 | BY62: 60 | BZ62: Yonca, Kuru % 17 | CA62: 92 | CB62: 2.2 | CC62: 19 | CD62: 13.3 | CE62: 14.1 | CF62: 11.4 | CG62: 1.42 | CH62: 0.25 | CI62: 26 | CJ62: 45 | CK62: 61 | CL62: 2.7 | CM62: 1.4 | CN62: 0.7 | CO62: 1.3 | CP62: 34 | CQ62: 6 | CR62: 3 | CS62: 11 | CT62: 2.5 | CU62: 0.45 | CV62: 0.28 | CW62: 21 | CX62: 26.2 | CY62: 121 | CZ62: 9 | DA62: 0 | DB62: 1
A63: 0 | B63: 0 | C63: 0 | T63: Süt verimi, Orta Laktasyon | BA63: Tiftik Keçisi, Dişi, Erken Laktasyon, İkiz, | BB63: =IF(BW<40,(0.0002*Moher^2 + 0.009*Moher + 0.85), IF(BW<50,(0.016*Moher + 1.18), IF(BW<60, (0.016*Moher + 1.32), (0.016*Moher + 1.44) ))) -> 1.32 | BC63: =IF(BW<40,(-0.0002*Moher^2 + 0.041*Moher + 2.38), IF(BW<50,(-0.0002*Moher^2 +0.041*Moher + 2.81), IF(BW<60, (0.038*Moher + 3.15), (0.038*Moher + 3.45) ))) -> 3.15 | BD63: =(Moher*2.4) + (-0.0125*BW^2 + 3.615*BW + 31.95) -> 192.9625 | BE63: =IF(BW<40,(0.02*Moher^2 + 1.9*Moher + 125), IF(BW<50,(-0.02*Moher^2 +2.7*Moher + 148), IF(BW<60, (0.02*Moher^2 + 1.7*Moher + 177), (2.4*Moher + 193) ))) -> 177 | BF63: =(Moher*2.2) + (-0.01*BW^2 + 3.16*BW + 32.3) -> 175.85 | BG63: =(Moher*1.6) + (-0.01*BW^2 + 2.56*BW + 19.3) -> 129.85 | BH63: =IF(BW<40,(Moher + 59), IF(BW<50,(-0.02*Moher^2 + 1.3*Moher + 69), IF(BW<60, (Moher + 78), (0.02*Moher^2 + 0.3*Moher + 91) ))) -> 78 | BI63: =IF(BW<40,(0.002*Moher^2 - 0.03*Moher + 5), IF(BW<50,(0.02*Moher + 5.3), IF(BW<60, (0.02*Moher + 5.5), (0.002*Moher^2 - 0.03*Moher + 5.9) ))) -> 5.5 | BJ63: =IF(BW<40,(0.02*Moher + 2.8), IF(BW<50,(0.02*Moher + 3.3), IF(BW<60, (0.02*Moher + 3.5), (0.02*Moher + 3.6) ))) -> 3.5 | BY63: 61 | BZ63: Yosun, Kurutulmuş | CA63: 91 | CB63: 1.2 | CC63: 7 | CD63: 4.9 | CE63: 3.3 | CG63: 2.72 | CH63: 0.31 | CI63: 7 | CK63: 32 | CL63: 1.4 | CM63: 0.8 | CN63: 0 | CO63: 0.6 | CP63: 10 | CR63: 0.5 | CS63: 39 | CZ63: 100 | DA63: 0 | DB63: 1
A64: 0 | B64: 0 | C64: 0 | T64: Düşük verimli = 3,0 - 4,5 lt | BA64: Tiftik Keçisi, Dişi, Geç Laktasyon, Tek, | BB64: =IF(BW<40,(0.002*Moher + 1.03), IF(BW<50,(0.0002*Moher^2 + 0.015*Moher + 1.29), IF(BW<60, (0.02*Moher + 1.48), (0.018*Moher + 1.7) ))) -> 1.48 | BC64: =(Moher*0.038) + (-0.000175*BW^2 + 0.0571*BW + 0.4165) -> 3.027625 | BD64: =(Moher*2.4) + (-0.0075*BW^2 + 2.645*BW + 22.35) -> 145.1375 | BE64: =IF(BW<40,(0.02*Moher^2 + 1.9*Moher + 92), IF(BW<50,(0.02*Moher^2 + 1.9*Moher + 112), IF(BW<60, (2.4*Moher + 128), (2.4*Moher + 144) ))) -> 128 | BF64: =(Moher*2.2) + (-0.0109*BW^2 + 2.64*BW + 16.7) -> 128.9275 | BG64: =(Moher*1.6) + (-0.005*BW^2 + 1.75*BW + 16) -> 97.125 | BH64: =IF(BW<40,(-0.02*Moher^2 + 1.3*Moher + 48), IF(BW<50,(Moher + 60), IF(BW<60, (Moher + 70), (0.02*Moher^2 + 0.3*Moher + 85) ))) -> 70 | BI64: =IF(BW<40,(-0.002*Moher^2 + 0.07*Moher + 3.3), IF(BW<50,(0.02*Moher + 3.9), IF(BW<60, (0.002*Moher^2 - 0.03*Moher + 4.5), (0.02*Moher + 4.5) ))) -> 4.5 | BJ64: =IF(BW<40,(-0.002*Moher^2 + 0.07*Moher + 2.1), IF(BW<50,(-0.002*Moher^2 + 0.07*Moher + 2.4), IF(BW<60, (0.02*Moher + 3), (-0.002*Moher^2 + 0.09*Moher + 2.7) ))) -> 3 | BY64: 62 | BZ64: Yulaf Kavuzu | CA64: 93 | CB64: 1.4 | CC64: 4 | CD64: 2.8 | CE64: 0.6 | CF64: 1 | CG64: 0.16 | CH64: 0.15 | CI64: 32 | CJ64: 75 | CK64: 40 | CL64: 1.8 | CM64: 0.9 | CN64: 0 | CO64: 0.8 | CP64: 40 | CQ64: 90 | CR64: 1.5 | CS64: 7 | CT64: 0.6 | CU64: 0.08 | CV64: 0.14 | CW64: 31 | CZ64: 3.5 | DA64: 0 | DB64: 1
A65: 0 | B65: 0 | C65: 0 | T65: Orta verimli = 4,5 - 5,5 lt | BA65: Tiftik Keçisi, Dişi, Geç Laktasyon, İkiz, | BB65: =IF(BW<40,(0.0016*Moher + 0.99), IF(BW<50,(0.02*Moher + 1.51), IF(BW<60, (0.02*Moher + 1.76), (0.02*Moher + 1.98) ))) -> 1.76 | BC65: =IF(BW<40,(0.0002*Moher^2 + 0.033*Moher + 2.4), IF(BW<50,(0.038*Moher + 2.88), IF(BW<60, (0.0002*Moher^2 + 0.031*Moher + 3.42), (0.036*Moher + 3.83) ))) -> 3.42 | BD65: =IF(BW<40,(-0.02*Moher^2 + 2.9*Moher + 115), IF(BW<50,(2.4*Moher + 142), IF(BW<60, (-0.02*Moher^2 + 3.1*Moher + 160), (2.6*Moher + 183) ))) -> 160 | BE65: =IF(BW<40,( 2.4*Moher + 111), IF(BW<50,(0.02*Moher^2 + 1.9*Moher + 137), IF(BW<60, (-0.02*Moher^2 + 2.9*Moher + 154), (2.4*Moher + 176) ))) -> 154 | BF65: =(Moher*2.2) + (-0.01*BW^2 + 3*BW + 26) -> 160.75 | BG65: =(Moher*1.6) + (-0.01*BW^2 + 2.44*BW + 14.7) -> 118.65 | BH65: =IF(BW<40,( -0.02*Moher^2 + 1.3*Moher + 58), IF(BW<50,(0.02*Moher^2 + 0.5*Moher + 74), IF(BW<60, (Moher + 83), (Moher + 94) ))) -> 83 | BI65: =IF(BW<40,(0.02*Moher + 5), IF(BW<50,( -0.002*Moher^2 + 0.07*Moher + 5.5), IF(BW<60, (-0.002*Moher^2 + 0.09*Moher + 5.6), (-0.002*Moher^2 + 0.09*Moher + 5.9) ))) -> 5.6 | BJ65: =IF(BW<40,(0.02*Moher + 3), IF(BW<50,( -0.002*Moher^2 + 0.07*Moher + 3.5), IF(BW<60, (-0.002*Moher^2 + 0.09*Moher + 3.6), (0.002*Moher^2 - 0.03*Moher + 4.7) ))) -> 3.6 | BY65: 63 | BZ65: Yulaf Kuru Otu | CA65: 90 | CB65: 2 | CC65: 10 | CD65: 7 | CE65: 6 | CF65: 2.5 | CG65: 0.4 | CH65: 0.27 | CI65: 31 | CJ65: 63 | CK65: 54 | CL65: 2.4 | CM65: 1.2 | CN65: 0.4 | CO65: 1.2 | CP65: 39 | CQ65: 98 | CR65: 2.3 | CS65: 8 | CT65: 1.6 | CU65: 0.42 | CV65: 0.21 | CW65: 28 | CX65: 5.6 | CZ65: 6 | DA65: 0 | DB65: 1
A66: 0 | B66: 0 | C66: 0 | T66: Yüksek verimli = 5,5 - 7,0 lt | BA66: Tiftik Keçisi, Erkek, Yaşama Payı, , | BB66: =(Moher*0.02) + (-0.0001*BW^2 + 0.03*BW + 0.11) -> 1.4575 | BC66: =IF(BW<40,(0.038*Moher + 1.66), IF(BW<50,(0.0002*Moher^2 +0.033*Moher + 2.09), IF(BW<60, (-0.0002*Moher^2 +0.043*Moher + 2.41), (-0.0002*Moher^2 +0.043*Moher + 2.77) ))) -> 2.41 | BD66: =IF(BW<40,(0.02*Moher^2 + 2.1*Moher + 65), IF(BW<50,(2.4*Moher + 80), IF(BW<60, (-0.02*Moher^2 +3.1*Moher + 89), (0.02*Moher^2 +1.9*Moher + 111) ))) -> 89 | BE66: =IF(BW<40,(0.02*Moher^2 + 1.9*Moher + 63), IF(BW<50,(2.4*Moher + 75), IF(BW<60, (-0.02*Moher^2 + 2.9*Moher + 86), (-0.02*Moher^2 + 2.9*Moher + 99) ))) -> 86 | BF66: =(Moher*2.2) + (-0.00249*BW^2 + 1.555*BW + 14.65) -> 92.64275 | BG66: =(Moher*1.6) + (-0.005*BW^2 + 1.45*BW + 4) -> 68.625 | BH66: =(Moher) + (-0.0025*BW^2 + 1.155*BW + 8.65) -> 64.6125 | BI66: =IF(BW<40,(-0.002*Moher^2 + 0.7*Moher + 1.6), IF(BW<50,(-0.002*Moher^2 + 0.7*Moher + 1.9), IF(BW<60, (0.02*Moher + 2.5), (-0.002*Moher^2 + 0.09*Moher + 2.2) ))) -> 2.5 | BJ66: =IF(BW<40,(0.02*Moher + 1.4), IF(BW<50,(0.002*Moher^2 - 0.01*Moher + 1.8), IF(BW<60, (-0.002*Moher^2 + 0.09*Moher + 1.5), (0.002*Moher^2 - 0.03*Moher + 2.6) ))) -> 1.5 | BY66: 64 | BZ66: Yulaf Samanı | CA66: 91 | CB66: 1.7 | CC66: 4 | CD66: 2.8 | CE66: 0.6 | CF66: 1.6 | CG66: 0.24 | CH66: 0.07 | CI66: 41 | CJ66: 73 | CK66: 48 | CL66: 2.1 | CM66: 1.1 | CN66: 0.2 | CO66: 1 | CP66: 48 | CQ66: 98 | CR66: 2.3 | CS66: 8 | CT66: 2.4 | CU66: 0.78 | CV66: 0.22 | CW66: 6 | CX66: 800 | CZ66: 3 | DA66: 0 | DB66: 1
A67: 0 | B67: 0 | C67: 0 | BA67: Tiftik Keçisi, Erkek, Flaşing, , | BB67: =(Moher*0.022) + (-0.000074*BW^2 + 0.03*BW + 0.1765) -> 1.60265 | BC67: =(Moher*0.041) + (-0.0001092*BW^2 + 0.0515*BW + 0.3908) -> 2.89297 | BD67: =IF(BW<40,(0.02*Moher^2 + 2.3*Moher + 72), IF(BW<50,(0.02*Moher^2 +2.3*Moher + 89), IF(BW<60, (-0.02*Moher^2 +3.3*Moher + 99), (0*Moher^2 +3.3*Moher + 114) ))) -> 99 | BE67: =(Moher*2.6) + (-0.0025*BW^2 + 1.755*BW + 16.65) -> 105.6125 | BF67: =(Moher*2.4) + (-0.00249*BW^2 + 1.695*BW + 16.35) -> 102.04275 | BG67: =(Moher*1.8) + (-0.005*BW^2 + 1.55*BW + 5) -> 75.125 | BH67: =IF(BW<40,(Moher + 46), IF(BW<50,(Moher + 57), IF(BW<60, (1.1*Moher + 66.167), (1.1*Moher + 75.833) ))) -> 66.167 | BI67: =IF(BW<40,(-0.002*Moher^2 + 0.07*Moher + 1.8), IF(BW<50,(-0.002*Moher^2 + 0.07*Moher + 2.1), IF(BW<60, (0.002*Moher^2 - 0.03*Moher + 3), (0.002*Moher^2 - 0.03*Moher + 3.3) ))) -> 3 | BJ67: =IF(BW<40,(0.02*Moher + 1.5), IF(BW<50,(0.002*Moher^2 - 0.01*Moher + 2), IF(BW<60, (-0.002*Moher^2 + 0.09*Moher + 1.7), (-0.002*Moher^2 + 0.09*Moher + 2) ))) -> 1.7 | BY67: 65 | BZ67: Yulaf, Değirmen Kalıntıları | CA67: 89 | CB67: 1.2 | CC67: 8 | CD67: 5.6 | CE67: 4.2 | CG67: 0.12 | CH67: 0.23 | CI67: 25 | CK67: 33 | CL67: 1.5 | CM67: 0.8 | CN67: 0 | CO67: 0.7 | CP67: 37 | CR67: 2.6 | CS67: 6 | CT67: 0.6 | CV67: 0.24 | CZ67: 5 | DA67: 0 | DB67: 1
A68: 0 | B68: 0 | C68: 0 | T68: Süt verimi, Geç Laktasyon | BA68: Tiftik Keçisi, Oğlak, Dişi, , | BB68: =(-0.0007*BW^2 + 0.057*BW - 0.19) + (Moher*0.0075) + (ADG*-0.000107) +(-0.0001675*BW^2 + 0.0067*BW - 0.0045) -> 0.6848125 | BC68: =(-0.0003*BW^2 + 0.055*BW + 0.15) + (Moher*0.0375) + (ADG*0.00875) -> 2.2675 | BD68: =(-0.01*BW^2 + 2.2*BW + 7.1667) + (Moher*2.45833) + (ADG*0.41429) -> 97.9167 | BE68: =(-0.01*BW^2 + 2.1*BW + 6.4167) + (Moher*2.4) + (ADG*0.4) -> 91.6667 | BF68: =(-0.0085*BW^2 + 1.97*BW + 7) + (Moher*2.25) + (ADG*0.39) -> 89.6375 | BG68: =(-0.0057*BW^2 + 1.45*BW + 5) + (Moher * 1.6458) + (ADG * 0.283) -> 67.5075 | BH68: =(-0.01*BW^2 + 1.5*BW + 2.25) + (Moher*1) + (ADG*0.2) -> 54.5 | BI68: =(-0.001*BW^2 + 0.08*BW + 0.3) + (Moher*0.01042) + (ADG*0.02357) -> 1.675 | BJ68: =(-0.0011*BW^2 + 0.08*BW - 0.05) + (Moher*0.01042) + (ADG*0.00857) -> 1.0225 | BY68: 66
A69: 0 | B69: 0 | C69: 0 | T69: Düşük verimli = 2,0 - 2,5 lt | BA69: Tiftik Keçisi, Oğlak, Erkek, , | BB69: =(-0.0021*BW^2 + 0.105*BW - 0.4992) + (Moher*0.009792) + (ADG*0.0025) +(0.00145*BW^2-0.0535*BW+0.3442) -> 0.71125 | BC69: =(-0.000356*BW^2 + 0.0635*BW + 0.17) + (Moher*0.0375) + (ADG*0.009) -> 2.5856 | BD69: =(-0.01*BW^2 + 2.2*BW + 7.1667) + (Moher*2.45833) + (ADG*0.41429) -> 97.9167 | BE69: =(-0.01*BW^2 + 2.1*BW + 6.4167) + (Moher*2.4) + (ADG*0.4) -> 91.6667 | BF69: =(-0.0085*BW^2 + 1.97*BW + 7) + (Moher*2.25) + (ADG*0.39) -> 89.6375 | BG69: =(-0.0057*BW^2 + 1.45*BW + 5) + (Moher * 1.6458) + (ADG * 0.283) -> 67.5075 | BH69: =(-0.0052*BW^2 + 1.45*BW + 5.25) + (Moher*0.95) + (ADG*0.22) -> 69.27 | BI69: =(0.0002*BW^2 + 0.03*BW + 0.5) + (Moher*0.0208) + (ADG*0.03) -> 2.755 | BJ69: =(0.00006*BW^2 + 0.03*BW + 0.2) + (Moher*0.020833) + (ADG*0.01321) -> 2.0315 | BY69: 67
A70: 0 | B70: 0 | C70: 0 | T70: Orta verimli = 2,5 - 3,0 lt | BY70: 68
A71: 0 | B71: 0 | C71: 0 | T71: Yüksek verimli = 3,0 - 4,0 lt | BY71: 69
A72: 0 | B72: 0 | C72: 0 | BY72: 70
A73: 0 | B73: 0 | C73: 0 | T73: Oğlaklarda; | BY73: 71
A74: 0 | B74: 0 | C74: 0 | T74: Günlük canlı ağırlık artışı; | BY74: 72
A75: 0 | B75: 0 | C75: 0 | T75: - Oğlaklarda 250-300 g | BY75: 73
A76: 0 | B76: 0 | C76: 0 | T76: - Tiftik keçisi oğlaklarında | BY76: 74
A77: 0 | B77: 0 | C77: 0 | T77: 40-50 g girilebilir… | BY77: 75
A78: 0 | B78: 0 | C78: 0 | BZ78: SULU KABA YEMLER | CA78: KM,% | CB78: ME, Mcal/kg | CC78: HP,% | CD78: MP,% | CE78: DIP,% | CF78: RUP,% | CG78: Ca,% | CH78: P,% | CI78: HS,% | CJ78: NDF,% | CK78: TSBM,% | CL78: SE, Mcal/kg | CM78: NEyp, Mcal/kg | CN78: NEb, Mcal/kg | CO78: NEl, Mcal/kg | CP78: ADF,% | CQ78: eNDF,% | CR78: HY,% | CS78: HK,% | CT78: K,% | CU78: Cl,% | CV78: S,% | CW78: Zn,ppm | CX78: VitA, RE/kg | CY78: VitE,ppm | CZ78: Fiyat,TL | DA78: En az | DB78: En çok
A79: 0 | B79: 0 | C79: 0 | BY79: 1 | BZ79: Adi Japon Üçgülü (Lespedeza), Yaş, Çiçek Başı | CA79: 25 | CB79: 2.2 | CC79: 16 | CD79: 11.2 | CE79: 11.4 | CF79: 8 | CG79: 1.2 | CH79: 0.24 | CI79: 32 | CK79: 60 | CL79: 2.6 | CM79: 1.3 | CN79: 0.7 | CO79: 1.3 | CR79: 2 | CS79: 10 | CT79: 1.1 | CV79: 0.21 | CZ79: 11 | DA79: 0 | DB79: 1
A80: 0 | B80: 0 | C80: 0 | BY80: 2 | BZ80: Akasya Yaprakları | CA80: 30 | CB80: 0.69 | CC80: 5 | CD80: 0.8 | CE80: 1.2 | CK80: 19 | CL80: 0.84 | CM80: 0.77 | CN80: 0 | CZ80: 11 | DA80: 0 | DB80: 1
A81: 0 | B81: 0 | C81: 0 | BY81: 3 | BZ81: Ardıç Yaprakları | CA81: 52 | CB81: 2.31 | CC81: 6.5 | CD81: 1.8 | CE81: 2.6 | CH81: 0.08 | CK81: 64 | CL81: 2.82 | CM81: 1.41 | CN81: 0.78 | CZ81: 11 | DA81: 0 | DB81: 1
A82: 0 | B82: 0 | C82: 0 | T82: Tiftik verimi ortalaması; | BY82: 4 | BZ82: At kestanesi | CA82: 43 | CC82: 15.9 | CJ82: 38.2 | CP82: 25.3 | CS82: 9 | CZ82: 11 | DA82: 0 | DB82: 1
A83: 0 | B83: 0 | C83: 0 | T83: Türkiye'de; | BY83: 5 | BZ83: Ayçiçeği Bitkisi, Geç Büyüme Dönemi | CA83: 12 | CB83: 2.31 | CC83: 8.3 | CD83: 3 | CE83: 4.3 | CK83: 64 | CL83: 2.82 | CM83: 1.41 | CN83: 0.78 | CZ83: 8 | DA83: 0 | DB83: 1
T84: - 1 yaşlılarda 0,8-1,7 kg | BY84: 6 | BZ84: Bezelye Asması | CA84: 14 | CB84: 2.42 | CC84: 27.4 | CD84: 15.5 | CE84: 22.1 | CK84: 67 | CL84: 2.95 | CM84: 1.5 | CN84: 0.88 | CZ84: 10 | DA84: 0 | DB84: 1
T85: - Erginlerde 1,6-3,7 kg | BY85: 7 | BZ85: Beyaz Üçgül (Clover Ladino), Yaş | CA85: 19 | CB85: 2.5 | CC85: 25 | CD85: 17.5 | CE85: 19.5 | CF85: 5 | CG85: 1.27 | CH85: 0.38 | CI85: 14 | CJ85: 35 | CK85: 69 | CL85: 3 | CM85: 1.6 | CN85: 0.9 | CO85: 1.5 | CP85: 33 | CQ85: 41 | CR85: 4.8 | CS85: 11 | CT85: 2.4 | CV85: 0.2 | CW85: 20 | CX85: 70.6 | CZ85: 11 | DA85: 0 | DB85: 1
T86: ABD ve G.Afrika'da; | BY86: 8 | BZ86: Böğürtlen, Eylül | CA86: 44 | CC86: 8.2 | CK86: 73 | CZ86: 11 | DA86: 0 | DB86: 1
T87: - 3,5-4,0 kg | BY87: 9 | BZ87: Böğürtlen, Temmuz | CA87: 45 | CC87: 8.6 | CK87: 72 | CZ87: 11 | DA87: 0 | DB87: 1
BY88: 10 | BZ88: Börülce | CA88: 15 | CB88: 2.31 | CC88: 16.2 | CD88: 8.2 | CE88: 11.7 | CH88: 0.28 | CK88: 64 | CL88: 2.82 | CM88: 1.41 | CN88: 0.78 | CZ88: 11 | DA88: 0 | DB88: 1
BY89: 11 | BZ89: Brom Otu (Bromegrass), Yaş, Körpe | CA89: 30 | CB89: 2.3 | CC89: 15 | CD89: 10.5 | CE89: 10.5 | CF89: 33 | CG89: 0.45 | CH89: 0.34 | CI89: 28 | CJ89: 54 | CK89: 64 | CL89: 2.8 | CM89: 1.4 | CN89: 0.8 | CO89: 1.4 | CP89: 33 | CQ89: 40 | CR89: 4.1 | CS89: 10 | CT89: 2.3 | CV89: 0.21 | CW89: 20 | CX89: 38.4 | CZ89: 11 | DA89: 0 | DB89: 1
BY90: 12 | BZ90: Buğday, Yaş, Mera | CA90: 21 | CB90: 2.6 | CC90: 20 | CD90: 14 | CE90: 15 | CF90: 3.2 | CG90: 0.35 | CH90: 0.36 | CI90: 18 | CJ90: 50 | CK90: 71 | CL90: 3.1 | CM90: 1.6 | CN90: 1 | CO90: 1.6 | CP90: 30 | CQ90: 41 | CR90: 4 | CS90: 13 | CT90: 3.1 | CU90: 0.67 | CV90: 0.22 | CZ90: 14 | DA90: 0 | DB90: 1
BY91: 13 | BZ91: Çayır Kelp Kuyruğu (Timothy), Yaş, Çiçeklenme Öncesi | CA91: 26 | CB91: 2.3 | CC91: 11 | CD91: 7.7 | CE91: 6.9 | CF91: 2.2 | CG91: 0.4 | CH91: 0.28 | CI91: 31 | CJ91: 59 | CK91: 64 | CL91: 2.8 | CM91: 1.4 | CN91: 0.8 | CO91: 1.4 | CP91: 36 | CQ91: 41 | CR91: 3.8 | CS91: 7 | CT91: 1.9 | CU91: 0.57 | CV91: 0.15 | CW91: 28 | CX91: 35.8 | CY91: 111 | CZ91: 11 | DA91: 0 | DB91: 1
BY92: 14 | BZ92: Çayır Salkım Otu (Bluegrass), Yaş, Çiç.Baş. | CA92: 36 | CB92: 2.5 | CC92: 15 | CD92: 10.5 | CE92: 10.5 | CF92: 3 | CG92: 0.37 | CH92: 0.3 | CI92: 27 | CJ92: 60 | CK92: 69 | CL92: 3 | CM92: 1.6 | CN92: 0.9 | CO92: 1.5 | CP92: 32 | CQ92: 41 | CR92: 3.9 | CS92: 7 | CT92: 1.9 | CU92: 0.42 | CV92: 0.19 | CW92: 25 | CX92: 43.8 | CZ92: 11 | DA92: 0 | DB92: 1
BY93: 15 | BZ93: Çayır Üçgülü (Clover Red), Yaş | CA93: 24 | CB93: 2.3 | CC93: 18 | CD93: 12.6 | CE93: 13.2 | CF93: 3.8 | CG93: 1.7 | CH93: 0.3 | CI93: 24 | CJ93: 44 | CK93: 64 | CL93: 2.8 | CM93: 1.4 | CN93: 0.8 | CO93: 1.4 | CP93: 33 | CQ93: 41 | CR93: 4 | CS93: 9 | CT93: 2 | CU93: 0.6 | CV93: 0.17 | CW93: 23 | CX93: 40.4 | CZ93: 11 | DA93: 0 | DB93: 1
BY94: 16 | BZ94: Çitlembik Sürgünleri | CA94: 56 | CB94: 1.56 | CC94: 7.8 | CD94: 2.7 | CE94: 3.8 | CH94: 0.08 | CK94: 43 | CL94: 1.9 | CM94: 0.94 | CN94: 0 | CZ94: 11 | DA94: 0 | DB94: 1
BY95: 17 | BZ95: Dişbudak Yaprakları, Taze | CA95: 44 | CC95: 10.9 | CJ95: 51.2 | CP95: 38.4 | CS95: 10 | CZ95: 11 | DA95: 0 | DB95: 1
BY96: 18 | BZ96: Domuz Ayrığı (Orchardgrass), Yaş, Çiçek Başı | CA96: 24 | CB96: 2.4 | CC96: 14 | CD96: 9.8 | CE96: 9.6 | CF96: 3.2 | CG96: 0.33 | CH96: 0.39 | CI96: 30 | CJ96: 54 | CK96: 65 | CL96: 2.9 | CM96: 1.5 | CN96: 0.8 | CO96: 1.5 | CP96: 32 | CQ96: 41 | CR96: 4 | CS96: 9 | CT96: 2.7 | CU96: 0.08 | CV96: 0.2 | CW96: 21 | CX96: 60.4 | CY96: 436 | CZ96: 11 | DA96: 0 | DB96: 1
BY97: 19 | BZ97: Dut Sürgünleri | CA97: 40 | CB97: 2.57 | CC97: 18.1 | CD97: 9.4 | CE97: 13.4 | CH97: 0.24 | CK97: 71 | CL97: 3.13 | CM97: 1.61 | CN97: 1 | CS97: 15 | CZ97: 11 | DA97: 0 | DB97: 1
BY98: 20 | BZ98: Erik Yaprakları | CA98: 30 | CB98: 1.56 | CC98: 7.8 | CD98: 0.1 | CE98: 0.1 | CK98: 43 | CL98: 1.9 | CM98: 0.94 | CN98: 0 | CZ98: 11 | DA98: 0 | DB98: 1
BY99: 21 | BZ99: Fiğ Bitkisi | CA99: 20 | CB99: 2.13 | CC99: 18.6 | CD99: 9.7 | CE99: 13.9 | CH99: 0.34 | CK99: 59 | CL99: 2.6 | CM99: 1.28 | CN99: 0.62 | CZ99: 6 | DA99: 0 | DB99: 1
BY100: 22 | BZ100: Hanımeli Yaprakları | CA100: 33 | CB100: 2.5 | CC100: 10 | CD100: 4.1 | CE100: 5.9 | CH100: 0.11 | CJ100: 20 | CK100: 69 | CL100: 3.04 | CM100: 1.55 | CN100: 0.94 | CZ100: 11 | DA100: 0 | DB100: 1
BY101: 23 | BZ101: Havuç Yaprakları | CA101: 16 | CB101: 2.6 | CC101: 13 | CD101: 9.1 | CE101: 8.7 | CG101: 1.94 | CH101: 0.19 | CI101: 18 | CJ101: 45 | CK101: 73 | CL101: 3.2 | CM101: 1.7 | CN101: 1.1 | CO101: 1.7 | CP101: 23 | CQ101: 41 | CR101: 3.8 | CS101: 15 | CT101: 1.9 | CZ101: 1 | DA101: 0 | DB101: 1
BY102: 24 | BZ102: Hurma Yaprakları | CA102: 48 | CB102: 1.95 | CC102: 11.8 | CD102: 5.3 | CE102: 7.6 | CH102: 0.11 | CK102: 54 | CL102: 2.38 | CM102: 1.16 | CN102: 0.43 | CZ102: 1 | DA102: 0 | DB102: 1
BY103: 25 | BZ103: Hünnap Sürgünleri | CA103: 32 | CB103: 1.12 | CC103: 8.6 | CD103: 2.2 | CE103: 3.1 | CK103: 31 | CL103: 1.37 | CM103: 0.79 | CN103: 0 | CZ103: 1 | DA103: 0 | DB103: 1
BY104: 26 | BZ104: İncir Yaprakları | CA104: 30 | CB104: 1.95 | CC104: 11.2 | CD104: 4.7 | CE104: 6.7 | CH104: 0.71 | CK104: 54 | CL104: 2.38 | CM104: 1.16 | CN104: 0.43 | CZ104: 11 | DA104: 0 | DB104: 1
BY105: 27 | BZ105: Kaktüs | CA105: 26 | CB105: 2.3 | CC105: 5 | CD105: 3.5 | CE105: 1.5 | CG105: 3.5 | CH105: 0.1 | CI105: 18 | CJ105: 29 | CK105: 63 | CL105: 2.8 | CM105: 1.4 | CN105: 0.7 | CO105: 1.4 | CP105: 23 | CR105: 2.1 | CS105: 17 | CT105: 1.7 | CV105: 0.2 | CZ105: 11 | DA105: 0 | DB105: 1
BY106: 28 | BZ106: Kamışsı Yumak, Yaş | CA106: 29 | CB106: 2.3 | CC106: 15 | CD106: 10.5 | CE106: 10.5 | CF106: 3 | CG106: 0.48 | CH106: 0.37 | CI106: 25 | CJ106: 64 | CK106: 64 | CL106: 2.8 | CM106: 1.4 | CN106: 0.8 | CO106: 1.4 | CP106: 32 | CQ106: 40 | CR106: 5.5 | CS106: 9 | CT106: 2.5 | CV106: 0.18 | CW106: 22 | CZ106: 11 | DA106: 0 | DB106: 1
BY107: 29 | BZ107: Kır Ayrığı (Wheatgrass), Yaş, Çiçek Başı | CA107: 37 | CB107: 2.2 | CC107: 11 | CD107: 7.7 | CE107: 6.9 | CF107: 2.8 | CG107: 0.46 | CH107: 0.32 | CI107: 26 | CJ107: 50 | CK107: 60 | CL107: 2.6 | CM107: 1.3 | CN107: 0.7 | CO107: 1.3 | CP107: 28 | CQ107: 41 | CR107: 1.6 | CS107: 7 | CT107: 2.4 | CX107: 42.6 | CZ107: 11 | DA107: 0 | DB107: 1
BY108: 30 | BZ108: Kır Ayrığı (Wheatgrass), Yaş, Tam Çiçeklenme | CA108: 50 | CB108: 2 | CC108: 10 | CD108: 7 | CE108: 6 | CF108: 3.3 | CG108: 0.39 | CH108: 0.28 | CI108: 33 | CJ108: 65 | CK108: 55 | CL108: 2.4 | CM108: 1.2 | CN108: 0.5 | CO108: 1.2 | CP108: 36 | CQ108: 41 | CR108: 1.6 | CS108: 7 | CT108: 2.1 | CZ108: 11 | DA108: 0 | DB108: 1
BY109: 31 | BZ109: Marul | CA109: 5 | CB109: 2.53 | CC109: 22 | CD109: 11.9 | CE109: 17 | CK109: 70 | CL109: 3.09 | CM109: 1.58 | CN109: 0.97 | CS109: 23 | CZ109: 11 | DA109: 0 | DB109: 1
BY110: 32 | BZ110: Meşe Sürgünleri | CA110: 36 | CB110: 1.95 | CC110: 20.3 | CD110: 10.9 | CE110: 15.5 | CH110: 0.38 | CJ110: 34 | CK110: 54 | CL110: 2.38 | CM110: 1.16 | CN110: 0.43 | CZ110: 11 | DA110: 0 | DB110: 1
BY111: 33 | BZ111: Meşe Sürgünleri | CA111: 32 | CB111: 2.6 | CC111: 17.4 | CD111: 9 | CE111: 12.8 | CH111: 0.31 | CJ111: 23 | CK111: 72 | CL111: 3.17 | CM111: 1.64 | CN111: 1.03 | CZ111: 11 | DA111: 0 | DB111: 1
BY112: 34 | BZ112: Meşe Yaprakları | CA112: 50 | CB112: 1.66 | CC112: 10.2 | CD112: 4.3 | CE112: 6.1 | CH112: 0.11 | CJ112: 45 | CK112: 46 | CL112: 2.03 | CM112: 0.99 | CN112: 0.1 | CZ112: 11 | DA112: 0 | DB112: 1
BY113: 35 | BZ113: Mimoza Sürgünleri | CA113: 26 | CB113: 2.5 | CC113: 20.6 | CD113: 11.1 | CE113: 15.8 | CH113: 0.17 | CK113: 69 | CL113: 3.04 | CM113: 1.55 | CN113: 0.94 | CZ113: 11 | DA113: 0 | DB113: 1
BY114: 36 | BZ114: Muz Yaprakları, Hasat Sonrası | CA114: 24 | CB114: 2.6 | CC114: 17.9 | CD114: 9.5 | CE114: 13.6 | CG114: 1.14 | CH114: 0.19 | CK114: 72 | CR114: 8.2 | CS114: 10 | CZ114: 11 | DA114: 0 | DB114: 1
BY115: 37 | BZ115: Muz Yaprakları, Körpe | CA115: 18 | CB115: 2.48 | CC115: 20 | CD115: 10.9 | CE115: 15.6 | CG115: 0.24 | CH115: 0.21 | CK115: 69 | CR115: 4.1 | CS115: 8 | CZ115: 11 | DA115: 0 | DB115: 1
BY116: 38 | BZ116: Muz Yaprakları, Taze | CA116: 19 | CB116: 1.81 | CC116: 15.7 | CD116: 4.7 | CE116: 6.7 | CH116: 0.7 | CK116: 50 | CL116: 2.21 | CM116: 1.07 | CN116: 0.28 | CZ116: 11 | DA116: 0 | DB116: 1
BY117: 39 | BZ117: OTLAK, AĞUSTOS | CA117: 20 | CB117: 2.15 | CC117: 9.7 | CD117: 6 | CE117: 5.2 | CF117: 3.5 | CG117: 0.26 | CH117: 0.15 | CI117: 30 | CJ117: 65 | CK117: 50 | CL117: 2.1 | CM117: 1 | CN117: 0.3 | CO117: 1 | CP117: 40 | CQ117: 41 | CR117: 1.6 | CS117: 7 | CT117: 2.1 | CZ117: 0 | DB117: 4
BY118: 40 | BZ118: OTLAK, EYLÜL | CA118: 20 | CB118: 2.07 | CC118: 6.9 | CD118: 3 | CE118: 2 | CF118: 4 | CG118: 0.26 | CH118: 0.15 | CI118: 30 | CJ118: 70 | CK118: 48 | CL118: 1.6 | CM118: 0.8 | CN118: 0.2 | CO118: 0.8 | CP118: 42 | CQ118: 41 | CR118: 1.6 | CS118: 7 | CT118: 2.1 | CZ118: 0 | DB118: 4
BY119: 41 | BZ119: OTLAK, HAZİRAN | CA119: 20 | CB119: 2.35 | CC119: 11 | CD119: 7.7 | CE119: 6.9 | CF119: 2.2 | CG119: 0.26 | CH119: 0.15 | CI119: 25 | CJ119: 59 | CK119: 64 | CL119: 2.8 | CM119: 1.4 | CN119: 0.8 | CO119: 1.4 | CP119: 36 | CQ119: 41 | CR119: 3.8 | CS119: 7 | CT119: 1.9 | CU119: 0.57 | CV119: 0.15 | CW119: 28 | CX119: 35.8 | CY119: 111 | CZ119: 0 | DB119: 4
BY120: 42 | BZ120: OTLAK, KIŞ | CA120: 80 | CB120: 1.83 | CC120: 4.7 | CD120: 2 | CE120: 1 | CF120: 4 | CG120: 0.26 | CH120: 0.15 | CI120: 40 | CJ120: 72 | CK120: 45 | CL120: 1.3 | CM120: 0.5 | CN120: 0.1 | CO120: 0.6 | CP120: 45 | CQ120: 41 | CR120: 1.6 | CS120: 7 | CT120: 2.1 | CZ120: 0 | DB120: 4
BY121: 43 | BZ121: OTLAK, TEMMUZ | CA121: 20 | CB121: 2.25 | CC121: 10.5 | CD121: 7 | CE121: 6 | CF121: 3.3 | CG121: 0.26 | CH121: 0.15 | CI121: 25 | CJ121: 65 | CK121: 55 | CL121: 2.4 | CM121: 1.2 | CN121: 0.5 | CO121: 1.2 | CP121: 36 | CQ121: 41 | CR121: 1.6 | CS121: 7 | CT121: 2.1 | CZ121: 0 | DB121: 4
BY122: 44 | BZ122: Sarı Çiçekli Gazal Boynuzu (Birdsfoot), Yaş | CA122: 22 | CB122: 2.4 | CC122: 21 | CD122: 14.7 | CE122: 15.9 | CF122: 4.2 | CG122: 1.78 | CH122: 0.25 | CI122: 21 | CJ122: 47 | CK122: 66 | CL122: 2.9 | CM122: 1.5 | CN122: 0.8 | CO122: 1.5 | CP122: 31 | CQ122: 41 | CR122: 4.4 | CS122: 9 | CT122: 2.6 | CV122: 0.25 | CW122: 31 | CZ122: 11 | DA122: 0 | DB122: 1
BY123: 45 | BZ123: Söğüt Sürgünleri | CA123: 41 | CB123: 2.2 | CC123: 9.8 | CI123: 27 | CJ123: 48.1 | CP123: 39.9 | CS123: 7 | CZ123: 11 | DA123: 0 | DB123: 1
BY124: 46 | BZ124: Sudan Otu, Taze, Körpe | CA124: 18 | CB124: 2.5 | CC124: 17 | CD124: 11.9 | CE124: 12.3 | CG124: 0.46 | CH124: 0.36 | CI124: 23 | CJ124: 55 | CK124: 70 | CL124: 3.1 | CM124: 1.6 | CN124: 1 | CO124: 1.6 | CP124: 29 | CQ124: 41 | CR124: 3.9 | CS124: 9 | CT124: 2 | CV124: 0.11 | CW124: 24 | CX124: 39.6 | CZ124: 11 | DA124: 0 | DB124: 1
BY125: 47 | BZ125: Sumak Sürgünleri | CA125: 40 | CB125: 2.78 | CC125: 13.7 | CD125: 6.5 | CE125: 9.3 | CH125: 0.2 | CK125: 77 | CL125: 3.4 | CM125: 1.79 | CN125: 1.17 | CZ125: 11 | DA125: 0 | DB125: 1
BY126: 48 | BZ126: Şalgam Yaprakları | CA126: 18 | CB126: 2.5 | CC126: 16 | CD126: 11.2 | CE126: 11.4 | CG126: 3.2 | CH126: 0.31 | CI126: 10 | CK126: 69 | CL126: 3 | CM126: 1.6 | CN126: 0.9 | CO126: 1.5 | CP126: 13 | CR126: 2.6 | CS126: 13 | CT126: 3 | CU126: 1.8 | CV126: 0.27 | CZ126: 11 | DA126: 0 | DB126: 1
BY127: 49 | BZ127: Şeker Pancarı Yaprakları | CA127: 20 | CB127: 2.1 | CC127: 14 | CD127: 9.8 | CE127: 9.6 | CG127: 1.2 | CH127: 0.23 | CI127: 10 | CJ127: 25 | CK127: 58 | CL127: 2.6 | CM127: 1.3 | CN127: 0.6 | CO127: 1.3 | CP127: 14 | CQ127: 41 | CR127: 1.5 | CS127: 24 | CT127: 5.1 | CU127: 0.2 | CV127: 0.45 | CW127: 20 | CZ127: 2.5 | DA127: 0 | DB127: 1
BY128: 50 | BZ128: Şerbetçiotu Yaprakları | CA128: 37 | CB128: 1.8 | CC128: 15 | CD128: 10.5 | CE128: 10.5 | CG128: 2.8 | CH128: 0.64 | CI128: 15 | CK128: 49 | CL128: 2.2 | CM128: 1.1 | CN128: 0.2 | CO128: 1.1 | CR128: 3.6 | CS128: 35 | CZ128: 11 | DA128: 0 | DB128: 1
BY129: 51 | BZ129: Şeytan Otu (Pangolagrass) Yaprakları | CA129: 20 | CB129: 2.25 | CC129: 17.7 | CD129: 9.5 | CE129: 13.5 | CK129: 62 | CR129: 2.9 | CS129: 8 | CZ129: 11 | DA129: 0 | DB129: 1
BY130: 52 | BZ130: Şeytan Otu (Pangolagrass) Yaprakları | CA130: 26 | CB130: 2.13 | CC130: 12.9 | CD130: 6.3 | CE130: 9 | CG130: 0.4 | CH130: 0.23 | CK130: 59 | CR130: 1.7 | CS130: 8 | CZ130: 11 | DA130: 0 | DB130: 1
BY131: 53 | BZ131: Yer Elması Yaprakları | CA131: 27 | CB131: 2.2 | CC131: 6 | CD131: 4.2 | CE131: 2.4 | CG131: 1.62 | CH131: 0.11 | CI131: 18 | CJ131: 41 | CK131: 61 | CL131: 2.7 | CM131: 1.4 | CN131: 0.7 | CO131: 1.3 | CP131: 30 | CQ131: 40 | CR131: 1.1 | CS131: 10 | CT131: 1.4 | CZ131: 1 | DA131: 0 | DB131: 1
BY132: 54 | BZ132: Yerelması Yaprakları | CA132: 22 | CB132: 2.24 | CC132: 20.7 | CD132: 11.3 | CE132: 16.2 | CK132: 62 | CR132: 2.3 | CS132: 16 | CZ132: 1 | DA132: 0 | DB132: 1
BY133: 55 | BZ133: Yerfıstığı Asması, Hasat Sonrası | CA133: 18 | CB133: 2.12 | CC133: 15.3 | CD133: 7.2 | CE133: 10.3 | CG133: 0.98 | CH133: 0.36 | CK133: 59 | CR133: 2.6 | CS133: 5 | CZ133: 1 | DA133: 0 | DB133: 1
BY134: 56 | BZ134: Yerfıstığı Asması, Körpe | CA134: 16 | CB134: 2.25 | CC134: 20.9 | CD134: 10.9 | CE134: 15.5 | CK134: 62 | CR134: 2 | CS134: 8 | CZ134: 1 | DA134: 0 | DB134: 1
BY135: 57 | BZ135: Yonca, Yaş | CA135: 24 | CB135: 2.2 | CC135: 19 | CD135: 13.3 | CE135: 14.1 | CF135: 3.4 | CG135: 1.35 | CH135: 0.27 | CI135: 27 | CJ135: 46 | CK135: 61 | CL135: 2.7 | CM135: 1.4 | CN135: 0.7 | CO135: 1.3 | CP135: 35 | CQ135: 41 | CR135: 3 | CS135: 9 | CT135: 2.6 | CU135: 0.4 | CV135: 0.29 | CW135: 18 | CX135: 37 | CZ135: 5 | DA135: 0 | DB135: 1
BY136: 58
BY137: 59
BY138: 60
BY139: 61
BY140: 62
BY141: 63
BY142: 64
BY143: 65
BY144: 66
BY145: 67
BY146: 68
BY147: 69
BY148: 70
BY149: 71
BY150: 72
BY151: 73
BY152: 74
BY153: 75
BZ154: SİLAJLAR | CA154: KM,% | CB154: ME, Mcal/kg | CC154: HP,% | CD154: MP,% | CE154: DIP,% | CF154: RUP,% | CG154: Ca,% | CH154: P,% | CI154: HS,% | CJ154: NDF,% | CK154: TSBM,% | CL154: SE, Mcal/kg | CM154: NEyp, Mcal/kg | CN154: NEb, Mcal/kg | CO154: NEl, Mcal/kg | CP154: ADF,% | CQ154: eNDF,% | CR154: HY,% | CS154: HK,% | CT154: K,% | CU154: Cl,% | CV154: S,% | CW154: Zn,ppm | CX154: VitA, RE/kg | CY154: VitE,ppm | CZ154: Fiyat,TL | DA154: En az | DB154: En çok
BY155: 1 | BZ155: Arpa Silajı | CA155: 35 | CB155: 2.1 | CC155: 12 | CD155: 8.4 | CE155: 7.8 | CF155: 2.6 | CG155: 0.46 | CH155: 0.3 | CI155: 34 | CJ155: 58 | CK155: 59 | CL155: 2.6 | CM155: 1.3 | CN155: 0.6 | CO155: 1.3 | CP155: 37 | CQ155: 61 | CR155: 3 | CS155: 9 | CT155: 2.4 | CV155: 0.22 | CW155: 28 | CZ155: 3.5 | DA155: 0 | DB155: 3
BY156: 2 | BZ156: Arpa Silajı, Olgun | CA156: 35 | CB156: 2.1 | CC156: 12 | CD156: 8.4 | CE156: 7.8 | CF156: 3 | CG156: 0.3 | CH156: 0.2 | CI156: 30 | CJ156: 50 | CK156: 58 | CL156: 2.6 | CM156: 1.3 | CN156: 0.6 | CO156: 1.3 | CP156: 34 | CQ156: 61 | CR156: 3.5 | CS156: 9 | CT156: 1.5 | CV156: 0.15 | CW156: 25 | CZ156: 3.5 | DA156: 0 | DB156: 3
BY157: 3 | BZ157: Bezelye Silajı | CA157: 24 | CB157: 1.95 | CC157: 25.7 | CD157: 13.7 | CE157: 19.6 | CH157: 0.48 | CK157: 54 | CL157: 2.38 | CM157: 1.16 | CN157: 0.43 | CZ157: 5.5 | DA157: 0 | DB157: 3
BY158: 4 | BZ158: Bezelye Silajı | CA158: 25 | CB158: 2.1 | CC158: 16 | CD158: 11.2 | CE158: 11.4 | CG158: 1.25 | CH158: 0.28 | CI158: 29 | CJ158: 55 | CK158: 58 | CL158: 2.6 | CM158: 1.3 | CN158: 0.6 | CO158: 1.3 | CP158: 44 | CQ158: 61 | CR158: 3.3 | CS158: 8 | CT158: 1.6 | CV158: 0.29 | CW158: 32 | CX158: 37.8 | CZ158: 5.5 | DA158: 0 | DB158: 3
BY159: 5 | BZ159: Brom Otu (Bromegrass) Balya Silajı | CA159: 35 | CB159: 2.1 | CC159: 11 | CD159: 7.7 | CE159: 6.9 | CF159: 2.9 | CG159: 0.38 | CH159: 0.3 | CI159: 36 | CJ159: 69 | CK159: 57 | CL159: 2.5 | CM159: 1.3 | CN159: 0.6 | CO159: 1.3 | CP159: 44 | CQ159: 61 | CR159: 2.5 | CS159: 8 | CT159: 2 | CV159: 0.2 | CW159: 19 | CZ159: 10 | DA159: 0 | DB159: 3
BY160: 6 | BZ160: Buğday Silajı | CA160: 33 | CB160: 2.1 | CC160: 12 | CD160: 8.4 | CE160: 7.8 | CF160: 2.5 | CG160: 0.4 | CH160: 0.28 | CI160: 28 | CJ160: 62 | CK160: 59 | CL160: 2.6 | CM160: 1.3 | CN160: 0.6 | CO160: 1.3 | CP160: 37 | CQ160: 61 | CR160: 3.2 | CS160: 8 | CT160: 2.1 | CU160: 0.5 | CV160: 0.21 | CW160: 27 | CX160: 29.4 | CZ160: 3.5 | DA160: 0 | DB160: 3
BY161: 7 | BZ161: Çayır Kelp Kuyruğu (Timothy) Silajı | CA161: 34 | CB161: 2.1 | CC161: 10 | CD161: 7 | CE161: 6 | CF161: 2.5 | CG161: 0.5 | CH161: 0.27 | CI161: 34 | CJ161: 70 | CK161: 59 | CL161: 2.6 | CM161: 1.3 | CN161: 0.6 | CO161: 1.3 | CP161: 45 | CQ161: 61 | CR161: 3.4 | CS161: 7 | CT161: 1.7 | CV161: 0.15 | CX161: 18 | CZ161: 10 | DA161: 0 | DB161: 3
BY162: 8 | BZ162: Çayır Silajı | CA162: 30 | CB162: 2.2 | CC162: 11 | CD162: 7.7 | CE162: 6.9 | CF162: 2.6 | CG162: 0.7 | CH162: 0.24 | CI162: 32 | CJ162: 60 | CK162: 61 | CL162: 2.7 | CM162: 1.4 | CN162: 0.7 | CO162: 1.3 | CP162: 39 | CQ162: 61 | CR162: 3.4 | CS162: 8 | CT162: 2.1 | CV162: 0.22 | CW162: 29 | CZ162: 5 | DA162: 0 | DB162: 3
BY163: 9 | BZ163: Çayır Silajı (Rye Grass) | CA163: 32 | CB163: 2.1 | CC163: 14 | CD163: 9.8 | CE163: 9.6 | CF163: 3.5 | CG163: 0.43 | CH163: 0.38 | CI163: 22 | CJ163: 59 | CK163: 59 | CL163: 2.6 | CM163: 1.3 | CN163: 0.6 | CO163: 1.3 | CP163: 37 | CQ163: 61 | CR163: 3.3 | CS163: 8 | CT163: 2.9 | CU163: 0.73 | CV163: 0.23 | CW163: 29 | CX163: 11.6 | CZ163: 5 | DA163: 0 | DB163: 3
BY164: 10 | BZ164: Çayır Silajı (Napiergrass) | CA164: 26 | CB164: 1.56 | CC164: 4.8 | CD164: 0.4 | CE164: 0.5 | CH164: 0.31 | CK164: 43 | CL164: 1.9 | CM164: 0.94 | CN164: 0 | CZ164: 5 | DA164: 0 | DB164: 3
BY165: 11 | BZ165: Köpekdişi (Bermudagrass) Silajı | CA165: 26 | CB165: 1.8 | CC165: 10 | CD165: 7 | CE165: 6 | CF165: 1.5 | CG165: 0.46 | CH165: 0.2 | CI165: 30 | CK165: 50 | CL165: 2.2 | CM165: 1.1 | CN165: 0.3 | CO165: 1.1 | CP165: 37 | CQ165: 48 | CR165: 1.9 | CS165: 8 | CT165: 1.5 | CV165: 0.25 | CW165: 33 | CZ165: 10 | DA165: 0 | DB165: 3
BY166: 12 | BZ166: Mısır Silajı, Olgun | CA166: 34 | CB166: 2.6 | CC166: 8 | CD166: 5.6 | CE166: 4.2 | CF166: 2.2 | CG166: 0.28 | CH166: 0.23 | CI166: 21 | CJ166: 46 | CK166: 72 | CL166: 3.2 | CM166: 1.7 | CN166: 1 | CO166: 1.6 | CP166: 27 | CQ166: 70 | CR166: 3.1 | CS166: 5 | CT166: 1.1 | CU166: 0.2 | CV166: 0.12 | CW166: 22 | CX166: 5.922 | CZ166: 2.5 | DA166: 0 | DB166: 3
BY167: 13 | BZ167: Mısır Silajı, Süt Olumu | CA167: 26 | CB167: 2.4 | CC167: 8 | CD167: 5.6 | CE167: 4.2 | CF167: 1.4 | CG167: 0.4 | CH167: 0.27 | CI167: 26 | CJ167: 54 | CK167: 65 | CL167: 2.9 | CM167: 1.5 | CN167: 0.8 | CO167: 1.5 | CP167: 32 | CQ167: 60 | CR167: 2.8 | CS167: 6 | CT167: 1.6 | CV167: 0.11 | CW167: 20 | CZ167: 2.5 | DA167: 0 | DB167: 3
BY168: 14 | BZ168: Mısır Silajı, Tatlı Mısır | CA168: 24 | CB168: 2.4 | CC168: 11 | CD168: 7.7 | CE168: 6.9 | CG168: 0.24 | CH168: 0.26 | CI168: 20 | CJ168: 57 | CK168: 65 | CL168: 2.9 | CM168: 1.5 | CN168: 0.8 | CO168: 1.5 | CP168: 32 | CQ168: 60 | CR168: 5 | CS168: 5 | CT168: 1.2 | CU168: 0.17 | CV168: 0.16 | CW168: 39 | CX168: 1.711 | CZ168: 2.5 | DA168: 0 | DB168: 3
BY169: 15 | BZ169: Patates Bitkisi Silajı | CA169: 15 | CB169: 2.1 | CC169: 15 | CD169: 10.5 | CE169: 10.5 | CG169: 2.1 | CH169: 0.29 | CI169: 26 | CK169: 59 | CL169: 2.6 | CM169: 1.3 | CN169: 0.6 | CO169: 1.3 | CR169: 3.7 | CS169: 19 | CT169: 4 | CV169: 0.37 | CZ169: 4 | DA169: 0 | DB169: 3
BY170: 16 | BZ170: Sorgum Silajı | CA170: 32 | CB170: 2.1 | CC170: 9 | CD170: 6.3 | CE170: 5.1 | CF170: 2.7 | CG170: 0.48 | CH170: 0.21 | CI170: 27 | CJ170: 59 | CK170: 59 | CL170: 2.6 | CM170: 1.3 | CN170: 0.6 | CO170: 1.3 | CP170: 38 | CQ170: 70 | CR170: 2.7 | CS170: 6 | CT170: 1.7 | CU170: 0.45 | CV170: 0.11 | CW170: 30 | CX170: 3 | CY170: 662 | CZ170: 5 | DA170: 0 | DB170: 3
BY171: 17 | BZ171: Soya Silajı | CA171: 35 | CB171: 1.99 | CC171: 18 | CD171: 8.8 | CE171: 12.5 | CH171: 0.36 | CK171: 55 | CL171: 2.43 | CM171: 1.19 | CN171: 0.47 | CZ171: 4 | DA171: 0 | DB171: 3
BY172: 18 | BZ172: Sudan Otu Silajı | CA172: 31 | CB172: 2.1 | CC172: 10 | CD172: 7 | CE172: 6 | CF172: 2.8 | CG172: 0.58 | CH172: 0.27 | CI172: 30 | CJ172: 64 | CK172: 58 | CL172: 2.6 | CM172: 1.3 | CN172: 0.6 | CO172: 1.3 | CP172: 42 | CQ172: 61 | CR172: 3.1 | CS172: 10 | CT172: 2.4 | CU172: 0.52 | CV172: 0.14 | CW172: 29 | CX172: 21 | CZ172: 5 | DA172: 0 | DB172: 3
BY173: 19 | BZ173: Şeker Pancarı Yaprağı Silajı | CA173: 25 | CB173: 1.9 | CC173: 12 | CD173: 8.4 | CE173: 7.8 | CG173: 1.38 | CH173: 0.22 | CI173: 12 | CK173: 52 | CL173: 2.3 | CM173: 1.1 | CN173: 0.4 | CO173: 1.1 | CR173: 2 | CS173: 32 | CT173: 5.7 | CV173: 0.57 | CW173: 20 | CZ173: 2.5 | DA173: 0 | DB173: 3
BY174: 20 | BZ174: Şerbetçiotu Asması Silajı | CA174: 30 | CB174: 1.9 | CC174: 15 | CD174: 10.5 | CE174: 10.5 | CG174: 3.3 | CH174: 0.37 | CI174: 21 | CK174: 53 | CL174: 2.3 | CM174: 1.2 | CN174: 0.4 | CO174: 1.2 | CP174: 24 | CR174: 3.1 | CS174: 20 | CT174: 1.8 | CV174: 0.22 | CW174: 44 | CZ174: 11 | DA174: 0 | DB174: 3
BY175: 21 | BZ175: Şeytan Otu Silajı (Pangolagrass) | CA175: 32 | CB175: 2.03 | CC175: 8.9 | CD175: 3 | CE175: 4.3 | CH175: 0.08 | CK175: 56 | CL175: 2.47 | CM175: 1.21 | CN175: 0.51 | CZ175: 11 | DA175: 0 | DB175: 3
BY176: 22 | BZ176: Tritikale Silajı | CA176: 34 | CB176: 2.1 | CC176: 14 | CD176: 9.8 | CE176: 9.6 | CG176: 0.58 | CH176: 0.34 | CI176: 30 | CJ176: 56 | CK176: 58 | CL176: 2.6 | CM176: 1.3 | CN176: 0.6 | CO176: 1.3 | CP176: 39 | CQ176: 61 | CR176: 3.6 | CT176: 2.7 | CV176: 0.28 | CW176: 36 | CZ176: 3 | DA176: 0 | DB176: 3
BY177: 23 | BZ177: Yonca Silajı, Tam Çiçeklenmiş | CA177: 26 | CB177: 2.1 | CC177: 17.5 | CD177: 8.5 | CE177: 12.1 | CK177: 58 | CL177: 2.56 | CM177: 1.26 | CN177: 0.58 | CP177: 38 | CZ177: 4 | DA177: 0 | DB177: 3
BY178: 24 | BZ178: Yonca Silajı | CA178: 30 | CB178: 2 | CC178: 18 | CD178: 12.6 | CE178: 13.2 | CF178: 3.4 | CG178: 1.4 | CH178: 0.29 | CI178: 28 | CJ178: 49 | CK178: 55 | CL178: 2.4 | CM178: 1.2 | CN178: 0.5 | CO178: 1.2 | CP178: 37 | CQ178: 82 | CR178: 3 | CS178: 9 | CT178: 2.6 | CU178: 0.41 | CV178: 0.29 | CW178: 26 | CX178: 19.8 | CZ178: 4 | DA178: 0 | DB178: 3
BY179: 25 | BZ179: Yonca Silajı, Soldurulmuş | CA179: 39 | CB179: 2.1 | CC179: 18 | CD179: 12.6 | CE179: 13.2 | CF179: 4 | CG179: 1.4 | CH179: 0.29 | CI179: 28 | CJ179: 49 | CK179: 58 | CL179: 2.6 | CM179: 1.3 | CN179: 0.6 | CO179: 1.3 | CP179: 37 | CQ179: 82 | CR179: 3 | CS179: 9 | CT179: 2.6 | CU179: 0.41 | CV179: 0.29 | CW179: 26 | CX179: 12 | CZ179: 4 | DA179: 0 | DB179: 3
BY180: 26 | BZ180: Yulaf Silajı | CA180: 35 | CB180: 2.2 | CC180: 12 | CD180: 8.4 | CE180: 7.8 | CF180: 2.5 | CG180: 0.34 | CH180: 0.3 | CI180: 31 | CJ180: 59 | CK180: 60 | CL180: 2.6 | CM180: 1.3 | CN180: 0.7 | CO180: 1.3 | CP180: 39 | CQ180: 61 | CR180: 3.2 | CS180: 10 | CT180: 2.4 | CU180: 0.5 | CV180: 0.25 | CW180: 27 | CX180: 9 | CZ180: 4 | DA180: 0 | DB180: 3
BY181: 27
BY182: 28
BY183: 29
BY184: 30
BY185: 31
BY186: 32
BY187: 33
BY188: 34
BY189: 35
BY190: 36
BY191: 37
BY192: 38
BY193: 39
BY194: 40
BY195: 41
BY196: 42
BY197: 43
BY198: 44
BY199: 45
BY200: 46
... 333 more rows
